,Department Family,Entity,Date,Expense Type,Expense Area,Supplier,Transaction Number, Amount ,Item Description
,BEIS,UKRI - AHRC,06/07/18,Purchase of non capital equipment,Corporate Services,Abbey Business Equipment Ltd,98232261,424.80,Purchase of non capital equipment
,BEIS,UKRI - AHRC,05/07/18,Purchase of non capital equipment,HR,Abbey Business Equipment Ltd,98229585,756.00,Purchase of non capital equipment
,BEIS,UKRI - AHRC,05/07/18,Purchase of non capital equipment,PSU JRS,Abbey Business Equipment Ltd,98229587,1014.00,Purchase of non capital equipment
,BEIS,UKRI - AHRC,05/07/18,Purchase of non capital equipment,PSU JRS,Abbey Business Equipment Ltd,98229587,3780.00,Purchase of non capital equipment
,BEIS,UKRI - AHRC,11/07/18,Computing Consumables,IS,Academia Ltd,98235716,45.47,Computing Consumables
,BEIS,UKRI - AHRC,03/07/18,Recruitment Costs,Corporate Services,Agenda Resource Management Ltd,98226173,22.18,Recruitment Costs
,BEIS,UKRI - AHRC,03/07/18,Recruitment Costs,Corporate Services,Agenda Resource Management Ltd,98226173,156.53,Recruitment Costs
,BEIS,UKRI - AHRC,06/07/18,Recruitment Costs,Corporate Services,Agenda Resource Management Ltd,98231265,155.91,Recruitment Costs
,BEIS,UKRI - AHRC,06/07/18,Recruitment Costs,HR,Agenda Resource Management Ltd,98231320,56.11,Recruitment Costs
,BEIS,UKRI - AHRC,06/07/18,Recruitment Costs,HR,Agenda Resource Management Ltd,98231365,56.11,Recruitment Costs
,BEIS,UKRI - AHRC,06/07/18,Recruitment Costs,HR,Agenda Resource Management Ltd,98232483,126.84,Recruitment Costs
,BEIS,UKRI - AHRC,06/07/18,Recruitment Costs,HR,Agenda Resource Management Ltd,98232483,29.07,Recruitment Costs
,BEIS,UKRI - AHRC,11/07/18,Recruitment Costs,HR,Agenda Resource Management Ltd,98235812,155.91,Recruitment Costs
,BEIS,UKRI - AHRC,23/07/18,Recruitment Costs,HR,Agenda Resource Management Ltd,98244641,155.91,Recruitment Costs
,BEIS,UKRI - AHRC,23/07/18,Recruitment Costs,Secretariat,Agenda Resource Management Ltd,98244644,33.40,Recruitment Costs
,BEIS,UKRI - AHRC,23/07/18,Recruitment Costs,Secretariat,Agenda Resource Management Ltd,98244645,33.40,Recruitment Costs
,BEIS,UKRI - AHRC,23/07/18,Recruitment Costs,Secretariat,Agenda Resource Management Ltd,98244646,33.40,Recruitment Costs
,BEIS,UKRI - AHRC,23/07/18,Recruitment Costs,Secretariat,Agenda Resource Management Ltd,98244647,33.40,Recruitment Costs
,BEIS,UKRI - AHRC,23/07/18,Recruitment Costs,Secretariat,Agenda Resource Management Ltd,98244648,33.40,Recruitment Costs
,BEIS,UKRI - AHRC,23/07/18,Recruitment Costs,Secretariat,Agenda Resource Management Ltd,98244649,33.40,Recruitment Costs
,BEIS,UKRI - AHRC,23/07/18,Statutory Sick Pay,Secretariat,Agenda Resource Management Ltd,98244639,33.40,Statutory Sick Pay
,BEIS,UKRI - AHRC,26/07/18,Agency Staff,IS,Alexander Mann Solutions Limited,98233559,5007.72,Agency Staff
,BEIS,UKRI - AHRC,26/07/18,Agency Staff,IS,Alexander Mann Solutions Limited,98241377,2503.86,Agency Staff
,BEIS,UKRI - AHRC,23/07/18,Agency Staff,PSU Project Office,Alexander Mann Solutions Limited,98233533,6308.46,Agency Staff
,BEIS,UKRI - AHRC,23/07/18,Agency Staff,PSU Project Office,Alexander Mann Solutions Limited,98241376,3364.51,Agency Staff
,BEIS,UKRI - AHRC,25/07/18,Agency Staff,PSU Project Office,Alexander Mann Solutions Limited,98244534,6308.46,Agency Staff
,BEIS,UKRI - AHRC,17/07/18,Contract Staff,PSU JRS,Alexander Mann Solutions Limited,98233557,3418.46,Contract Staff
,BEIS,UKRI - AHRC,26/07/18,Contract Staff,PSU JRS,Alexander Mann Solutions Limited,98246988,1709.23,Contract Staff
,BEIS,UKRI - AHRC,23/07/18,Contract Staff,PSU Project Office,Alexander Mann Solutions Limited,98233555,6193.92,Contract Staff
,BEIS,UKRI - AHRC,23/07/18,Contract Staff,PSU Project Office,Alexander Mann Solutions Limited,98241378,3096.96,Contract Staff
,BEIS,UKRI - AHRC,25/07/18,Contract Staff,PSU Project Office,Alexander Mann Solutions Limited,98246044,3096.96,Contract Staff
,BEIS,UKRI - AHRC,12/07/18,Health & Safety (inc. Medicals & Opticians),Corporate Services,AM Health & Safety Ltd,98232973,90.00,Health & Safety (inc. Medicals & Opticians)
,BEIS,UKRI - AHRC,09/07/18,Provisions ( Food etc),HR,Arco Limited,98231555,186.84,Provisions ( Food etc)
,BEIS,UKRI - AHRC,05/07/18,Legal & Professional Services,PSU Project Office,Automated Intelligence Ltd,98202831,2475.00,Legal & Professional Services
,BEIS,UKRI - AHRC,24/07/18,Training Awards - Postgraduates,Collabrative Doctoral Grants - Block Payment,Bangor University,98229991,4879.50,Training Awards - Postgraduates
,BEIS,UKRI - AHRC,03/07/18,Cleaning & Sterilisation,Corporate Services,Banner Group Ltd,98226006,3.91,Cleaning & Sterilisation
,BEIS,UKRI - AHRC,03/07/18,Cleaning & Sterilisation,Corporate Services,Banner Group Ltd,98226006,34.19,Cleaning & Sterilisation
,BEIS,UKRI - AHRC,02/07/18,Cleaning & Sterilisation,IS,Banner Group Ltd,98227689,4.25,Cleaning & Sterilisation
,BEIS,UKRI - AHRC,02/07/18,Cleaning & Sterilisation,IS,Banner Group Ltd,98227689,3.60,Cleaning & Sterilisation
,BEIS,UKRI - AHRC,25/07/18,Printing & Stationery,HR,Banner Group Ltd,98245447,102.96,Printing & Stationery
,BEIS,UKRI - AHRC,02/07/18,Printing & Stationery,PSU Project Office,Banner Group Ltd,98227687,2.57,Printing & Stationery
,BEIS,UKRI - AHRC,02/07/18,Printing & Stationery,PSU Project Office,Banner Group Ltd,98227692,25.32,Printing & Stationery
,BEIS,UKRI - AHRC,02/07/18,Printing & Stationery,PSU Project Office,Banner Group Ltd,98227692,3.84,Printing & Stationery
,BEIS,UKRI - AHRC,02/07/18,Printing & Stationery,PSU Project Office,Banner Group Ltd,98227692,23.54,Printing & Stationery
,BEIS,UKRI - AHRC,02/07/18,Printing & Stationery,PSU Project Office,Banner Group Ltd,98227692,14.06,Printing & Stationery
,BEIS,UKRI - AHRC,02/07/18,Printing & Stationery,PSU Project Office,Banner Group Ltd,98227692,1.37,Printing & Stationery
,BEIS,UKRI - AHRC,02/07/18,Printing & Stationery,PSU Project Office,Banner Group Ltd,98227692,19.34,Printing & Stationery
,BEIS,UKRI - AHRC,02/07/18,Printing & Stationery,PSU Project Office,Banner Group Ltd,98227692,12.06,Printing & Stationery
,BEIS,UKRI - AHRC,04/07/18,Printing & Stationery,Secretariat,Banner Group Ltd,98229076,101.40,Printing & Stationery
,BEIS,UKRI - AHRC,04/07/18,Printing & Stationery,Secretariat,Banner Group Ltd,98229076,4.74,Printing & Stationery
,BEIS,UKRI - AHRC,04/07/18,Printing & Stationery,Secretariat,Banner Group Ltd,98229076,22.03,Printing & Stationery
,BEIS,UKRI - AHRC,05/07/18,Provisions ( Food etc),HR,Banner Group Ltd,98230246,7.48,Provisions ( Food etc)
,BEIS,UKRI - AHRC,05/07/18,Provisions ( Food etc),HR,Banner Group Ltd,98230246,41.18,Provisions ( Food etc)
,BEIS,UKRI - AHRC,02/07/18,Purchase of non capital equipment,Corporate Services,Banner Group Ltd,98227690,27.10,Purchase of non capital equipment
,BEIS,UKRI - AHRC,02/07/18,Purchase of non capital equipment,HR,Banner Group Ltd,98227691,23.30,Purchase of non capital equipment
,BEIS,UKRI - AHRC,02/07/18,Purchase of non capital equipment,HR,Banner Group Ltd,98227693,23.30,Purchase of non capital equipment
,BEIS,UKRI - AHRC,02/07/18,Purchase of non capital equipment,HR,Banner Group Ltd,98227696,23.30,Purchase of non capital equipment
,BEIS,UKRI - AHRC,05/07/18,Purchase of non capital equipment,HR,Banner Group Ltd,98230246,23.30,Purchase of non capital equipment
,BEIS,UKRI - AHRC,02/07/18,Safety Materials & Equipment,HR,Banner Group Ltd,98227695,22.26,Safety Materials & Equipment
,BEIS,UKRI - AHRC,02/07/18,Safety Materials & Equipment,PSU Project Office,Banner Group Ltd,98227692,5.12,Safety Materials & Equipment
,BEIS,UKRI - AHRC,24/07/18,Training Awards - Postgraduates,Collabrative Doctoral Grants - Block Payment,Bath Spa University,98229990,4879.50,Training Awards - Postgraduates
,BEIS,UKRI - AHRC,24/07/18,Training Awards - Postgraduates,Collabrative Doctoral Grants - Block Payment,Bath Spa University,98229990,4879.50,Training Awards - Postgraduates
,BEIS,UKRI - AHRC,24/07/18,Training Awards - Postgraduates,Collabrative Doctoral Grants - Block Payment,Bath Spa University,98230087,4874.50,Training Awards - Postgraduates
,BEIS,UKRI - AHRC,24/07/18,Training Awards - Postgraduates,Collabrative Doctoral Grants - Block Payment,Bath Spa University,98230087,4874.50,Training Awards - Postgraduates
,BEIS,UKRI - AHRC,05/07/18,Meetings & Catering,Creative Arts & Digital Humanities,Baxter Storey Ltd,98230483,568.92,Meetings & Catering
,BEIS,UKRI - AHRC,05/07/18,Meetings & Catering,GCRF - Programme Delivery,Baxter Storey Ltd,98230483,110.88,Meetings & Catering
,BEIS,UKRI - AHRC,05/07/18,Meetings & Catering,"Histories,Culture & Heritage",Baxter Storey Ltd,98230483,428.88,Meetings & Catering
,BEIS,UKRI - AHRC,05/07/18,Meetings & Catering,SMT,Baxter Storey Ltd,98230483,124.26,Meetings & Catering
,BEIS,UKRI - AHRC,26/07/18,Health & Safety (inc. Medicals & Opticians),Corporate Services,Benenden Healthcare Society,98247316,23238.05,Health & Safety (inc. Medicals & Opticians)
,BEIS,UKRI - AHRC,17/07/18,Recharges JBOS,Corporate Services,Biotechnology and Biological Sciences Research Council (BBSRC),98197518,14445.43,Recharges JBOS
,BEIS,UKRI - AHRC,17/07/18,Recharges JBOS,HR,Biotechnology and Biological Sciences Research Council (BBSRC),98100180,12736.18,Recharges JBOS
,BEIS,UKRI - AHRC,24/07/18,Training Awards - Postgraduates,Collabrative Doctoral Grants - Block Payment,Birkbeck College,98230080,5374.50,Training Awards - Postgraduates
,BEIS,UKRI - AHRC,24/07/18,Training Awards - Postgraduates,Collabrative Doctoral Grants - Block Payment,Birkbeck College,98230114,5374.50,Training Awards - Postgraduates
,BEIS,UKRI - AHRC,24/07/18,Training Awards - Postgraduates,Collabrative Doctoral Grants - Block Payment,Birkbeck College,98230129,5374.50,Training Awards - Postgraduates
,BEIS,UKRI - AHRC,24/07/18,Training Awards - Postgraduates,Collabrative Doctoral Grants - Block Payment,Birkbeck College,98230149,5374.50,Training Awards - Postgraduates
,BEIS,UKRI - AHRC,24/07/18,Training Awards - Postgraduates,Collabrative Doctoral Grants - Block Payment,Birkbeck College,98230157,5374.50,Training Awards - Postgraduates
,BEIS,UKRI - AHRC,24/07/18,Catering Contracts,PSU Project Office,Calder Conference Ltd,98245238,80.00,Catering Contracts
,BEIS,UKRI - AHRC,13/07/18,Conferences & Seminars,"Histories,Culture & Heritage",Calder Conference Ltd,98235581,14.40,Conferences & Seminars
,BEIS,UKRI - AHRC,24/07/18,Conferences & Seminars,PSU Project Office,Calder Conference Ltd,98245238,100.00,Conferences & Seminars
,BEIS,UKRI - AHRC,11/07/18,Hospitality,Industrial Strategy Challenge Fund (ISCF) - Creative Clusters,Calder Conference Ltd,98234716,580.00,Hospitality
,BEIS,UKRI - AHRC,09/07/18,Agency Staff,IS,Capita Business Services Ltd,98231593,2550.24,Agency Staff
,BEIS,UKRI - AHRC,18/07/18,Agency Staff,PSU Project Office,Capita Business Services Ltd,98176461,37.82,Agency Staff
,BEIS,UKRI - AHRC,18/07/18,Agency Staff,PSU Project Office,Capita Business Services Ltd,98176461,6720.00,Agency Staff
,BEIS,UKRI - AHRC,18/07/18,Agency Staff,PSU Project Office,Capita Business Services Ltd,98183480,21.28,Agency Staff
,BEIS,UKRI - AHRC,18/07/18,Agency Staff,PSU Project Office,Capita Business Services Ltd,98183480,3780.00,Agency Staff
,BEIS,UKRI - AHRC,18/07/18,Agency Staff,PSU Project Office,Capita Business Services Ltd,98185763,18.91,Agency Staff
,BEIS,UKRI - AHRC,18/07/18,Agency Staff,PSU Project Office,Capita Business Services Ltd,98185763,3360.00,Agency Staff
,BEIS,UKRI - AHRC,18/07/18,Agency Staff,PSU Project Office,Capita Business Services Ltd,98196729,17.74,Agency Staff
,BEIS,UKRI - AHRC,18/07/18,Agency Staff,PSU Project Office,Capita Business Services Ltd,98196729,3150.00,Agency Staff
,BEIS,UKRI - AHRC,18/07/18,Agency Staff,PSU Project Office,Capita Business Services Ltd,98208511,18.91,Agency Staff
,BEIS,UKRI - AHRC,18/07/18,Agency Staff,PSU Project Office,Capita Business Services Ltd,98208511,3360.00,Agency Staff
,BEIS,UKRI - AHRC,18/07/18,Agency Staff,PSU Project Office,Capita Business Services Ltd,98212370,21.28,Agency Staff
,BEIS,UKRI - AHRC,18/07/18,Agency Staff,PSU Project Office,Capita Business Services Ltd,98212370,3780.00,Agency Staff
,BEIS,UKRI - AHRC,18/07/18,Agency Staff,PSU Project Office,Capita Business Services Ltd,98220007,20.10,Agency Staff
,BEIS,UKRI - AHRC,18/07/18,Agency Staff,PSU Project Office,Capita Business Services Ltd,98220007,3570.00,Agency Staff
,BEIS,UKRI - AHRC,18/07/18,Agency Staff,PSU Project Office,Capita Business Services Ltd,98227268,228.91,Agency Staff
,BEIS,UKRI - AHRC,18/07/18,Agency Staff,PSU Project Office,Capita Business Services Ltd,98227268,3150.00,Agency Staff
,BEIS,UKRI - AHRC,03/07/18,Contract Staff,IS,Capita Business Services Ltd,98227266,2822.40,Contract Staff
,BEIS,UKRI - AHRC,03/07/18,Contract Staff,PSU JRS,Capita Business Services Ltd,98227265,3494.59,Contract Staff
,BEIS,UKRI - AHRC,03/07/18,Contract Staff,PSU Project Office,Capita Business Services Ltd,98227264,9098.21,Contract Staff
,BEIS,UKRI - AHRC,03/07/18,Contract Staff,PSU Project Office,Capita Business Services Ltd,98227267,3130.74,Contract Staff
,BEIS,UKRI - AHRC,24/07/18,Training Awards - Postgraduates,Collabrative Doctoral Grants - Block Payment,Cardiff University,98229989,4879.50,Training Awards - Postgraduates
,BEIS,UKRI - AHRC,24/07/18,Training Awards - Postgraduates,Collabrative Doctoral Grants - Block Payment,Cardiff University,98230074,4874.50,Training Awards - Postgraduates
,BEIS,UKRI - AHRC,24/07/18,Training Awards - Postgraduates,Collabrative Doctoral Grants - Block Payment,Cardiff University,98230162,4874.50,Training Awards - Postgraduates
,BEIS,UKRI - AHRC,24/07/18,Training Awards - Postgraduates,International Placement Scheme,Cardiff University,98229417,863.62,Training Awards - Postgraduates
,BEIS,UKRI - AHRC,13/07/18,Voluntary Deductions,Balance Sheet,Chargive,98235566,14.00,Voluntary Deductions
,BEIS,UKRI - AHRC,13/07/18,Legal & Professional Services,HR,Chartered Institute of Personnel and Development (CIPD),98236322,300.00,Legal & Professional Services
,BEIS,UKRI - AHRC,26/07/18,Legal & Professional Services,Communications,Cheltenham Festivals,98247332,10860.00,Legal & Professional Services
,BEIS,UKRI - AHRC,26/07/18,Legal & Professional Services,Communications,Cheltenham Festivals,98247332,1080.00,Legal & Professional Services
,BEIS,UKRI - AHRC,24/07/18,Training Awards - Postgraduates,Collabrative Doctoral Grants - Block Payment,"City, University of London",98230112,5374.50,Training Awards - Postgraduates
,BEIS,UKRI - AHRC,13/07/18,Voluntary Deductions,Balance Sheet,Civil Service Benevolent Fund,98235565,7.33,Voluntary Deductions
,BEIS,UKRI - AHRC,20/07/18,Non-staff travel and subsistance,"Histories,Culture & Heritage",Corporate Travel Management (North) Ltd,98243637,0.50,Non-staff travel and subsistance
,BEIS,UKRI - AHRC,20/07/18,Non-staff travel and subsistance,"Histories,Culture & Heritage",Corporate Travel Management (North) Ltd,98243637,125.00,Non-staff travel and subsistance
,BEIS,UKRI - AHRC,20/07/18,Non-staff travel and subsistance,"Histories,Culture & Heritage",Corporate Travel Management (North) Ltd,98243637,0.50,Non-staff travel and subsistance
,BEIS,UKRI - AHRC,20/07/18,Non-staff travel and subsistance,"Histories,Culture & Heritage",Corporate Travel Management (North) Ltd,98243637,125.10,Non-staff travel and subsistance
,BEIS,UKRI - AHRC,20/07/18,Non-staff travel and subsistance,"Histories,Culture & Heritage",Corporate Travel Management (North) Ltd,98243637,0.50,Non-staff travel and subsistance
,BEIS,UKRI - AHRC,20/07/18,Non-staff travel and subsistance,"Histories,Culture & Heritage",Corporate Travel Management (North) Ltd,98243637,130.50,Non-staff travel and subsistance
,BEIS,UKRI - AHRC,20/07/18,Non-staff travel and subsistance,"Histories,Culture & Heritage",Corporate Travel Management (North) Ltd,98243637,0.50,Non-staff travel and subsistance
,BEIS,UKRI - AHRC,20/07/18,Non-staff travel and subsistance,"Histories,Culture & Heritage",Corporate Travel Management (North) Ltd,98243637,112.50,Non-staff travel and subsistance
,BEIS,UKRI - AHRC,20/07/18,Non-staff travel and subsistance,"Histories,Culture & Heritage",Corporate Travel Management (North) Ltd,98243637,0.50,Non-staff travel and subsistance
,BEIS,UKRI - AHRC,20/07/18,Non-staff travel and subsistance,"Histories,Culture & Heritage",Corporate Travel Management (North) Ltd,98243637,125.10,Non-staff travel and subsistance
,BEIS,UKRI - AHRC,20/07/18,Non-staff travel and subsistance,"Histories,Culture & Heritage",Corporate Travel Management (North) Ltd,98243637,0.50,Non-staff travel and subsistance
,BEIS,UKRI - AHRC,20/07/18,Non-staff travel and subsistance,Industrial Strategy Challenge Fund (ISCF) - Creative Clusters,Corporate Travel Management (North) Ltd,98243637,0.50,Non-staff travel and subsistance
,BEIS,UKRI - AHRC,20/07/18,Non-staff travel and subsistance,Industrial Strategy Challenge Fund (ISCF) - Creative Clusters,Corporate Travel Management (North) Ltd,98243637,82.25,Non-staff travel and subsistance
,BEIS,UKRI - AHRC,20/07/18,Non-staff travel and subsistance,Industrial Strategy Challenge Fund (ISCF) - Creative Clusters,Corporate Travel Management (North) Ltd,98243637,0.10,Non-staff travel and subsistance
,BEIS,UKRI - AHRC,20/07/18,Non-staff travel and subsistance,"Languages,Literature & International Engagement",Corporate Travel Management (North) Ltd,98243637,0.50,Non-staff travel and subsistance
,BEIS,UKRI - AHRC,20/07/18,Non-staff travel and subsistance,"Languages,Literature & International Engagement",Corporate Travel Management (North) Ltd,98243637,73.00,Non-staff travel and subsistance
,BEIS,UKRI - AHRC,20/07/18,Non-staff travel and subsistance,"Languages,Literature & International Engagement",Corporate Travel Management (North) Ltd,98243637,0.50,Non-staff travel and subsistance
,BEIS,UKRI - AHRC,20/07/18,Non-staff travel and subsistance,"Languages,Literature & International Engagement",Corporate Travel Management (North) Ltd,98243637,73.00,Non-staff travel and subsistance
,BEIS,UKRI - AHRC,20/07/18,Non-staff travel and subsistance,"Languages,Literature & International Engagement",Corporate Travel Management (North) Ltd,98243637,0.50,Non-staff travel and subsistance
,BEIS,UKRI - AHRC,20/07/18,Non-staff travel and subsistance,"Languages,Literature & International Engagement",Corporate Travel Management (North) Ltd,98243637,73.00,Non-staff travel and subsistance
,BEIS,UKRI - AHRC,20/07/18,Non-staff travel and subsistance,"Languages,Literature & International Engagement",Corporate Travel Management (North) Ltd,98243637,0.50,Non-staff travel and subsistance
,BEIS,UKRI - AHRC,20/07/18,Non-staff travel and subsistance,"Languages,Literature & International Engagement",Corporate Travel Management (North) Ltd,98243637,73.00,Non-staff travel and subsistance
,BEIS,UKRI - AHRC,20/07/18,Non-staff travel and subsistance,"Languages,Literature & International Engagement",Corporate Travel Management (North) Ltd,98243637,0.50,Non-staff travel and subsistance
,BEIS,UKRI - AHRC,20/07/18,Non-staff travel and subsistance,"Languages,Literature & International Engagement",Corporate Travel Management (North) Ltd,98243637,83.00,Non-staff travel and subsistance
,BEIS,UKRI - AHRC,20/07/18,Non-staff travel and subsistance,"Languages,Literature & International Engagement",Corporate Travel Management (North) Ltd,98243637,0.50,Non-staff travel and subsistance
,BEIS,UKRI - AHRC,20/07/18,Non-staff travel and subsistance,Newton Programme Delivery,Corporate Travel Management (North) Ltd,98243637,902.17,Non-staff travel and subsistance
,BEIS,UKRI - AHRC,20/07/18,Non-staff travel and subsistance,Newton Programme Delivery,Corporate Travel Management (North) Ltd,98243637,1880.91,Non-staff travel and subsistance
,BEIS,UKRI - AHRC,20/07/18,T&S Overseas - Accommodation,International,Corporate Travel Management (North) Ltd,98243637,0.50,T&S Overseas - Accommodation
,BEIS,UKRI - AHRC,20/07/18,T&S Overseas - Accommodation,International,Corporate Travel Management (North) Ltd,98243637,0.10,T&S Overseas - Accommodation
,BEIS,UKRI - AHRC,20/07/18,T&S Overseas - Accommodation,JPI Cultural Heritage Project,Corporate Travel Management (North) Ltd,98243637,1.00,T&S Overseas - Accommodation
,BEIS,UKRI - AHRC,20/07/18,T&S Overseas - Accommodation,JPI Cultural Heritage Project,Corporate Travel Management (North) Ltd,98243637,0.20,T&S Overseas - Accommodation
,BEIS,UKRI - AHRC,20/07/18,T&S Overseas - Accommodation,"Languages,Literature & International Engagement",Corporate Travel Management (North) Ltd,98243637,287.67,T&S Overseas - Accommodation
,BEIS,UKRI - AHRC,20/07/18,T&S Overseas - Accommodation,PSU Project Office,Corporate Travel Management (North) Ltd,98243637,0.50,T&S Overseas - Accommodation
,BEIS,UKRI - AHRC,20/07/18,T&S Overseas - Accommodation,PSU Project Office,Corporate Travel Management (North) Ltd,98243637,0.10,T&S Overseas - Accommodation
,BEIS,UKRI - AHRC,20/07/18,T&S Overseas - Accommodation,SMT,Corporate Travel Management (North) Ltd,98243637,0.50,T&S Overseas - Accommodation
,BEIS,UKRI - AHRC,20/07/18,T&S Overseas - Accommodation,SMT,Corporate Travel Management (North) Ltd,98243637,0.10,T&S Overseas - Accommodation
,BEIS,UKRI - AHRC,20/07/18,T&S Overseas - Flights,Creative Arts & Digital Humanities,Corporate Travel Management (North) Ltd,98243637,2.16,T&S Overseas - Flights
,BEIS,UKRI - AHRC,20/07/18,T&S Overseas - Flights,Creative Arts & Digital Humanities,Corporate Travel Management (North) Ltd,98243637,1807.41,T&S Overseas - Flights
,BEIS,UKRI - AHRC,20/07/18,T&S Overseas - Flights,Creative Arts & Digital Humanities,Corporate Travel Management (North) Ltd,98243637,2.16,T&S Overseas - Flights
,BEIS,UKRI - AHRC,20/07/18,T&S Overseas - Flights,Creative Arts & Digital Humanities,Corporate Travel Management (North) Ltd,98243637,1807.41,T&S Overseas - Flights
,BEIS,UKRI - AHRC,20/07/18,T&S Overseas - Flights,Creative Arts & Digital Humanities,Corporate Travel Management (North) Ltd,98243637,2.16,T&S Overseas - Flights
,BEIS,UKRI - AHRC,20/07/18,T&S Overseas - Flights,Creative Arts & Digital Humanities,Corporate Travel Management (North) Ltd,98243637,1807.41,T&S Overseas - Flights
,BEIS,UKRI - AHRC,20/07/18,T&S Overseas - Flights,Creative Arts & Digital Humanities,Corporate Travel Management (North) Ltd,98243637,6.75,T&S Overseas - Flights
,BEIS,UKRI - AHRC,20/07/18,T&S Overseas - Flights,Creative Arts & Digital Humanities,Corporate Travel Management (North) Ltd,98243637,199.45,T&S Overseas - Flights
,BEIS,UKRI - AHRC,20/07/18,T&S Overseas - Flights,Creative Arts & Digital Humanities,Corporate Travel Management (North) Ltd,98243637,100.00,T&S Overseas - Flights
,BEIS,UKRI - AHRC,20/07/18,T&S Overseas - Flights,Creative Arts & Digital Humanities,Corporate Travel Management (North) Ltd,98243637,6.75,T&S Overseas - Flights
,BEIS,UKRI - AHRC,20/07/18,T&S Overseas - Flights,Creative Arts & Digital Humanities,Corporate Travel Management (North) Ltd,98243637,209.45,T&S Overseas - Flights
,BEIS,UKRI - AHRC,20/07/18,T&S Overseas - Flights,Creative Arts & Digital Humanities,Corporate Travel Management (North) Ltd,98243637,100.00,T&S Overseas - Flights
,BEIS,UKRI - AHRC,20/07/18,T&S Overseas - Flights,Creative Arts & Digital Humanities,Corporate Travel Management (North) Ltd,98243637,84.48,T&S Overseas - Flights
,BEIS,UKRI - AHRC,20/07/18,T&S Overseas - Flights,HERA JRP Project,Corporate Travel Management (North) Ltd,98243637,487.40,T&S Overseas - Flights
,BEIS,UKRI - AHRC,20/07/18,T&S Overseas - Flights,HERA JRP Project,Corporate Travel Management (North) Ltd,98243637,487.40,T&S Overseas - Flights
,BEIS,UKRI - AHRC,20/07/18,T&S Overseas - Flights,"Histories,Culture & Heritage",Corporate Travel Management (North) Ltd,98243637,906.31,T&S Overseas - Flights
,BEIS,UKRI - AHRC,20/07/18,T&S Overseas - Flights,Newton Programme Delivery,Corporate Travel Management (North) Ltd,98243637,2.16,T&S Overseas - Flights
,BEIS,UKRI - AHRC,20/07/18,T&S Overseas - Flights,Newton Programme Delivery,Corporate Travel Management (North) Ltd,98243637,2674.20,T&S Overseas - Flights
,BEIS,UKRI - AHRC,20/07/18,T&S Overseas - Flights,Newton Programme Delivery,Corporate Travel Management (North) Ltd,98243637,699.11,T&S Overseas - Flights
,BEIS,UKRI - AHRC,20/07/18,T&S Overseas - Flights,Newton Programme Delivery,Corporate Travel Management (North) Ltd,98243637,79.80,T&S Overseas - Flights
,BEIS,UKRI - AHRC,20/07/18,T&S Overseas - Flights,Newton Programme Delivery,Corporate Travel Management (North) Ltd,98243637,698.40,T&S Overseas - Flights
,BEIS,UKRI - AHRC,20/07/18,T&S Overseas - Flights,SMT,Corporate Travel Management (North) Ltd,98243637,494.50,T&S Overseas - Flights
,BEIS,UKRI - AHRC,20/07/18,T&S Overseas - Other Charges,Newton Programme Delivery,Corporate Travel Management (North) Ltd,98243637,432.46,T&S Overseas - Other Charges
,BEIS,UKRI - AHRC,20/07/18,T&S UK - Accommodation,HERA JRP Project,Corporate Travel Management (North) Ltd,98243637,0.50,T&S UK - Accommodation
,BEIS,UKRI - AHRC,20/07/18,T&S UK - Accommodation,HERA JRP Project,Corporate Travel Management (North) Ltd,98243637,0.50,T&S UK - Accommodation
,BEIS,UKRI - AHRC,20/07/18,T&S UK - Accommodation,HERA JRP Project,Corporate Travel Management (North) Ltd,98243637,0.20,T&S UK - Accommodation
,BEIS,UKRI - AHRC,20/07/18,T&S UK - Accommodation,"Histories,Culture & Heritage",Corporate Travel Management (North) Ltd,98243637,0.50,T&S UK - Accommodation
,BEIS,UKRI - AHRC,20/07/18,T&S UK - Accommodation,"Histories,Culture & Heritage",Corporate Travel Management (North) Ltd,98243637,1.44,T&S UK - Accommodation
,BEIS,UKRI - AHRC,20/07/18,T&S UK - Accommodation,"Histories,Culture & Heritage",Corporate Travel Management (North) Ltd,98243637,100.00,T&S UK - Accommodation
,BEIS,UKRI - AHRC,20/07/18,T&S UK - Accommodation,"Histories,Culture & Heritage",Corporate Travel Management (North) Ltd,98243637,0.50,T&S UK - Accommodation
,BEIS,UKRI - AHRC,20/07/18,T&S UK - Accommodation,"Histories,Culture & Heritage",Corporate Travel Management (North) Ltd,98243637,1.44,T&S UK - Accommodation
,BEIS,UKRI - AHRC,20/07/18,T&S UK - Accommodation,"Histories,Culture & Heritage",Corporate Travel Management (North) Ltd,98243637,73.00,T&S UK - Accommodation
,BEIS,UKRI - AHRC,20/07/18,T&S UK - Accommodation,"Histories,Culture & Heritage",Corporate Travel Management (North) Ltd,98243637,0.50,T&S UK - Accommodation
,BEIS,UKRI - AHRC,20/07/18,T&S UK - Accommodation,"Histories,Culture & Heritage",Corporate Travel Management (North) Ltd,98243637,103.50,T&S UK - Accommodation
,BEIS,UKRI - AHRC,20/07/18,T&S UK - Accommodation,"Histories,Culture & Heritage",Corporate Travel Management (North) Ltd,98243637,0.50,T&S UK - Accommodation
,BEIS,UKRI - AHRC,20/07/18,T&S UK - Accommodation,"Histories,Culture & Heritage",Corporate Travel Management (North) Ltd,98243637,49.90,T&S UK - Accommodation
,BEIS,UKRI - AHRC,20/07/18,T&S UK - Accommodation,"Histories,Culture & Heritage",Corporate Travel Management (North) Ltd,98243637,0.98,T&S UK - Accommodation
,BEIS,UKRI - AHRC,20/07/18,T&S UK - Accommodation,International,Corporate Travel Management (North) Ltd,98243637,0.50,T&S UK - Accommodation
,BEIS,UKRI - AHRC,20/07/18,T&S UK - Accommodation,International,Corporate Travel Management (North) Ltd,98243637,72.00,T&S UK - Accommodation
,BEIS,UKRI - AHRC,20/07/18,T&S UK - Accommodation,International,Corporate Travel Management (North) Ltd,98243637,0.10,T&S UK - Accommodation
,BEIS,UKRI - AHRC,20/07/18,T&S UK - Accommodation,PSU Project Office,Corporate Travel Management (North) Ltd,98243637,0.50,T&S UK - Accommodation
,BEIS,UKRI - AHRC,20/07/18,T&S UK - Accommodation,PSU Project Office,Corporate Travel Management (North) Ltd,98243637,108.90,T&S UK - Accommodation
,BEIS,UKRI - AHRC,20/07/18,T&S UK - Accommodation,PSU Project Office,Corporate Travel Management (North) Ltd,98243637,0.50,T&S UK - Accommodation
,BEIS,UKRI - AHRC,20/07/18,T&S UK - Accommodation,PSU Project Office,Corporate Travel Management (North) Ltd,98243637,100.00,T&S UK - Accommodation
,BEIS,UKRI - AHRC,20/07/18,T&S UK - Accommodation,PSU Project Office,Corporate Travel Management (North) Ltd,98243637,0.20,T&S UK - Accommodation
,BEIS,UKRI - AHRC,20/07/18,T&S UK - Accommodation,Secretariat,Corporate Travel Management (North) Ltd,98243637,0.50,T&S UK - Accommodation
,BEIS,UKRI - AHRC,20/07/18,T&S UK - Accommodation,Secretariat,Corporate Travel Management (North) Ltd,98243637,144.00,T&S UK - Accommodation
,BEIS,UKRI - AHRC,20/07/18,T&S UK - Accommodation,Secretariat,Corporate Travel Management (North) Ltd,98243637,0.10,T&S UK - Accommodation
,BEIS,UKRI - AHRC,20/07/18,T&S UK - Accommodation,SMT,Corporate Travel Management (North) Ltd,98243637,0.50,T&S UK - Accommodation
,BEIS,UKRI - AHRC,20/07/18,T&S UK - Accommodation,SMT,Corporate Travel Management (North) Ltd,98243637,0.50,T&S UK - Accommodation
,BEIS,UKRI - AHRC,20/07/18,T&S UK - Accommodation,SMT,Corporate Travel Management (North) Ltd,98243637,165.00,T&S UK - Accommodation
,BEIS,UKRI - AHRC,20/07/18,T&S UK - Accommodation,SMT,Corporate Travel Management (North) Ltd,98243637,0.50,T&S UK - Accommodation
,BEIS,UKRI - AHRC,20/07/18,T&S UK - Accommodation,SMT,Corporate Travel Management (North) Ltd,98243637,165.00,T&S UK - Accommodation
,BEIS,UKRI - AHRC,20/07/18,T&S UK - Accommodation,SMT,Corporate Travel Management (North) Ltd,98243637,0.50,T&S UK - Accommodation
,BEIS,UKRI - AHRC,20/07/18,T&S UK - Accommodation,SMT,Corporate Travel Management (North) Ltd,98243637,165.00,T&S UK - Accommodation
,BEIS,UKRI - AHRC,20/07/18,T&S UK - Accommodation,SMT,Corporate Travel Management (North) Ltd,98243637,0.50,T&S UK - Accommodation
,BEIS,UKRI - AHRC,20/07/18,T&S UK - Accommodation,SMT,Corporate Travel Management (North) Ltd,98243637,1.44,T&S UK - Accommodation
,BEIS,UKRI - AHRC,20/07/18,T&S UK - Accommodation,SMT,Corporate Travel Management (North) Ltd,98243637,166.50,T&S UK - Accommodation
,BEIS,UKRI - AHRC,20/07/18,T&S UK - Accommodation,SMT,Corporate Travel Management (North) Ltd,98243637,0.50,T&S UK - Accommodation
,BEIS,UKRI - AHRC,20/07/18,T&S UK - Accommodation,SMT,Corporate Travel Management (North) Ltd,98243637,65.00,T&S UK - Accommodation
,BEIS,UKRI - AHRC,20/07/18,T&S UK - Accommodation,SMT,Corporate Travel Management (North) Ltd,98243637,0.50,T&S UK - Accommodation
,BEIS,UKRI - AHRC,20/07/18,T&S UK - Accommodation,SMT,Corporate Travel Management (North) Ltd,98243637,0.50,T&S UK - Accommodation
,BEIS,UKRI - AHRC,20/07/18,T&S UK - Accommodation,SMT,Corporate Travel Management (North) Ltd,98243637,144.00,T&S UK - Accommodation
,BEIS,UKRI - AHRC,20/07/18,T&S UK - Accommodation,SMT,Corporate Travel Management (North) Ltd,98243637,0.50,T&S UK - Accommodation
,BEIS,UKRI - AHRC,20/07/18,T&S UK - Accommodation,SMT,Corporate Travel Management (North) Ltd,98243637,144.00,T&S UK - Accommodation
,BEIS,UKRI - AHRC,20/07/18,T&S UK - Accommodation,SMT,Corporate Travel Management (North) Ltd,98243637,0.50,T&S UK - Accommodation
,BEIS,UKRI - AHRC,20/07/18,T&S UK - Accommodation,SMT,Corporate Travel Management (North) Ltd,98243637,144.00,T&S UK - Accommodation
,BEIS,UKRI - AHRC,20/07/18,T&S UK - Accommodation,SMT,Corporate Travel Management (North) Ltd,98243637,0.50,T&S UK - Accommodation
,BEIS,UKRI - AHRC,20/07/18,T&S UK - Accommodation,SMT,Corporate Travel Management (North) Ltd,98243637,144.00,T&S UK - Accommodation
,BEIS,UKRI - AHRC,20/07/18,T&S UK - Accommodation,SMT,Corporate Travel Management (North) Ltd,98243637,0.50,T&S UK - Accommodation
,BEIS,UKRI - AHRC,20/07/18,T&S UK - Accommodation,SMT,Corporate Travel Management (North) Ltd,98243637,65.00,T&S UK - Accommodation
,BEIS,UKRI - AHRC,20/07/18,T&S UK - Accommodation,SMT,Corporate Travel Management (North) Ltd,98243637,0.50,T&S UK - Accommodation
,BEIS,UKRI - AHRC,20/07/18,T&S UK - Accommodation,SMT,Corporate Travel Management (North) Ltd,98243637,0.50,T&S UK - Accommodation
,BEIS,UKRI - AHRC,20/07/18,T&S UK - Accommodation,SMT,Corporate Travel Management (North) Ltd,98243637,0.50,T&S UK - Accommodation
,BEIS,UKRI - AHRC,20/07/18,T&S UK - Accommodation,SMT,Corporate Travel Management (North) Ltd,98243637,1.44,T&S UK - Accommodation
,BEIS,UKRI - AHRC,20/07/18,T&S UK - Accommodation,SMT,Corporate Travel Management (North) Ltd,98243637,156.00,T&S UK - Accommodation
,BEIS,UKRI - AHRC,20/07/18,T&S UK - Accommodation,SMT,Corporate Travel Management (North) Ltd,98243637,0.50,T&S UK - Accommodation
,BEIS,UKRI - AHRC,20/07/18,T&S UK - Accommodation,SMT,Corporate Travel Management (North) Ltd,98243637,74.00,T&S UK - Accommodation
,BEIS,UKRI - AHRC,20/07/18,T&S UK - Accommodation,SMT,Corporate Travel Management (North) Ltd,98243637,0.50,T&S UK - Accommodation
,BEIS,UKRI - AHRC,20/07/18,T&S UK - Accommodation,SMT,Corporate Travel Management (North) Ltd,98243637,208.00,T&S UK - Accommodation
,BEIS,UKRI - AHRC,20/07/18,T&S UK - Accommodation,SMT,Corporate Travel Management (North) Ltd,98243637,0.50,T&S UK - Accommodation
,BEIS,UKRI - AHRC,20/07/18,T&S UK - Accommodation,SMT,Corporate Travel Management (North) Ltd,98243637,65.00,T&S UK - Accommodation
,BEIS,UKRI - AHRC,20/07/18,T&S UK - Accommodation,SMT,Corporate Travel Management (North) Ltd,98243637,2.38,T&S UK - Accommodation
,BEIS,UKRI - AHRC,20/07/18,T&S UK - Flights,"AHRC - Strategic Planning, Evidence & Impact",Corporate Travel Management (North) Ltd,98243637,0.50,T&S UK - Flights
,BEIS,UKRI - AHRC,20/07/18,T&S UK - Flights,"AHRC - Strategic Planning, Evidence & Impact",Corporate Travel Management (North) Ltd,98243637,1.44,T&S UK - Flights
,BEIS,UKRI - AHRC,20/07/18,T&S UK - Flights,"AHRC - Strategic Planning, Evidence & Impact",Corporate Travel Management (North) Ltd,98243637,2636.40,T&S UK - Flights
,BEIS,UKRI - AHRC,20/07/18,T&S UK - Flights,"AHRC - Strategic Planning, Evidence & Impact",Corporate Travel Management (North) Ltd,98243637,0.39,T&S UK - Flights
,BEIS,UKRI - AHRC,20/07/18,T&S UK - Flights,International,Corporate Travel Management (North) Ltd,98243637,510.30,T&S UK - Flights
,BEIS,UKRI - AHRC,20/07/18,T&S UK - Flights,SMT,Corporate Travel Management (North) Ltd,98243637,153.00,T&S UK - Flights
,BEIS,UKRI - AHRC,20/07/18,T&S UK - Flights,SMT,Corporate Travel Management (North) Ltd,98243637,259.70,T&S UK - Flights
,BEIS,UKRI - AHRC,20/07/18,T&S UK - Public Transport,"AHRC - Strategic Planning, Evidence & Impact",Corporate Travel Management (North) Ltd,98243637,1.00,T&S UK - Public Transport
,BEIS,UKRI - AHRC,20/07/18,T&S UK - Public Transport,"AHRC - Strategic Planning, Evidence & Impact",Corporate Travel Management (North) Ltd,98243637,66.80,T&S UK - Public Transport
,BEIS,UKRI - AHRC,20/07/18,T&S UK - Public Transport,"AHRC - Strategic Planning, Evidence & Impact",Corporate Travel Management (North) Ltd,98243637,111.00,T&S UK - Public Transport
,BEIS,UKRI - AHRC,20/07/18,T&S UK - Public Transport,"AHRC - Strategic Planning, Evidence & Impact",Corporate Travel Management (North) Ltd,98243637,98.20,T&S UK - Public Transport
,BEIS,UKRI - AHRC,20/07/18,T&S UK - Public Transport,"AHRC - Strategic Planning, Evidence & Impact",Corporate Travel Management (North) Ltd,98243637,101.20,T&S UK - Public Transport
,BEIS,UKRI - AHRC,20/07/18,T&S UK - Public Transport,Business Process & Analysis,Corporate Travel Management (North) Ltd,98243637,71.80,T&S UK - Public Transport
,BEIS,UKRI - AHRC,20/07/18,T&S UK - Public Transport,Business Process & Analysis,Corporate Travel Management (North) Ltd,98243637,23.00,T&S UK - Public Transport
,BEIS,UKRI - AHRC,20/07/18,T&S UK - Public Transport,Business Process & Analysis,Corporate Travel Management (North) Ltd,98243637,23.00,T&S UK - Public Transport
,BEIS,UKRI - AHRC,20/07/18,T&S UK - Public Transport,Business Process & Analysis,Corporate Travel Management (North) Ltd,98243637,23.00,T&S UK - Public Transport
,BEIS,UKRI - AHRC,20/07/18,T&S UK - Public Transport,Business Process & Analysis,Corporate Travel Management (North) Ltd,98243637,23.00,T&S UK - Public Transport
,BEIS,UKRI - AHRC,20/07/18,T&S UK - Public Transport,Communications,Corporate Travel Management (North) Ltd,98243637,79.80,T&S UK - Public Transport
,BEIS,UKRI - AHRC,20/07/18,T&S UK - Public Transport,Communications,Corporate Travel Management (North) Ltd,98243637,138.10,T&S UK - Public Transport
,BEIS,UKRI - AHRC,20/07/18,T&S UK - Public Transport,Communications,Corporate Travel Management (North) Ltd,98243637,147.00,T&S UK - Public Transport
,BEIS,UKRI - AHRC,20/07/18,T&S UK - Public Transport,Communications,Corporate Travel Management (North) Ltd,98243637,139.60,T&S UK - Public Transport
,BEIS,UKRI - AHRC,20/07/18,T&S UK - Public Transport,Communications,Corporate Travel Management (North) Ltd,98243637,31.30,T&S UK - Public Transport
,BEIS,UKRI - AHRC,20/07/18,T&S UK - Public Transport,Communications,Corporate Travel Management (North) Ltd,98243637,11.60,T&S UK - Public Transport
,BEIS,UKRI - AHRC,20/07/18,T&S UK - Public Transport,Communications,Corporate Travel Management (North) Ltd,98243637,1.00,T&S UK - Public Transport
,BEIS,UKRI - AHRC,20/07/18,T&S UK - Public Transport,Communications,Corporate Travel Management (North) Ltd,98243637,235.60,T&S UK - Public Transport
,BEIS,UKRI - AHRC,20/07/18,T&S UK - Public Transport,Communications,Corporate Travel Management (North) Ltd,98243637,147.00,T&S UK - Public Transport
,BEIS,UKRI - AHRC,20/07/18,T&S UK - Public Transport,Communications,Corporate Travel Management (North) Ltd,98243637,139.60,T&S UK - Public Transport
,BEIS,UKRI - AHRC,20/07/18,T&S UK - Public Transport,Communications,Corporate Travel Management (North) Ltd,98243637,8.90,T&S UK - Public Transport
,BEIS,UKRI - AHRC,20/07/18,T&S UK - Public Transport,Creative Arts & Digital Humanities,Corporate Travel Management (North) Ltd,98243637,52.60,T&S UK - Public Transport
,BEIS,UKRI - AHRC,20/07/18,T&S UK - Public Transport,Creative Arts & Digital Humanities,Corporate Travel Management (North) Ltd,98243637,52.60,T&S UK - Public Transport
,BEIS,UKRI - AHRC,20/07/18,T&S UK - Public Transport,Creative Arts & Digital Humanities,Corporate Travel Management (North) Ltd,98243637,1.00,T&S UK - Public Transport
,BEIS,UKRI - AHRC,20/07/18,T&S UK - Public Transport,Creative Arts & Digital Humanities,Corporate Travel Management (North) Ltd,98243637,217.40,T&S UK - Public Transport
,BEIS,UKRI - AHRC,20/07/18,T&S UK - Public Transport,Creative Arts & Digital Humanities,Corporate Travel Management (North) Ltd,98243637,-79.40,T&S UK - Public Transport
,BEIS,UKRI - AHRC,20/07/18,T&S UK - Public Transport,Creative Arts & Digital Humanities,Corporate Travel Management (North) Ltd,98243637,148.40,T&S UK - Public Transport
,BEIS,UKRI - AHRC,20/07/18,T&S UK - Public Transport,Creative Arts & Digital Humanities,Corporate Travel Management (North) Ltd,98243637,1.00,T&S UK - Public Transport
,BEIS,UKRI - AHRC,20/07/18,T&S UK - Public Transport,Creative Arts & Digital Humanities,Corporate Travel Management (North) Ltd,98243637,160.30,T&S UK - Public Transport
,BEIS,UKRI - AHRC,20/07/18,T&S UK - Public Transport,Creative Arts & Digital Humanities,Corporate Travel Management (North) Ltd,98243637,217.40,T&S UK - Public Transport
,BEIS,UKRI - AHRC,20/07/18,T&S UK - Public Transport,Creative Arts & Digital Humanities,Corporate Travel Management (North) Ltd,98243637,217.40,T&S UK - Public Transport
,BEIS,UKRI - AHRC,20/07/18,T&S UK - Public Transport,Creative Arts & Digital Humanities,Corporate Travel Management (North) Ltd,98243637,67.90,T&S UK - Public Transport
,BEIS,UKRI - AHRC,20/07/18,T&S UK - Public Transport,Creative Arts & Digital Humanities,Corporate Travel Management (North) Ltd,98243637,59.30,T&S UK - Public Transport
,BEIS,UKRI - AHRC,20/07/18,T&S UK - Public Transport,Creative Arts & Digital Humanities,Corporate Travel Management (North) Ltd,98243637,46.90,T&S UK - Public Transport
,BEIS,UKRI - AHRC,20/07/18,T&S UK - Public Transport,Creative Arts & Digital Humanities,Corporate Travel Management (North) Ltd,98243637,5.00,T&S UK - Public Transport
,BEIS,UKRI - AHRC,20/07/18,T&S UK - Public Transport,Creative Arts & Digital Humanities,Corporate Travel Management (North) Ltd,98243637,-136.00,T&S UK - Public Transport
,BEIS,UKRI - AHRC,20/07/18,T&S UK - Public Transport,Creative Arts & Digital Humanities,Corporate Travel Management (North) Ltd,98243637,104.81,T&S UK - Public Transport
,BEIS,UKRI - AHRC,20/07/18,T&S UK - Public Transport,Creative Arts & Digital Humanities,Corporate Travel Management (North) Ltd,98243637,-212.40,T&S UK - Public Transport
,BEIS,UKRI - AHRC,20/07/18,T&S UK - Public Transport,Creative Arts & Digital Humanities,Corporate Travel Management (North) Ltd,98243637,66.90,T&S UK - Public Transport
,BEIS,UKRI - AHRC,20/07/18,T&S UK - Public Transport,Creative Arts & Digital Humanities,Corporate Travel Management (North) Ltd,98243637,146.00,T&S UK - Public Transport
,BEIS,UKRI - AHRC,20/07/18,T&S UK - Public Transport,Creative Arts & Digital Humanities,Corporate Travel Management (North) Ltd,98243637,91.55,T&S UK - Public Transport
,BEIS,UKRI - AHRC,20/07/18,T&S UK - Public Transport,Creative Arts & Digital Humanities,Corporate Travel Management (North) Ltd,98243637,113.90,T&S UK - Public Transport
,BEIS,UKRI - AHRC,20/07/18,T&S UK - Public Transport,Creative Arts & Digital Humanities,Corporate Travel Management (North) Ltd,98243637,47.90,T&S UK - Public Transport
,BEIS,UKRI - AHRC,20/07/18,T&S UK - Public Transport,Finance,Corporate Travel Management (North) Ltd,98243637,23.00,T&S UK - Public Transport
,BEIS,UKRI - AHRC,20/07/18,T&S UK - Public Transport,GCRF - Programme Delivery,Corporate Travel Management (North) Ltd,98243637,160.30,T&S UK - Public Transport
,BEIS,UKRI - AHRC,20/07/18,T&S UK - Public Transport,HERA JRP Project,Corporate Travel Management (North) Ltd,98243637,52.90,T&S UK - Public Transport
,BEIS,UKRI - AHRC,20/07/18,T&S UK - Public Transport,"Histories,Culture & Heritage",Corporate Travel Management (North) Ltd,98243637,96.30,T&S UK - Public Transport
,BEIS,UKRI - AHRC,20/07/18,T&S UK - Public Transport,"Histories,Culture & Heritage",Corporate Travel Management (North) Ltd,98243637,23.00,T&S UK - Public Transport
,BEIS,UKRI - AHRC,20/07/18,T&S UK - Public Transport,"Histories,Culture & Heritage",Corporate Travel Management (North) Ltd,98243637,123.30,T&S UK - Public Transport
,BEIS,UKRI - AHRC,20/07/18,T&S UK - Public Transport,"Histories,Culture & Heritage",Corporate Travel Management (North) Ltd,98243637,3.50,T&S UK - Public Transport
,BEIS,UKRI - AHRC,20/07/18,T&S UK - Public Transport,"Histories,Culture & Heritage",Corporate Travel Management (North) Ltd,98243637,141.80,T&S UK - Public Transport
,BEIS,UKRI - AHRC,20/07/18,T&S UK - Public Transport,"Histories,Culture & Heritage",Corporate Travel Management (North) Ltd,98243637,96.40,T&S UK - Public Transport
,BEIS,UKRI - AHRC,20/07/18,T&S UK - Public Transport,HR,Corporate Travel Management (North) Ltd,98243637,23.00,T&S UK - Public Transport
,BEIS,UKRI - AHRC,20/07/18,T&S UK - Public Transport,HR,Corporate Travel Management (North) Ltd,98243637,23.00,T&S UK - Public Transport
,BEIS,UKRI - AHRC,20/07/18,T&S UK - Public Transport,HR,Corporate Travel Management (North) Ltd,98243637,23.00,T&S UK - Public Transport
,BEIS,UKRI - AHRC,20/07/18,T&S UK - Public Transport,HR,Corporate Travel Management (North) Ltd,98243637,23.00,T&S UK - Public Transport
,BEIS,UKRI - AHRC,20/07/18,T&S UK - Public Transport,HR,Corporate Travel Management (North) Ltd,98243637,23.00,T&S UK - Public Transport
,BEIS,UKRI - AHRC,20/07/18,T&S UK - Public Transport,HR,Corporate Travel Management (North) Ltd,98243637,-18.00,T&S UK - Public Transport
,BEIS,UKRI - AHRC,20/07/18,T&S UK - Public Transport,HR,Corporate Travel Management (North) Ltd,98243637,-18.00,T&S UK - Public Transport
,BEIS,UKRI - AHRC,20/07/18,T&S UK - Public Transport,HR,Corporate Travel Management (North) Ltd,98243637,23.00,T&S UK - Public Transport
,BEIS,UKRI - AHRC,20/07/18,T&S UK - Public Transport,HR,Corporate Travel Management (North) Ltd,98243637,23.00,T&S UK - Public Transport
,BEIS,UKRI - AHRC,20/07/18,T&S UK - Public Transport,HR,Corporate Travel Management (North) Ltd,98243637,146.30,T&S UK - Public Transport
,BEIS,UKRI - AHRC,20/07/18,T&S UK - Public Transport,HR,Corporate Travel Management (North) Ltd,98243637,10.60,T&S UK - Public Transport
,BEIS,UKRI - AHRC,20/07/18,T&S UK - Public Transport,HR,Corporate Travel Management (North) Ltd,98243637,29.30,T&S UK - Public Transport
,BEIS,UKRI - AHRC,20/07/18,T&S UK - Public Transport,HR,Corporate Travel Management (North) Ltd,98243637,23.00,T&S UK - Public Transport
,BEIS,UKRI - AHRC,20/07/18,T&S UK - Public Transport,HR,Corporate Travel Management (North) Ltd,98243637,23.00,T&S UK - Public Transport
,BEIS,UKRI - AHRC,20/07/18,T&S UK - Public Transport,HR,Corporate Travel Management (North) Ltd,98243637,23.00,T&S UK - Public Transport
,BEIS,UKRI - AHRC,20/07/18,T&S UK - Public Transport,HR,Corporate Travel Management (North) Ltd,98243637,23.00,T&S UK - Public Transport
,BEIS,UKRI - AHRC,20/07/18,T&S UK - Public Transport,HR,Corporate Travel Management (North) Ltd,98243637,23.00,T&S UK - Public Transport
,BEIS,UKRI - AHRC,20/07/18,T&S UK - Public Transport,HR,Corporate Travel Management (North) Ltd,98243637,100.70,T&S UK - Public Transport
,BEIS,UKRI - AHRC,20/07/18,T&S UK - Public Transport,HR,Corporate Travel Management (North) Ltd,98243637,23.00,T&S UK - Public Transport
,BEIS,UKRI - AHRC,20/07/18,T&S UK - Public Transport,HR,Corporate Travel Management (North) Ltd,98243637,165.60,T&S UK - Public Transport
,BEIS,UKRI - AHRC,20/07/18,T&S UK - Public Transport,HR,Corporate Travel Management (North) Ltd,98243637,23.00,T&S UK - Public Transport
,BEIS,UKRI - AHRC,20/07/18,T&S UK - Public Transport,Industrial Strategy Challenge Fund (ISCF) - Creative Clusters,Corporate Travel Management (North) Ltd,98243637,-144.30,T&S UK - Public Transport
,BEIS,UKRI - AHRC,20/07/18,T&S UK - Public Transport,Industrial Strategy Challenge Fund (ISCF) - Creative Clusters,Corporate Travel Management (North) Ltd,98243637,194.20,T&S UK - Public Transport
,BEIS,UKRI - AHRC,20/07/18,T&S UK - Public Transport,Industrial Strategy Challenge Fund (ISCF) - Creative Clusters,Corporate Travel Management (North) Ltd,98243637,90.90,T&S UK - Public Transport
,BEIS,UKRI - AHRC,20/07/18,T&S UK - Public Transport,IS,Corporate Travel Management (North) Ltd,98243637,90.90,T&S UK - Public Transport
,BEIS,UKRI - AHRC,20/07/18,T&S UK - Public Transport,IS,Corporate Travel Management (North) Ltd,98243637,78.80,T&S UK - Public Transport
,BEIS,UKRI - AHRC,20/07/18,T&S UK - Public Transport,"Languages,Literature & International Engagement",Corporate Travel Management (North) Ltd,98243637,100.70,T&S UK - Public Transport
,BEIS,UKRI - AHRC,20/07/18,T&S UK - Public Transport,"Languages,Literature & International Engagement",Corporate Travel Management (North) Ltd,98243637,67.90,T&S UK - Public Transport
,BEIS,UKRI - AHRC,20/07/18,T&S UK - Public Transport,"Languages,Literature & International Engagement",Corporate Travel Management (North) Ltd,98243637,139.60,T&S UK - Public Transport
,BEIS,UKRI - AHRC,20/07/18,T&S UK - Public Transport,"Languages,Literature & International Engagement",Corporate Travel Management (North) Ltd,98243637,39.10,T&S UK - Public Transport
,BEIS,UKRI - AHRC,20/07/18,T&S UK - Public Transport,"Languages,Literature & International Engagement",Corporate Travel Management (North) Ltd,98243637,67.90,T&S UK - Public Transport
,BEIS,UKRI - AHRC,20/07/18,T&S UK - Public Transport,"Languages,Literature & International Engagement",Corporate Travel Management (North) Ltd,98243637,139.60,T&S UK - Public Transport
,BEIS,UKRI - AHRC,20/07/18,T&S UK - Public Transport,"Languages,Literature & International Engagement",Corporate Travel Management (North) Ltd,98243637,82.40,T&S UK - Public Transport
,BEIS,UKRI - AHRC,20/07/18,T&S UK - Public Transport,Newton Programme Delivery,Corporate Travel Management (North) Ltd,98243637,67.90,T&S UK - Public Transport
,BEIS,UKRI - AHRC,20/07/18,T&S UK - Public Transport,Newton Programme Delivery,Corporate Travel Management (North) Ltd,98243637,100.80,T&S UK - Public Transport
,BEIS,UKRI - AHRC,20/07/18,T&S UK - Public Transport,Newton Programme Delivery,Corporate Travel Management (North) Ltd,98243637,144.70,T&S UK - Public Transport
,BEIS,UKRI - AHRC,20/07/18,T&S UK - Public Transport,Newton Programme Delivery,Corporate Travel Management (North) Ltd,98243637,59.30,T&S UK - Public Transport
,BEIS,UKRI - AHRC,20/07/18,T&S UK - Public Transport,Newton Programme Delivery,Corporate Travel Management (North) Ltd,98243637,111.00,T&S UK - Public Transport
,BEIS,UKRI - AHRC,20/07/18,T&S UK - Public Transport,Newton Programme Delivery,Corporate Travel Management (North) Ltd,98243637,51.40,T&S UK - Public Transport
,BEIS,UKRI - AHRC,20/07/18,T&S UK - Public Transport,Newton Programme Delivery,Corporate Travel Management (North) Ltd,98243637,28.50,T&S UK - Public Transport
,BEIS,UKRI - AHRC,20/07/18,T&S UK - Public Transport,PSU JRS,Corporate Travel Management (North) Ltd,98243637,9.80,T&S UK - Public Transport
,BEIS,UKRI - AHRC,20/07/18,T&S UK - Public Transport,PSU JRS,Corporate Travel Management (North) Ltd,98243637,108.80,T&S UK - Public Transport
,BEIS,UKRI - AHRC,20/07/18,T&S UK - Public Transport,PSU JRS,Corporate Travel Management (North) Ltd,98243637,9.80,T&S UK - Public Transport
,BEIS,UKRI - AHRC,20/07/18,T&S UK - Public Transport,PSU JRS,Corporate Travel Management (North) Ltd,98243637,108.80,T&S UK - Public Transport
,BEIS,UKRI - AHRC,20/07/18,T&S UK - Public Transport,PSU JRS,Corporate Travel Management (North) Ltd,98243637,9.80,T&S UK - Public Transport
,BEIS,UKRI - AHRC,20/07/18,T&S UK - Public Transport,PSU JRS,Corporate Travel Management (North) Ltd,98243637,108.80,T&S UK - Public Transport
,BEIS,UKRI - AHRC,20/07/18,T&S UK - Public Transport,PSU Project Office,Corporate Travel Management (North) Ltd,98243637,139.60,T&S UK - Public Transport
,BEIS,UKRI - AHRC,20/07/18,T&S UK - Public Transport,PSU Project Office,Corporate Travel Management (North) Ltd,98243637,111.00,T&S UK - Public Transport
,BEIS,UKRI - AHRC,20/07/18,T&S UK - Public Transport,PSU Project Office,Corporate Travel Management (North) Ltd,98243637,111.00,T&S UK - Public Transport
,BEIS,UKRI - AHRC,20/07/18,T&S UK - Public Transport,PSU Project Office,Corporate Travel Management (North) Ltd,98243637,12.70,T&S UK - Public Transport
,BEIS,UKRI - AHRC,20/07/18,T&S UK - Public Transport,PSU Project Office,Corporate Travel Management (North) Ltd,98243637,133.60,T&S UK - Public Transport
,BEIS,UKRI - AHRC,20/07/18,T&S UK - Public Transport,PSU Project Office,Corporate Travel Management (North) Ltd,98243637,75.90,T&S UK - Public Transport
,BEIS,UKRI - AHRC,20/07/18,T&S UK - Public Transport,PSU Project Office,Corporate Travel Management (North) Ltd,98243637,160.00,T&S UK - Public Transport
,BEIS,UKRI - AHRC,20/07/18,T&S UK - Public Transport,PSU Project Office,Corporate Travel Management (North) Ltd,98243637,12.70,T&S UK - Public Transport
,BEIS,UKRI - AHRC,20/07/18,T&S UK - Public Transport,PSU Project Office,Corporate Travel Management (North) Ltd,98243637,133.60,T&S UK - Public Transport
,BEIS,UKRI - AHRC,20/07/18,T&S UK - Public Transport,Skills,Corporate Travel Management (North) Ltd,98243637,100.70,T&S UK - Public Transport
,BEIS,UKRI - AHRC,20/07/18,T&S UK - Public Transport,Skills,Corporate Travel Management (North) Ltd,98243637,106.70,T&S UK - Public Transport
,BEIS,UKRI - AHRC,20/07/18,T&S UK - Public Transport,Skills,Corporate Travel Management (North) Ltd,98243637,106.70,T&S UK - Public Transport
,BEIS,UKRI - AHRC,20/07/18,T&S UK - Public Transport,SMT,Corporate Travel Management (North) Ltd,98243637,2.00,T&S UK - Public Transport
,BEIS,UKRI - AHRC,20/07/18,T&S UK - Public Transport,SMT,Corporate Travel Management (North) Ltd,98243637,24.40,T&S UK - Public Transport
,BEIS,UKRI - AHRC,20/07/18,T&S UK - Public Transport,SMT,Corporate Travel Management (North) Ltd,98243637,55.80,T&S UK - Public Transport
,BEIS,UKRI - AHRC,20/07/18,T&S UK - Public Transport,SMT,Corporate Travel Management (North) Ltd,98243637,94.70,T&S UK - Public Transport
,BEIS,UKRI - AHRC,20/07/18,T&S UK - Public Transport,SMT,Corporate Travel Management (North) Ltd,98243637,7.20,T&S UK - Public Transport
,BEIS,UKRI - AHRC,20/07/18,T&S UK - Public Transport,SMT,Corporate Travel Management (North) Ltd,98243637,15.30,T&S UK - Public Transport
,BEIS,UKRI - AHRC,20/07/18,T&S UK - Public Transport,SMT,Corporate Travel Management (North) Ltd,98243637,50.20,T&S UK - Public Transport
,BEIS,UKRI - AHRC,20/07/18,T&S UK - Public Transport,SMT,Corporate Travel Management (North) Ltd,98243637,13.00,T&S UK - Public Transport
,BEIS,UKRI - AHRC,20/07/18,T&S UK - Public Transport,SMT,Corporate Travel Management (North) Ltd,98243637,66.10,T&S UK - Public Transport
,BEIS,UKRI - AHRC,20/07/18,T&S UK - Public Transport,SMT,Corporate Travel Management (North) Ltd,98243637,27.90,T&S UK - Public Transport
,BEIS,UKRI - AHRC,20/07/18,T&S UK - Public Transport,SMT,Corporate Travel Management (North) Ltd,98243637,47.90,T&S UK - Public Transport
,BEIS,UKRI - AHRC,20/07/18,T&S UK - Public Transport,SMT,Corporate Travel Management (North) Ltd,98243637,26.00,T&S UK - Public Transport
,BEIS,UKRI - AHRC,20/07/18,T&S UK - Public Transport,SMT,Corporate Travel Management (North) Ltd,98243637,133.60,T&S UK - Public Transport
,BEIS,UKRI - AHRC,20/07/18,T&S UK - Public Transport,SMT,Corporate Travel Management (North) Ltd,98243637,42.80,T&S UK - Public Transport
,BEIS,UKRI - AHRC,20/07/18,T&S UK - Public Transport,SMT,Corporate Travel Management (North) Ltd,98243637,1.00,T&S UK - Public Transport
,BEIS,UKRI - AHRC,20/07/18,T&S UK - Public Transport,SMT,Corporate Travel Management (North) Ltd,98243637,66.80,T&S UK - Public Transport
,BEIS,UKRI - AHRC,20/07/18,T&S UK - Public Transport,SMT,Corporate Travel Management (North) Ltd,98243637,18.30,T&S UK - Public Transport
,BEIS,UKRI - AHRC,20/07/18,T&S UK - Public Transport,SMT,Corporate Travel Management (North) Ltd,98243637,54.80,T&S UK - Public Transport
,BEIS,UKRI - AHRC,20/07/18,T&S UK - Public Transport,SMT,Corporate Travel Management (North) Ltd,98243637,27.00,T&S UK - Public Transport
,BEIS,UKRI - AHRC,20/07/18,T&S UK - Public Transport,SMT,Corporate Travel Management (North) Ltd,98243637,24.00,T&S UK - Public Transport
,BEIS,UKRI - AHRC,20/07/18,T&S UK - Public Transport,SMT,Corporate Travel Management (North) Ltd,98243637,133.60,T&S UK - Public Transport
,BEIS,UKRI - AHRC,20/07/18,T&S UK - Public Transport,SMT,Corporate Travel Management (North) Ltd,98243637,45.00,T&S UK - Public Transport
,BEIS,UKRI - AHRC,20/07/18,T&S UK - Public Transport,SMT,Corporate Travel Management (North) Ltd,98243637,38.20,T&S UK - Public Transport
,BEIS,UKRI - AHRC,20/07/18,T&S UK - Public Transport,SMT,Corporate Travel Management (North) Ltd,98243637,3.00,T&S UK - Public Transport
,BEIS,UKRI - AHRC,20/07/18,T&S UK - Public Transport,SMT,Corporate Travel Management (North) Ltd,98243637,10.40,T&S UK - Public Transport
,BEIS,UKRI - AHRC,20/07/18,T&S UK - Public Transport,SMT,Corporate Travel Management (North) Ltd,98243637,8.90,T&S UK - Public Transport
,BEIS,UKRI - AHRC,20/07/18,T&S UK - Public Transport,SMT,Corporate Travel Management (North) Ltd,98243637,66.80,T&S UK - Public Transport
,BEIS,UKRI - AHRC,20/07/18,T&S UK - Public Transport,SMT,Corporate Travel Management (North) Ltd,98243637,117.50,T&S UK - Public Transport
,BEIS,UKRI - AHRC,20/07/18,T&S UK - Public Transport,SMT,Corporate Travel Management (North) Ltd,98243637,72.00,T&S UK - Public Transport
,BEIS,UKRI - AHRC,20/07/18,T&S UK - Public Transport,SMT,Corporate Travel Management (North) Ltd,98243637,-61.80,T&S UK - Public Transport
,BEIS,UKRI - AHRC,20/07/18,T&S UK - Public Transport,SMT,Corporate Travel Management (North) Ltd,98243637,1.00,T&S UK - Public Transport
,BEIS,UKRI - AHRC,20/07/18,T&S UK - Public Transport,SMT,Corporate Travel Management (North) Ltd,98243637,19.90,T&S UK - Public Transport
,BEIS,UKRI - AHRC,20/07/18,T&S UK - Public Transport,SMT,Corporate Travel Management (North) Ltd,98243637,1.00,T&S UK - Public Transport
,BEIS,UKRI - AHRC,20/07/18,T&S UK - Public Transport,SMT,Corporate Travel Management (North) Ltd,98243637,65.20,T&S UK - Public Transport
,BEIS,UKRI - AHRC,20/07/18,T&S UK - Public Transport,SMT,Corporate Travel Management (North) Ltd,98243637,-9.20,T&S UK - Public Transport
,BEIS,UKRI - AHRC,20/07/18,T&S UK - Public Transport,SMT,Corporate Travel Management (North) Ltd,98243637,47.90,T&S UK - Public Transport
,BEIS,UKRI - AHRC,20/07/18,T&S UK - Public Transport,SMT,Corporate Travel Management (North) Ltd,98243637,1.00,T&S UK - Public Transport
,BEIS,UKRI - AHRC,20/07/18,T&S UK - Public Transport,SMT,Corporate Travel Management (North) Ltd,98243637,19.90,T&S UK - Public Transport
,BEIS,UKRI - AHRC,20/07/18,T&S UK - Public Transport,SMT,Corporate Travel Management (North) Ltd,98243637,47.90,T&S UK - Public Transport
,BEIS,UKRI - AHRC,20/07/18,T&S UK - Public Transport,SMT,Corporate Travel Management (North) Ltd,98243637,1.00,T&S UK - Public Transport
,BEIS,UKRI - AHRC,20/07/18,T&S UK - Public Transport,SMT,Corporate Travel Management (North) Ltd,98243637,103.40,T&S UK - Public Transport
,BEIS,UKRI - AHRC,20/07/18,T&S UK - Public Transport,SMT,Corporate Travel Management (North) Ltd,98243637,27.90,T&S UK - Public Transport
,BEIS,UKRI - AHRC,20/07/18,T&S UK - Public Transport,SMT,Corporate Travel Management (North) Ltd,98243637,2.00,T&S UK - Public Transport
,BEIS,UKRI - AHRC,20/07/18,T&S UK - Public Transport,SMT,Corporate Travel Management (North) Ltd,98243637,56.00,T&S UK - Public Transport
,BEIS,UKRI - AHRC,20/07/18,T&S UK - Public Transport,SMT,Corporate Travel Management (North) Ltd,98243637,29.00,T&S UK - Public Transport
,BEIS,UKRI - AHRC,20/07/18,T&S UK - Public Transport,SMT,Corporate Travel Management (North) Ltd,98243637,1.00,T&S UK - Public Transport
,BEIS,UKRI - AHRC,20/07/18,T&S UK - Public Transport,SMT,Corporate Travel Management (North) Ltd,98243637,16.00,T&S UK - Public Transport
,BEIS,UKRI - AHRC,20/07/18,T&S UK - Public Transport,SMT,Corporate Travel Management (North) Ltd,98243637,63.20,T&S UK - Public Transport
,BEIS,UKRI - AHRC,20/07/18,T&S UK - Public Transport,SMT,Corporate Travel Management (North) Ltd,98243637,63.20,T&S UK - Public Transport
,BEIS,UKRI - AHRC,20/07/18,T&S UK - Public Transport,SMT,Corporate Travel Management (North) Ltd,98243637,1.00,T&S UK - Public Transport
,BEIS,UKRI - AHRC,20/07/18,T&S UK - Public Transport,SMT,Corporate Travel Management (North) Ltd,98243637,10.40,T&S UK - Public Transport
,BEIS,UKRI - AHRC,20/07/18,T&S UK - Public Transport,SMT,Corporate Travel Management (North) Ltd,98243637,72.30,T&S UK - Public Transport
,BEIS,UKRI - AHRC,20/07/18,T&S UK - Public Transport,SMT,Corporate Travel Management (North) Ltd,98243637,121.60,T&S UK - Public Transport
,BEIS,UKRI - AHRC,20/07/18,T&S UK - Public Transport,SMT,Corporate Travel Management (North) Ltd,98243637,1.00,T&S UK - Public Transport
,BEIS,UKRI - AHRC,20/07/18,T&S UK - Public Transport,SMT,Corporate Travel Management (North) Ltd,98243637,38.20,T&S UK - Public Transport
,BEIS,UKRI - AHRC,20/07/18,T&S UK - Public Transport,SMT,Corporate Travel Management (North) Ltd,98243637,-70.40,T&S UK - Public Transport
,BEIS,UKRI - AHRC,20/07/18,T&S UK - Public Transport,SMT,Corporate Travel Management (North) Ltd,98243637,66.80,T&S UK - Public Transport
,BEIS,UKRI - AHRC,20/07/18,T&S UK - Public Transport,SMT,Corporate Travel Management (North) Ltd,98243637,26.50,T&S UK - Public Transport
,BEIS,UKRI - AHRC,20/07/18,T&S UK - Public Transport,SMT,Corporate Travel Management (North) Ltd,98243637,10.50,T&S UK - Public Transport
,BEIS,UKRI - AHRC,20/07/18,T&S UK - Public Transport,SMT,Corporate Travel Management (North) Ltd,98243637,1.00,T&S UK - Public Transport
,BEIS,UKRI - AHRC,20/07/18,T&S UK - Public Transport,SMT,Corporate Travel Management (North) Ltd,98243637,65.10,T&S UK - Public Transport
,BEIS,UKRI - AHRC,20/07/18,T&S UK - Public Transport,SMT,Corporate Travel Management (North) Ltd,98243637,94.70,T&S UK - Public Transport
,BEIS,UKRI - AHRC,20/07/18,T&S UK - Public Transport,SMT,Corporate Travel Management (North) Ltd,98243637,27.90,T&S UK - Public Transport
,BEIS,UKRI - AHRC,20/07/18,T&S UK - Public Transport,SMT,Corporate Travel Management (North) Ltd,98243637,55.00,T&S UK - Public Transport
,BEIS,UKRI - AHRC,20/07/18,T&S UK - Public Transport,SMT,Corporate Travel Management (North) Ltd,98243637,27.90,T&S UK - Public Transport
,BEIS,UKRI - AHRC,20/07/18,T&S UK - Public Transport,SMT,Corporate Travel Management (North) Ltd,98243637,105.00,T&S UK - Public Transport
,BEIS,UKRI - AHRC,20/07/18,T&S UK - Public Transport,SMT,Corporate Travel Management (North) Ltd,98243637,94.70,T&S UK - Public Transport
,BEIS,UKRI - AHRC,20/07/18,T&S UK - Public Transport,SMT,Corporate Travel Management (North) Ltd,98243637,94.70,T&S UK - Public Transport
,BEIS,UKRI - AHRC,20/07/18,T&S UK - Public Transport,SMT,Corporate Travel Management (North) Ltd,98243637,27.90,T&S UK - Public Transport
,BEIS,UKRI - AHRC,20/07/18,T&S UK - Public Transport,SMT,Corporate Travel Management (North) Ltd,98243637,57.00,T&S UK - Public Transport
,BEIS,UKRI - AHRC,20/07/18,T&S UK - Public Transport,SMT,Corporate Travel Management (North) Ltd,98243637,5.00,T&S UK - Public Transport
,BEIS,UKRI - AHRC,20/07/18,T&S UK - Public Transport,SMT,Corporate Travel Management (North) Ltd,98243637,-84.70,T&S UK - Public Transport
,BEIS,UKRI - AHRC,20/07/18,T&S UK - Public Transport,SMT,Corporate Travel Management (North) Ltd,98243637,31.50,T&S UK - Public Transport
,BEIS,UKRI - AHRC,20/07/18,T&S UK - Public Transport,SMT,Corporate Travel Management (North) Ltd,98243637,2.00,T&S UK - Public Transport
,BEIS,UKRI - AHRC,20/07/18,T&S UK - Public Transport,SMT,Corporate Travel Management (North) Ltd,98243637,105.00,T&S UK - Public Transport
,BEIS,UKRI - AHRC,20/07/18,T&S UK - Public Transport,SMT,Corporate Travel Management (North) Ltd,98243637,59.00,T&S UK - Public Transport
,BEIS,UKRI - AHRC,20/07/18,T&S UK - Public Transport,SMT,Corporate Travel Management (North) Ltd,98243637,49.00,T&S UK - Public Transport
,BEIS,UKRI - AHRC,20/07/18,T&S UK - Public Transport,SMT,Corporate Travel Management (North) Ltd,98243637,14.90,T&S UK - Public Transport
,BEIS,UKRI - AHRC,20/07/18,T&S UK - Public Transport,SMT,Corporate Travel Management (North) Ltd,98243637,1.00,T&S UK - Public Transport
,BEIS,UKRI - AHRC,20/07/18,T&S UK - Public Transport,SMT,Corporate Travel Management (North) Ltd,98243637,39.50,T&S UK - Public Transport
,BEIS,UKRI - AHRC,20/07/18,T&S UK - Public Transport,SMT,Corporate Travel Management (North) Ltd,98243637,36.00,T&S UK - Public Transport
,BEIS,UKRI - AHRC,20/07/18,T&S UK - Public Transport,SMT,Corporate Travel Management (North) Ltd,98243637,94.70,T&S UK - Public Transport
,BEIS,UKRI - AHRC,20/07/18,T&S UK - Public Transport,SMT,Corporate Travel Management (North) Ltd,98243637,94.70,T&S UK - Public Transport
,BEIS,UKRI - AHRC,20/07/18,T&S UK - Public Transport,SMT,Corporate Travel Management (North) Ltd,98243637,1.00,T&S UK - Public Transport
,BEIS,UKRI - AHRC,20/07/18,T&S UK - Public Transport,SMT,Corporate Travel Management (North) Ltd,98243637,68.70,T&S UK - Public Transport
,BEIS,UKRI - AHRC,20/07/18,T&S UK - Public Transport,SMT,Corporate Travel Management (North) Ltd,98243637,27.90,T&S UK - Public Transport
,BEIS,UKRI - AHRC,20/07/18,T&S UK - Public Transport,SMT,Corporate Travel Management (North) Ltd,98243637,2.00,T&S UK - Public Transport
,BEIS,UKRI - AHRC,20/07/18,T&S UK - Public Transport,SMT,Corporate Travel Management (North) Ltd,98243637,47.30,T&S UK - Public Transport
,BEIS,UKRI - AHRC,20/07/18,T&S UK - Public Transport,SMT,Corporate Travel Management (North) Ltd,98243637,19.20,T&S UK - Public Transport
,BEIS,UKRI - AHRC,20/07/18,T&S UK - Public Transport,SMT,Corporate Travel Management (North) Ltd,98243637,1.00,T&S UK - Public Transport
,BEIS,UKRI - AHRC,20/07/18,T&S UK - Public Transport,SMT,Corporate Travel Management (North) Ltd,98243637,19.90,T&S UK - Public Transport
,BEIS,UKRI - AHRC,20/07/18,T&S UK - Public Transport,SMT,Corporate Travel Management (North) Ltd,98243637,128.80,T&S UK - Public Transport
,BEIS,UKRI - AHRC,20/07/18,T&S UK - Public Transport,SMT,Corporate Travel Management (North) Ltd,98243637,37.00,T&S UK - Public Transport
,BEIS,UKRI - AHRC,20/07/18,T&S UK - Public Transport,SMT,Corporate Travel Management (North) Ltd,98243637,81.00,T&S UK - Public Transport
,BEIS,UKRI - AHRC,20/07/18,T&S UK - Public Transport,SMT,Corporate Travel Management (North) Ltd,98243637,30.60,T&S UK - Public Transport
,BEIS,UKRI - AHRC,20/07/18,T&S UK - Public Transport,SMT,Corporate Travel Management (North) Ltd,98243637,38.20,T&S UK - Public Transport
,BEIS,UKRI - AHRC,20/07/18,T&S UK - Public Transport,SMT,Corporate Travel Management (North) Ltd,98243637,26.00,T&S UK - Public Transport
,BEIS,UKRI - AHRC,20/07/18,T&S UK - Public Transport,SMT,Corporate Travel Management (North) Ltd,98243637,55.00,T&S UK - Public Transport
,BEIS,UKRI - AHRC,24/07/18,Training Awards - Postgraduates,Collabrative Doctoral Grants - Block Payment,Courtauld Institute of Art,98230015,5379.50,Training Awards - Postgraduates
,BEIS,UKRI - AHRC,24/07/18,Training Awards - Postgraduates,Collabrative Doctoral Grants - Block Payment,Courtauld Institute of Art,98230037,5379.50,Training Awards - Postgraduates
,BEIS,UKRI - AHRC,24/07/18,Training Awards - Postgraduates,Collabrative Doctoral Grants - Block Payment,Courtauld Institute of Art,98230094,5374.50,Training Awards - Postgraduates
,BEIS,UKRI - AHRC,24/07/18,Training Awards - Postgraduates,Collabrative Doctoral Grants - Block Payment,Courtauld Institute of Art,98230159,5374.50,Training Awards - Postgraduates
,BEIS,UKRI - AHRC,24/07/18,Training Awards - Postgraduates,Collabrative Doctoral Grants - Block Payment,Coventry University,98230064,4874.50,Training Awards - Postgraduates
,BEIS,UKRI - AHRC,24/07/18,Training Awards - Postgraduates,Collabrative Doctoral Grants - Block Payment,De Montfort University,98230010,4879.50,Training Awards - Postgraduates
,BEIS,UKRI - AHRC,24/07/18,Training Awards - Postgraduates,Collabrative Doctoral Grants - Block Payment,De Montfort University,98230010,4879.50,Training Awards - Postgraduates
,BEIS,UKRI - AHRC,24/07/18,Training Awards - Postgraduates,Collabrative Doctoral Grants - Block Payment,De Montfort University,98230155,4874.50,Training Awards - Postgraduates
,BEIS,UKRI - AHRC,24/07/18,Training Awards - Postgraduates,Collabrative Doctoral Grants - Block Payment,De Montfort University,98230155,4874.50,Training Awards - Postgraduates
,BEIS,UKRI - AHRC,24/07/18,Training Awards - Postgraduates,Collabrative Doctoral Grants - Block Payment,De Montfort University,98230163,4874.50,Training Awards - Postgraduates
,BEIS,UKRI - AHRC,24/07/18,Training Awards - Postgraduates,Collabrative Doctoral Grants - Block Payment,De Montfort University,98230163,4874.50,Training Awards - Postgraduates
,BEIS,UKRI - AHRC,17/07/18,Consultancy Services,Finance,DUNFORD CONSULTING LTD,98222360,282.94,Consultancy Services
,BEIS,UKRI - AHRC,17/07/18,Consultancy Services,Finance,DUNFORD CONSULTING LTD,98222360,102.88,Consultancy Services
,BEIS,UKRI - AHRC,19/07/18,Nursery Deductions,Balance Sheet,EDENRED (UK GROUP) LTD,98241844,3695.22,Nursery Deductions
,BEIS,UKRI - AHRC,19/07/18,Nursery Deductions,Balance Sheet,EDENRED (UK GROUP) LTD,98241849,606.00,Nursery Deductions
,BEIS,UKRI - AHRC,03/07/18,Other Staff Benefits,Corporate Services,EDENRED (UK GROUP) LTD,98219341,9.29,Other Staff Benefits
,BEIS,UKRI - AHRC,20/07/18,Other Staff Benefits,Corporate Services,EDENRED (UK GROUP) LTD,98241838,7.98,Other Staff Benefits
,BEIS,UKRI - AHRC,20/07/18,Other Staff Benefits,Corporate Services,EDENRED (UK GROUP) LTD,98241846,1.31,Other Staff Benefits
,BEIS,UKRI - AHRC,20/07/18,Advertising & Promotion,Communications,Firebird Films Ltd,98208512,2955.60,Advertising & Promotion
,BEIS,UKRI - AHRC,20/07/18,Advertising & Promotion,Communications,Firebird Films Ltd,98208512,164.40,Advertising & Promotion
,BEIS,UKRI - AHRC,23/07/18,Hospitality,Secretariat,Fratello�s,98244058,300.00,Hospitality
,BEIS,UKRI - AHRC,18/07/18,Marketing & PR,Communications,Gerard Silverstone t/a Geri Silverstone Communications Consultants,98234444,4200.00,Marketing & PR
,BEIS,UKRI - AHRC,24/07/18,Training Awards - Postgraduates,Collabrative Doctoral Grants - Block Payment,Glasgow School of Art,98230168,4874.50,Training Awards - Postgraduates
,BEIS,UKRI - AHRC,06/07/18,International Subscriptions,Communications,Gorkana Group Ltd,98221002,3058.80,International Subscriptions
,BEIS,UKRI - AHRC,24/07/18,Training Awards - Postgraduates,Collabrative Doctoral Grants - Block Payment,Guildhall School of Music & Drama,98230100,5374.50,Training Awards - Postgraduates
,BEIS,UKRI - AHRC,06/07/18,Agency Staff,Finance,Hays Specialist Recruitment Ltd,98229596,2672.76,Agency Staff
,BEIS,UKRI - AHRC,17/07/18,Agency Staff,Finance,Hays Specialist Recruitment Ltd,98235608,2672.76,Agency Staff
,BEIS,UKRI - AHRC,31/07/18,Agency Staff,PSU Project Office,Hays Specialist Recruitment Ltd,98222508,790.62,Agency Staff
,BEIS,UKRI - AHRC,31/07/18,Agency Staff,PSU Project Office,Hays Specialist Recruitment Ltd,98226430,790.62,Agency Staff
,BEIS,UKRI - AHRC,03/07/18,Contract Staff,Finance,Hays Specialist Recruitment Ltd,98219650,1816.50,Contract Staff
,BEIS,UKRI - AHRC,03/07/18,Contract Staff,Finance,Hays Specialist Recruitment Ltd,98222510,1566.24,Contract Staff
,BEIS,UKRI - AHRC,03/07/18,Contract Staff,Finance,Hays Specialist Recruitment Ltd,98225196,1816.50,Contract Staff
,BEIS,UKRI - AHRC,03/07/18,Contract Staff,Finance,Hays Specialist Recruitment Ltd,98226435,1566.24,Contract Staff
,BEIS,UKRI - AHRC,13/07/18,Contract Staff,Finance,Hays Specialist Recruitment Ltd,98235614,1816.50,Contract Staff
,BEIS,UKRI - AHRC,13/07/18,Contract Staff,Finance,Hays Specialist Recruitment Ltd,98237618,1816.50,Contract Staff
,BEIS,UKRI - AHRC,27/07/18,Contract Staff,Finance,Hays Specialist Recruitment Ltd,98247478,1089.90,Contract Staff
,BEIS,UKRI - AHRC,31/07/18,Contract Staff,Finance,Hays Specialist Recruitment Ltd,98247442,1566.24,Contract Staff
,BEIS,UKRI - AHRC,31/07/18,Contract Staff,Finance,Hays Specialist Recruitment Ltd,98248726,1566.24,Contract Staff
,BEIS,UKRI - AHRC,12/07/18,Contract Staff,PSU Project Office,Hays Specialist Recruitment Ltd,98225825,3027.78,Contract Staff
,BEIS,UKRI - AHRC,12/07/18,Contract Staff,PSU Project Office,Hays Specialist Recruitment Ltd,98225827,3027.78,Contract Staff
,BEIS,UKRI - AHRC,12/07/18,Contract Staff,PSU Project Office,Hays Specialist Recruitment Ltd,98225829,454.16,Contract Staff
,BEIS,UKRI - AHRC,23/07/18,Contract Staff,PSU Project Office,Hays Specialist Recruitment Ltd,98237567,3027.78,Contract Staff
,BEIS,UKRI - AHRC,23/07/18,Contract Staff,PSU Project Office,Hays Specialist Recruitment Ltd,98237570,3027.78,Contract Staff
,BEIS,UKRI - AHRC,23/07/18,Contract Staff,PSU Project Office,Hays Specialist Recruitment Ltd,98242843,3027.78,Contract Staff
,BEIS,UKRI - AHRC,26/07/18,Contract Staff,PSU Project Office,Hays Specialist Recruitment Ltd,98247441,605.56,Contract Staff
,BEIS,UKRI - AHRC,03/07/18,Recruitment Costs,Finance,Hays Specialist Recruitment Ltd,98185005,1816.50,Recruitment Costs
,BEIS,UKRI - AHRC,03/07/18,Recruitment Costs,Finance,Hays Specialist Recruitment Ltd,98189287,1453.20,Recruitment Costs
,BEIS,UKRI - AHRC,03/07/18,Recruitment Costs,Finance,Hays Specialist Recruitment Ltd,98193850,1816.50,Recruitment Costs
,BEIS,UKRI - AHRC,03/07/18,Recruitment Costs,Finance,Hays Specialist Recruitment Ltd,98196667,1816.50,Recruitment Costs
,BEIS,UKRI - AHRC,03/07/18,Recruitment Costs,Finance,Hays Specialist Recruitment Ltd,98205348,1089.90,Recruitment Costs
,BEIS,UKRI - AHRC,03/07/18,Recruitment Costs,Finance,Hays Specialist Recruitment Ltd,98216363,1816.50,Recruitment Costs
,BEIS,UKRI - AHRC,03/07/18,Recruitment Costs,Finance,Hays Specialist Recruitment Ltd,98219657,1816.50,Recruitment Costs
,BEIS,UKRI - AHRC,03/07/18,Recruitment Costs,Finance,Hays Specialist Recruitment Ltd,98225870,1634.86,Recruitment Costs
,BEIS,UKRI - AHRC,06/07/18,Recruitment Costs,Finance,Hays Specialist Recruitment Ltd,98232476,1816.50,Recruitment Costs
,BEIS,UKRI - AHRC,09/07/18,Recruitment Costs,Finance,Hays Specialist Recruitment Ltd,98233675,1566.24,Recruitment Costs
,BEIS,UKRI - AHRC,19/07/18,Recruitment Costs,Finance,Hays Specialist Recruitment Ltd,98241675,1816.50,Recruitment Costs
,BEIS,UKRI - AHRC,26/07/18,Recruitment Costs,Finance,Hays Specialist Recruitment Ltd,98247432,1816.50,Recruitment Costs
,BEIS,UKRI - AHRC,26/07/18,Recruitment Costs,Finance,Hays Specialist Recruitment Ltd,98247437,1816.50,Recruitment Costs
,BEIS,UKRI - AHRC,24/07/18,Training Awards - Postgraduates,Collabrative Doctoral Grants - Block Payment,Heriot Watt University,98230106,4874.50,Training Awards - Postgraduates
,BEIS,UKRI - AHRC,12/07/18,Apprenticeship Levy,Corporate Services,HM Revenue & Customs,98235562,2381.00,Apprenticeship Levy
,BEIS,UKRI - AHRC,12/07/18,NI Payable Salaries,Balance Sheet,HM Revenue & Customs,98235559,89696.84,NI Payable Salaries
,BEIS,UKRI - AHRC,12/07/18,PAYE Payable Salaries,Balance Sheet,HM Revenue & Customs,98235560,66819.36,PAYE Payable Salaries
,BEIS,UKRI - AHRC,12/07/18,Student Loans,Balance Sheet,HM Revenue & Customs,98235561,3814.00,Student Loans
,BEIS,UKRI - AHRC,31/07/18,Staff Training,HR,INTERNATIONAL CORRESPONDENCE SCHOOLS LTD T/A ICS,98250348,-2135.00,Staff Training
,BEIS,UKRI - AHRC,05/07/18,Data Storage & Recovery,Corporate Services,Iron Mountain (UK) PLC,98230441,178.09,Data Storage & Recovery
,BEIS,UKRI - AHRC,05/07/18,Contract Staff,IS,JC Web Services Ltd,98231623,7800.00,Contract Staff
,BEIS,UKRI - AHRC,11/07/18,Staff Training,Communications,Kim Slade T/A Touch Video Academy,98230332,2000.00,Staff Training
,BEIS,UKRI - AHRC,24/07/18,Training Awards - Postgraduates,Collabrative Doctoral Grants - Block Payment,King's College London,98229408,808.00,Training Awards - Postgraduates
,BEIS,UKRI - AHRC,24/07/18,Training Awards - Postgraduates,Collabrative Doctoral Grants - Block Payment,King's College London,98229994,10759.00,Training Awards - Postgraduates
,BEIS,UKRI - AHRC,24/07/18,Training Awards - Postgraduates,Collabrative Doctoral Grants - Block Payment,King's College London,98229994,10759.00,Training Awards - Postgraduates
,BEIS,UKRI - AHRC,24/07/18,Training Awards - Postgraduates,Collabrative Doctoral Grants - Block Payment,King's College London,98230019,5379.50,Training Awards - Postgraduates
,BEIS,UKRI - AHRC,24/07/18,Training Awards - Postgraduates,Collabrative Doctoral Grants - Block Payment,King's College London,98230019,5379.50,Training Awards - Postgraduates
,BEIS,UKRI - AHRC,24/07/18,Training Awards - Postgraduates,Collabrative Doctoral Grants - Block Payment,King's College London,98230033,5379.50,Training Awards - Postgraduates
,BEIS,UKRI - AHRC,24/07/18,Training Awards - Postgraduates,Collabrative Doctoral Grants - Block Payment,King's College London,98230033,5379.50,Training Awards - Postgraduates
,BEIS,UKRI - AHRC,24/07/18,Training Awards - Postgraduates,Collabrative Doctoral Grants - Block Payment,King's College London,98230153,5374.50,Training Awards - Postgraduates
,BEIS,UKRI - AHRC,24/07/18,Training Awards - Postgraduates,Collabrative Doctoral Grants - Block Payment,King's College London,98230153,5374.50,Training Awards - Postgraduates
,BEIS,UKRI - AHRC,24/07/18,Training Awards - Postgraduates,Collabrative Doctoral Grants - Block Payment,Lancaster University,98230120,5015.15,Training Awards - Postgraduates
,BEIS,UKRI - AHRC,24/07/18,Training Awards - Postgraduates,Collabrative Doctoral Grants - Block Payment,Lancaster University,98230120,5015.15,Training Awards - Postgraduates
,BEIS,UKRI - AHRC,25/07/18,Legal & Professional Services,Industrial Strategy Challenge Fund (ISCF) - Creative Clusters,Lilley Associates Ltd,98246007,11250.00,Legal & Professional Services
,BEIS,UKRI - AHRC,24/07/18,Training Awards - Postgraduates,Collabrative Doctoral Grants - Block Payment,London South Bank University,98230071,5374.50,Training Awards - Postgraduates
,BEIS,UKRI - AHRC,24/07/18,Training Awards - Postgraduates,International Placement Scheme,Loughborough University,98229419,4470.00,Training Awards - Postgraduates
,BEIS,UKRI - AHRC,25/07/18,Council & Committee Honoraria,Secretariat,Maja Maricevic,98240110,500.00,Council & Committee Honoraria
,BEIS,UKRI - AHRC,24/07/18,Training Awards - Postgraduates,Collabrative Doctoral Grants - Block Payment,Manchester Metropolitan University,98229987,4879.50,Training Awards - Postgraduates
,BEIS,UKRI - AHRC,24/07/18,Training Awards - Postgraduates,Collabrative Doctoral Grants - Block Payment,Manchester Metropolitan University,98230001,4879.50,Training Awards - Postgraduates
,BEIS,UKRI - AHRC,24/07/18,Training Awards - Postgraduates,Collabrative Doctoral Grants - Block Payment,Manchester Metropolitan University,98230092,4874.50,Training Awards - Postgraduates
,BEIS,UKRI - AHRC,17/07/18,Research Grant Expenditure,RCUK Global Challenges Research Fund (RCUK GCRF),Medical Research Council,98224174,13235.74,Research Grant Expenditure
,BEIS,UKRI - AHRC,17/07/18,Research Grant Expenditure,RCUK Global Challenges Research Fund (RCUK GCRF),Natural Environment Research Council,98215912,15936.75,Research Grant Expenditure
,BEIS,UKRI - AHRC,17/07/18,Secondments,PSU JRS,Natural Environment Research Council,98229427,9968.74,Secondments
,BEIS,UKRI - AHRC,17/07/18,Secondments,Secretariat,Natural Environment Research Council,98217648,2764.40,Secondments
,BEIS,UKRI - AHRC,10/07/18,Fees (Including College Members),Industrial Strategy Challenge Fund (ISCF) - Creative Clusters,Non Employee Expenses Supplier,98234451,170.00,Fees (Including College Members)
,BEIS,UKRI - AHRC,18/07/18,Fees (Including College Members),Industrial Strategy Challenge Fund (ISCF) - Creative Clusters,Non Employee Expenses Supplier,98240998,2000.00,Fees (Including College Members)
,BEIS,UKRI - AHRC,18/07/18,Fees (Including College Members),Industrial Strategy Challenge Fund (ISCF) - Creative Clusters,Non Employee Expenses Supplier,98241005,900.00,Fees (Including College Members)
,BEIS,UKRI - AHRC,18/07/18,Fees (Including College Members),Industrial Strategy Challenge Fund (ISCF) - Creative Clusters,Non Employee Expenses Supplier,98241007,2000.00,Fees (Including College Members)
,BEIS,UKRI - AHRC,18/07/18,Fees (Including College Members),Industrial Strategy Challenge Fund (ISCF) - Creative Clusters,Non Employee Expenses Supplier,98241008,2400.00,Fees (Including College Members)
,BEIS,UKRI - AHRC,31/07/18,Fees (Including College Members),Industrial Strategy Challenge Fund (ISCF) - Creative Clusters,Non Employee Expenses Supplier,98249562,1000.00,Fees (Including College Members)
,BEIS,UKRI - AHRC,31/07/18,Fees (Including College Members),Industrial Strategy Challenge Fund (ISCF) - Creative Clusters,Non Employee Expenses Supplier,98249581,2000.00,Fees (Including College Members)
,BEIS,UKRI - AHRC,24/07/18,Meetings & Catering,HERA JRP Project,Non Employee Expenses Supplier,98246047,-4412.13,Meetings & Catering
,BEIS,UKRI - AHRC,03/07/18,Non-staff travel and subsistance,"AHRC - Strategic Planning, Evidence & Impact",Non Employee Expenses Supplier,98228619,132.90,Non-staff travel and subsistance
,BEIS,UKRI - AHRC,03/07/18,Non-staff travel and subsistance,"AHRC - Strategic Planning, Evidence & Impact",Non Employee Expenses Supplier,98228620,207.20,Non-staff travel and subsistance
,BEIS,UKRI - AHRC,03/07/18,Non-staff travel and subsistance,"AHRC - Strategic Planning, Evidence & Impact",Non Employee Expenses Supplier,98228622,266.46,Non-staff travel and subsistance
,BEIS,UKRI - AHRC,03/07/18,Non-staff travel and subsistance,"AHRC - Strategic Planning, Evidence & Impact",Non Employee Expenses Supplier,98228624,130.20,Non-staff travel and subsistance
,BEIS,UKRI - AHRC,03/07/18,Non-staff travel and subsistance,"AHRC - Strategic Planning, Evidence & Impact",Non Employee Expenses Supplier,98228625,323.02,Non-staff travel and subsistance
,BEIS,UKRI - AHRC,03/07/18,Non-staff travel and subsistance,"AHRC - Strategic Planning, Evidence & Impact",Non Employee Expenses Supplier,98228626,414.86,Non-staff travel and subsistance
,BEIS,UKRI - AHRC,18/07/18,Non-staff travel and subsistance,"AHRC - Strategic Planning, Evidence & Impact",Non Employee Expenses Supplier,98241001,94.00,Non-staff travel and subsistance
,BEIS,UKRI - AHRC,18/07/18,Non-staff travel and subsistance,"AHRC - Strategic Planning, Evidence & Impact",Non Employee Expenses Supplier,98241009,58.30,Non-staff travel and subsistance
,BEIS,UKRI - AHRC,31/07/18,Non-staff travel and subsistance,Communications,Non Employee Expenses Supplier,98249573,171.60,Non-staff travel and subsistance
,BEIS,UKRI - AHRC,31/07/18,Non-staff travel and subsistance,Communications,Non Employee Expenses Supplier,98249583,21.45,Non-staff travel and subsistance
,BEIS,UKRI - AHRC,18/07/18,Non-staff travel and subsistance,Creative Arts & Digital Humanities,Non Employee Expenses Supplier,98241016,180.45,Non-staff travel and subsistance
,BEIS,UKRI - AHRC,31/07/18,Non-staff travel and subsistance,Creative Arts & Digital Humanities,Non Employee Expenses Supplier,98249574,69.20,Non-staff travel and subsistance
,BEIS,UKRI - AHRC,03/07/18,Non-staff travel and subsistance,Finance,Non Employee Expenses Supplier,98228623,9.80,Non-staff travel and subsistance
,BEIS,UKRI - AHRC,31/07/18,Non-staff travel and subsistance,GCRF - Programme Delivery,Non Employee Expenses Supplier,98249563,159.80,Non-staff travel and subsistance
,BEIS,UKRI - AHRC,31/07/18,Non-staff travel and subsistance,GCRF - Programme Delivery,Non Employee Expenses Supplier,98249564,109.60,Non-staff travel and subsistance
,BEIS,UKRI - AHRC,31/07/18,Non-staff travel and subsistance,GCRF - Programme Delivery,Non Employee Expenses Supplier,98249565,222.80,Non-staff travel and subsistance
,BEIS,UKRI - AHRC,31/07/18,Non-staff travel and subsistance,GCRF - Programme Delivery,Non Employee Expenses Supplier,98249566,133.45,Non-staff travel and subsistance
,BEIS,UKRI - AHRC,31/07/18,Non-staff travel and subsistance,GCRF - Programme Delivery,Non Employee Expenses Supplier,98249567,176.59,Non-staff travel and subsistance
,BEIS,UKRI - AHRC,31/07/18,Non-staff travel and subsistance,GCRF - Programme Delivery,Non Employee Expenses Supplier,98249590,148.40,Non-staff travel and subsistance
,BEIS,UKRI - AHRC,18/07/18,Non-staff travel and subsistance,"Histories,Culture & Heritage",Non Employee Expenses Supplier,98240996,100.80,Non-staff travel and subsistance
,BEIS,UKRI - AHRC,18/07/18,Non-staff travel and subsistance,"Histories,Culture & Heritage",Non Employee Expenses Supplier,98241014,169.40,Non-staff travel and subsistance
,BEIS,UKRI - AHRC,18/07/18,Non-staff travel and subsistance,"Histories,Culture & Heritage",Non Employee Expenses Supplier,98241015,434.70,Non-staff travel and subsistance
,BEIS,UKRI - AHRC,18/07/18,Non-staff travel and subsistance,"Histories,Culture & Heritage",Non Employee Expenses Supplier,98241017,231.59,Non-staff travel and subsistance
,BEIS,UKRI - AHRC,31/07/18,Non-staff travel and subsistance,"Histories,Culture & Heritage",Non Employee Expenses Supplier,98249575,160.00,Non-staff travel and subsistance
,BEIS,UKRI - AHRC,31/07/18,Non-staff travel and subsistance,"Histories,Culture & Heritage",Non Employee Expenses Supplier,98249584,265.29,Non-staff travel and subsistance
,BEIS,UKRI - AHRC,31/07/18,Non-staff travel and subsistance,"Histories,Culture & Heritage",Non Employee Expenses Supplier,98249585,101.44,Non-staff travel and subsistance
,BEIS,UKRI - AHRC,31/07/18,Non-staff travel and subsistance,"Histories,Culture & Heritage",Non Employee Expenses Supplier,98249586,201.60,Non-staff travel and subsistance
,BEIS,UKRI - AHRC,03/07/18,Non-staff travel and subsistance,History & Thought,Non Employee Expenses Supplier,98228621,90.85,Non-staff travel and subsistance
,BEIS,UKRI - AHRC,10/07/18,Non-staff travel and subsistance,Industrial Strategy Challenge Fund (ISCF) - Creative Clusters,Non Employee Expenses Supplier,98234452,266.94,Non-staff travel and subsistance
,BEIS,UKRI - AHRC,18/07/18,Non-staff travel and subsistance,Industrial Strategy Challenge Fund (ISCF) - Creative Clusters,Non Employee Expenses Supplier,98240997,132.95,Non-staff travel and subsistance
,BEIS,UKRI - AHRC,18/07/18,Non-staff travel and subsistance,Industrial Strategy Challenge Fund (ISCF) - Creative Clusters,Non Employee Expenses Supplier,98241004,47.99,Non-staff travel and subsistance
,BEIS,UKRI - AHRC,18/07/18,Non-staff travel and subsistance,Industrial Strategy Challenge Fund (ISCF) - Creative Clusters,Non Employee Expenses Supplier,98241006,329.03,Non-staff travel and subsistance
,BEIS,UKRI - AHRC,31/07/18,Non-staff travel and subsistance,Industrial Strategy Challenge Fund (ISCF) - Creative Clusters,Non Employee Expenses Supplier,98249557,10.38,Non-staff travel and subsistance
,BEIS,UKRI - AHRC,31/07/18,Non-staff travel and subsistance,Industrial Strategy Challenge Fund (ISCF) - Creative Clusters,Non Employee Expenses Supplier,98249561,158.80,Non-staff travel and subsistance
,BEIS,UKRI - AHRC,31/07/18,Non-staff travel and subsistance,"Languages,Literature & International Engagement",Non Employee Expenses Supplier,98249576,65.70,Non-staff travel and subsistance
,BEIS,UKRI - AHRC,31/07/18,Non-staff travel and subsistance,"Languages,Literature & International Engagement",Non Employee Expenses Supplier,98249577,33.75,Non-staff travel and subsistance
,BEIS,UKRI - AHRC,31/07/18,Non-staff travel and subsistance,"Languages,Literature & International Engagement",Non Employee Expenses Supplier,98249578,199.75,Non-staff travel and subsistance
,BEIS,UKRI - AHRC,31/07/18,Non-staff travel and subsistance,"Languages,Literature & International Engagement",Non Employee Expenses Supplier,98249579,130.10,Non-staff travel and subsistance
,BEIS,UKRI - AHRC,31/07/18,Non-staff travel and subsistance,"Languages,Literature & International Engagement",Non Employee Expenses Supplier,98249580,224.60,Non-staff travel and subsistance
,BEIS,UKRI - AHRC,31/07/18,Non-staff travel and subsistance,"Languages,Literature & International Engagement",Non Employee Expenses Supplier,98249582,278.08,Non-staff travel and subsistance
,BEIS,UKRI - AHRC,18/07/18,Non-staff travel and subsistance,New Programme Development,Non Employee Expenses Supplier,98241002,66.25,Non-staff travel and subsistance
,BEIS,UKRI - AHRC,18/07/18,Non-staff travel and subsistance,New Programme Development,Non Employee Expenses Supplier,98241003,104.35,Non-staff travel and subsistance
,BEIS,UKRI - AHRC,31/07/18,Non-staff travel and subsistance,New Programme Development,Non Employee Expenses Supplier,98249558,47.70,Non-staff travel and subsistance
,BEIS,UKRI - AHRC,31/07/18,Non-staff travel and subsistance,New Programme Development,Non Employee Expenses Supplier,98249559,33.50,Non-staff travel and subsistance
,BEIS,UKRI - AHRC,31/07/18,Non-staff travel and subsistance,New Programme Development,Non Employee Expenses Supplier,98249560,141.80,Non-staff travel and subsistance
,BEIS,UKRI - AHRC,31/07/18,Non-staff travel and subsistance,Newton Programme,Non Employee Expenses Supplier,98249568,724.71,Non-staff travel and subsistance
,BEIS,UKRI - AHRC,31/07/18,Non-staff travel and subsistance,Newton Programme,Non Employee Expenses Supplier,98249569,957.49,Non-staff travel and subsistance
,BEIS,UKRI - AHRC,31/07/18,Non-staff travel and subsistance,Newton Programme,Non Employee Expenses Supplier,98249570,376.94,Non-staff travel and subsistance
,BEIS,UKRI - AHRC,31/07/18,Non-staff travel and subsistance,Newton Programme,Non Employee Expenses Supplier,98249571,897.05,Non-staff travel and subsistance
,BEIS,UKRI - AHRC,31/07/18,Non-staff travel and subsistance,Newton Programme,Non Employee Expenses Supplier,98249572,708.85,Non-staff travel and subsistance
,BEIS,UKRI - AHRC,31/07/18,Non-staff travel and subsistance,Newton Programme,Non Employee Expenses Supplier,98249587,27.70,Non-staff travel and subsistance
,BEIS,UKRI - AHRC,31/07/18,Non-staff travel and subsistance,Newton Programme,Non Employee Expenses Supplier,98249588,875.06,Non-staff travel and subsistance
,BEIS,UKRI - AHRC,31/07/18,Non-staff travel and subsistance,Newton Programme,Non Employee Expenses Supplier,98249589,1049.93,Non-staff travel and subsistance
,BEIS,UKRI - AHRC,31/07/18,Non-staff travel and subsistance,Newton Programme,Non Employee Expenses Supplier,98249591,1004.92,Non-staff travel and subsistance
,BEIS,UKRI - AHRC,18/07/18,Non-staff travel and subsistance,SMT,Non Employee Expenses Supplier,98240999,76.50,Non-staff travel and subsistance
,BEIS,UKRI - AHRC,18/07/18,Non-staff travel and subsistance,SMT,Non Employee Expenses Supplier,98241000,212.88,Non-staff travel and subsistance
,BEIS,UKRI - AHRC,18/07/18,Non-staff travel and subsistance,SMT,Non Employee Expenses Supplier,98241010,194.60,Non-staff travel and subsistance
,BEIS,UKRI - AHRC,18/07/18,Non-staff travel and subsistance,SMT,Non Employee Expenses Supplier,98241011,237.98,Non-staff travel and subsistance
,BEIS,UKRI - AHRC,18/07/18,Non-staff travel and subsistance,SMT,Non Employee Expenses Supplier,98241012,211.04,Non-staff travel and subsistance
,BEIS,UKRI - AHRC,18/07/18,Non-staff travel and subsistance,SMT,Non Employee Expenses Supplier,98241013,236.92,Non-staff travel and subsistance
,BEIS,UKRI - AHRC,24/07/18,Training Awards - Postgraduates,BGP Award,Northumbria University,98229975,60047.14,Training Awards - Postgraduates
,BEIS,UKRI - AHRC,24/07/18,Training Awards - Postgraduates,Collabrative Doctoral Grants - Block Payment,Northumbria University,98230167,4874.50,Training Awards - Postgraduates
,BEIS,UKRI - AHRC,24/07/18,Training Awards - Postgraduates,Collabrative Doctoral Grants - Block Payment,Nottingham Trent University,98230124,4874.50,Training Awards - Postgraduates
,BEIS,UKRI - AHRC,24/07/18,Training Awards - Postgraduates,Collabrative Doctoral Grants - Block Payment,Nottingham Trent University,98230126,4874.50,Training Awards - Postgraduates
,BEIS,UKRI - AHRC,03/07/18,Catering Contracts,HR,Officedrop Ltd,98217804,192.00,Catering Contracts
,BEIS,UKRI - AHRC,03/07/18,Catering Contracts,HR,Officedrop Ltd,98219339,144.00,Catering Contracts
,BEIS,UKRI - AHRC,26/07/18,Catering Contracts,HR,Officedrop Ltd,98246736,192.00,Catering Contracts
,BEIS,UKRI - AHRC,26/07/18,Catering Contracts,HR,Officedrop Ltd,98246741,144.00,Catering Contracts
,BEIS,UKRI - AHRC,12/07/18,Recruitment Costs,Corporate Services,Onefix Recruitment Ltd,98234633,261.00,Recruitment Costs
,BEIS,UKRI - AHRC,25/07/18,Recruitment Costs,Industrial Strategy Challenge Fund (ISCF) - Creative Clusters,Onefix Recruitment Ltd,98245893,316.50,Recruitment Costs
,BEIS,UKRI - AHRC,24/07/18,Training Awards - Postgraduates,Collabrative Doctoral Grants - Block Payment,Oxford Brookes University,98230026,4879.50,Training Awards - Postgraduates
,BEIS,UKRI - AHRC,13/07/18,Union Deductions,Balance Sheet,PCS Union,98235568,205.93,Union Deductions
,BEIS,UKRI - AHRC,12/07/18,Purchase of non capital equipment,IS,Premier Farnell UK Ltd T/A Farnell Onecall,98233609,19.02,Purchase of non capital equipment
,BEIS,UKRI - AHRC,19/07/18,Computer Software Licences,Business Process & Analysis,QSR International (UK) Ltd,98242640,6346.80,Computer Software Licences
,BEIS,UKRI - AHRC,24/07/18,Training Awards - Postgraduates,Collabrative Doctoral Grants - Block Payment,Queen Mary University of London,98229995,5379.50,Training Awards - Postgraduates
,BEIS,UKRI - AHRC,24/07/18,Training Awards - Postgraduates,Collabrative Doctoral Grants - Block Payment,Queen Mary University of London,98229999,21518.00,Training Awards - Postgraduates
,BEIS,UKRI - AHRC,24/07/18,Training Awards - Postgraduates,Collabrative Doctoral Grants - Block Payment,Queen Mary University of London,98230011,5379.50,Training Awards - Postgraduates
,BEIS,UKRI - AHRC,24/07/18,Training Awards - Postgraduates,Collabrative Doctoral Grants - Block Payment,Queen Mary University of London,98230040,5379.50,Training Awards - Postgraduates
,BEIS,UKRI - AHRC,24/07/18,Training Awards - Postgraduates,Collabrative Doctoral Grants - Block Payment,Queen Mary University of London,98230073,5374.50,Training Awards - Postgraduates
,BEIS,UKRI - AHRC,24/07/18,Training Awards - Postgraduates,Collabrative Doctoral Grants - Block Payment,Queen Mary University of London,98230076,5374.50,Training Awards - Postgraduates
,BEIS,UKRI - AHRC,24/07/18,Training Awards - Postgraduates,Collabrative Doctoral Grants - Block Payment,Queen Mary University of London,98230109,5374.50,Training Awards - Postgraduates
,BEIS,UKRI - AHRC,24/07/18,Training Awards - Postgraduates,Collabrative Doctoral Grants - Block Payment,Queen Mary University of London,98230116,5374.50,Training Awards - Postgraduates
,BEIS,UKRI - AHRC,10/07/18,Purchase of non capital equipment,Corporate Services,Rapid Electronics Ltd,98234232,1.79,Purchase of non capital equipment
,BEIS,UKRI - AHRC,24/07/18,Training Awards - Postgraduates,BGP Award,Royal College of Art,98229981,116125.54,Training Awards - Postgraduates
,BEIS,UKRI - AHRC,24/07/18,Training Awards - Postgraduates,BGP Award,Royal College of Art,98229981,116125.54,Training Awards - Postgraduates
,BEIS,UKRI - AHRC,24/07/18,Training Awards - Postgraduates,Collabrative Doctoral Grants - Block Payment,Royal College of Art,98229400,4748.26,Training Awards - Postgraduates
,BEIS,UKRI - AHRC,24/07/18,Training Awards - Postgraduates,Collabrative Doctoral Grants - Block Payment,Royal College of Art,98229406,-3629.50,Training Awards - Postgraduates
,BEIS,UKRI - AHRC,24/07/18,Training Awards - Postgraduates,Collabrative Doctoral Grants - Block Payment,Royal College of Art,98229407,552.02,Training Awards - Postgraduates
,BEIS,UKRI - AHRC,24/07/18,Training Awards - Postgraduates,Collabrative Doctoral Grants - Block Payment,Royal College of Art,98230018,675.00,Training Awards - Postgraduates
,BEIS,UKRI - AHRC,24/07/18,Training Awards - Postgraduates,Collabrative Doctoral Grants - Block Payment,Royal College of Art,98230018,5379.50,Training Awards - Postgraduates
,BEIS,UKRI - AHRC,24/07/18,Training Awards - Postgraduates,Collabrative Doctoral Grants - Block Payment,Royal College of Art,98230018,5379.50,Training Awards - Postgraduates
,BEIS,UKRI - AHRC,24/07/18,Training Awards - Postgraduates,Collabrative Doctoral Grants - Block Payment,Royal College of Art,98230049,5379.50,Training Awards - Postgraduates
,BEIS,UKRI - AHRC,24/07/18,Training Awards - Postgraduates,Collabrative Doctoral Grants - Block Payment,Royal College of Art,98230049,5379.50,Training Awards - Postgraduates
,BEIS,UKRI - AHRC,24/07/18,Training Awards - Postgraduates,Collabrative Doctoral Grants - Block Payment,Royal College of Art,98230097,5374.50,Training Awards - Postgraduates
,BEIS,UKRI - AHRC,24/07/18,Training Awards - Postgraduates,Collabrative Doctoral Grants - Block Payment,Royal College of Art,98230097,5374.50,Training Awards - Postgraduates
,BEIS,UKRI - AHRC,24/07/18,Training Awards - Postgraduates,Collabrative Doctoral Grants - Block Payment,Royal College of Art,98230166,5374.50,Training Awards - Postgraduates
,BEIS,UKRI - AHRC,24/07/18,Training Awards - Postgraduates,Collabrative Doctoral Grants - Block Payment,Royal College of Art,98230166,5374.50,Training Awards - Postgraduates
,BEIS,UKRI - AHRC,24/07/18,Training Awards - Postgraduates,Collabrative Doctoral Grants - Block Payment,Royal College of Art,98230169,4720.08,Training Awards - Postgraduates
,BEIS,UKRI - AHRC,24/07/18,Training Awards - Postgraduates,Collabrative Doctoral Grants - Block Payment,Royal College of Art,98230169,4720.08,Training Awards - Postgraduates
,BEIS,UKRI - AHRC,24/07/18,Training Awards - Postgraduates,BGP Award,"Royal Holloway, University of London",98229965,667568.74,Training Awards - Postgraduates
,BEIS,UKRI - AHRC,24/07/18,Training Awards - Postgraduates,BGP Award,"Royal Holloway, University of London",98230180,72115.80,Training Awards - Postgraduates
,BEIS,UKRI - AHRC,24/07/18,Training Awards - Postgraduates,Collabrative Doctoral Grants - Block Payment,"Royal Holloway, University of London",98230042,5379.50,Training Awards - Postgraduates
,BEIS,UKRI - AHRC,24/07/18,Training Awards - Postgraduates,Collabrative Doctoral Grants - Block Payment,"Royal Holloway, University of London",98230075,5374.50,Training Awards - Postgraduates
,BEIS,UKRI - AHRC,24/07/18,Training Awards - Postgraduates,Collabrative Doctoral Grants - Block Payment,"Royal Holloway, University of London",98230077,5374.50,Training Awards - Postgraduates
,BEIS,UKRI - AHRC,24/07/18,Training Awards - Postgraduates,Collabrative Doctoral Grants - Block Payment,"Royal Holloway, University of London",98230125,5374.50,Training Awards - Postgraduates
,BEIS,UKRI - AHRC,24/07/18,Training Awards - Postgraduates,Collabrative Doctoral Grants - Block Payment,Royal Northern College of Music,98229998,4879.50,Training Awards - Postgraduates
,BEIS,UKRI - AHRC,18/07/18,Legal & Professional Services,Communications,Rumba Graphic Design Ltd,98240176,144.00,Legal & Professional Services
,BEIS,UKRI - AHRC,18/07/18,Legal & Professional Services,Communications,Rumba Graphic Design Ltd,98240176,24.00,Legal & Professional Services
,BEIS,UKRI - AHRC,18/07/18,Research Consumables,"Languages,Literature & International Engagement",Smithsonian Institution,98236739,1448.94,Research Consumables
,BEIS,UKRI - AHRC,24/07/18,Training Awards - Postgraduates,Collabrative Doctoral Grants - Block Payment,"SOAS, University of London",98230006,5379.50,Training Awards - Postgraduates
,BEIS,UKRI - AHRC,24/07/18,Training Awards - Postgraduates,Collabrative Doctoral Grants - Block Payment,"SOAS, University of London",98230012,5379.50,Training Awards - Postgraduates
,BEIS,UKRI - AHRC,24/07/18,Training Awards - Postgraduates,Collabrative Doctoral Grants - Block Payment,"SOAS, University of London",98230029,5379.50,Training Awards - Postgraduates
,BEIS,UKRI - AHRC,24/07/18,Training Awards - Postgraduates,Collabrative Doctoral Grants - Block Payment,"SOAS, University of London",98230118,5374.50,Training Awards - Postgraduates
,BEIS,UKRI - AHRC,26/07/18,Legal & Professional Services,Communications,Studio Orb Ltd,98246786,250.00,Legal & Professional Services
,BEIS,UKRI - AHRC,24/07/18,Training Awards - Postgraduates,Collabrative Doctoral Grants - Block Payment,Swansea University,98229402,627.00,Training Awards - Postgraduates
,BEIS,UKRI - AHRC,24/07/18,Training Awards - Postgraduates,Collabrative Doctoral Grants - Block Payment,Swansea University,98230007,4879.50,Training Awards - Postgraduates
,BEIS,UKRI - AHRC,24/07/18,Training Awards - Postgraduates,Collabrative Doctoral Grants - Block Payment,Swansea University,98230007,4879.50,Training Awards - Postgraduates
,BEIS,UKRI - AHRC,24/07/18,Training Awards - Postgraduates,Collabrative Doctoral Grants - Block Payment,Swansea University,98230009,4879.50,Training Awards - Postgraduates
,BEIS,UKRI - AHRC,24/07/18,Training Awards - Postgraduates,Collabrative Doctoral Grants - Block Payment,Swansea University,98230009,4879.50,Training Awards - Postgraduates
,BEIS,UKRI - AHRC,24/07/18,Training Awards - Postgraduates,Collabrative Doctoral Grants - Block Payment,Swansea University,98230086,4874.50,Training Awards - Postgraduates
,BEIS,UKRI - AHRC,24/07/18,Training Awards - Postgraduates,Collabrative Doctoral Grants - Block Payment,Swansea University,98230086,4874.50,Training Awards - Postgraduates
,BEIS,UKRI - AHRC,24/07/18,Voluntary Deductions,Balance Sheet,Swindon Office Sports and Social Club,98235567,96.00,Voluntary Deductions
,BEIS,UKRI - AHRC,17/07/18,Catering Contracts,SMT,The Moving Venue Caterers Ltd,98232452,1564.20,Catering Contracts
,BEIS,UKRI - AHRC,24/07/18,Training Awards - Postgraduates,BGP Award,The University of Manchester,98229976,700670.25,Training Awards - Postgraduates
,BEIS,UKRI - AHRC,24/07/18,Training Awards - Postgraduates,BGP Award,The University of Manchester,98230177,66866.00,Training Awards - Postgraduates
,BEIS,UKRI - AHRC,24/07/18,Training Awards - Postgraduates,Collabrative Doctoral Grants - Block Payment,The University of Manchester,98230101,4874.50,Training Awards - Postgraduates
,BEIS,UKRI - AHRC,24/07/18,Training Awards - Postgraduates,Collabrative Doctoral Grants - Block Payment,The University of Manchester,98230105,4874.50,Training Awards - Postgraduates
,BEIS,UKRI - AHRC,24/07/18,Training Awards - Postgraduates,Collabrative Doctoral Grants - Block Payment,The University of Manchester,98230161,4874.50,Training Awards - Postgraduates
,BEIS,UKRI - AHRC,24/07/18,Training Awards - Postgraduates,Collabrative Doctoral Grants - Block Payment,The University of Manchester,98230165,4874.50,Training Awards - Postgraduates
,BEIS,UKRI - AHRC,24/07/18,Training Awards - Postgraduates,Doctoral Awards (OC) - Block Payment,The University of Manchester,98229393,-10286.01,Training Awards - Postgraduates
,BEIS,UKRI - AHRC,04/07/18,Research Consumables,"Languages,Literature & International Engagement",The University Of Texas At Austin,98225341,1711.29,Research Consumables
,BEIS,UKRI - AHRC,17/07/18,Computing Consumables,Corporate Services,UK Shared Business Services Ltd,98195497,4783.45,Computing Consumables
,BEIS,UKRI - AHRC,17/07/18,Computing Consumables,Corporate Services,UK Shared Business Services Ltd,98195497,3947.03,Computing Consumables
,BEIS,UKRI - AHRC,24/07/18,Training Awards - Postgraduates,BGP Award,University College London,98229968,121545.51,Training Awards - Postgraduates
,BEIS,UKRI - AHRC,24/07/18,Training Awards - Postgraduates,BGP Award,University College London,98229969,929004.30,Training Awards - Postgraduates
,BEIS,UKRI - AHRC,24/07/18,Training Awards - Postgraduates,Collabrative Doctoral Grants - Block Payment,University College London,98230024,5379.50,Training Awards - Postgraduates
,BEIS,UKRI - AHRC,24/07/18,Training Awards - Postgraduates,Collabrative Doctoral Grants - Block Payment,University College London,98230025,5379.50,Training Awards - Postgraduates
,BEIS,UKRI - AHRC,24/07/18,Training Awards - Postgraduates,Collabrative Doctoral Grants - Block Payment,University College London,98230062,5374.50,Training Awards - Postgraduates
,BEIS,UKRI - AHRC,24/07/18,Training Awards - Postgraduates,Collabrative Doctoral Grants - Block Payment,University College London,98230068,5374.50,Training Awards - Postgraduates
,BEIS,UKRI - AHRC,24/07/18,Training Awards - Postgraduates,Collabrative Doctoral Grants - Block Payment,University College London,98230103,5374.50,Training Awards - Postgraduates
,BEIS,UKRI - AHRC,24/07/18,Training Awards - Postgraduates,Collabrative Doctoral Grants - Block Payment,University College London,98230119,5374.50,Training Awards - Postgraduates
,BEIS,UKRI - AHRC,24/07/18,Training Awards - Postgraduates,Collabrative Doctoral Grants - Block Payment,University College London,98230147,5374.50,Training Awards - Postgraduates
,BEIS,UKRI - AHRC,24/07/18,Training Awards - Postgraduates,International Placement Scheme,University College London,98229420,3270.00,Training Awards - Postgraduates
,BEIS,UKRI - AHRC,24/07/18,Training Awards - Postgraduates,International Placement Scheme,University College London,98230170,4470.00,Training Awards - Postgraduates
,BEIS,UKRI - AHRC,24/07/18,Training Awards - Postgraduates,Collabrative Doctoral Grants - Block Payment,University of Aberdeen,98230095,4874.50,Training Awards - Postgraduates
,BEIS,UKRI - AHRC,24/07/18,Training Awards - Postgraduates,Collabrative Doctoral Grants - Block Payment,University of Aberdeen,98230095,4874.50,Training Awards - Postgraduates
,BEIS,UKRI - AHRC,24/07/18,Training Awards - Postgraduates,Collabrative Doctoral Grants - Block Payment,University of Bedfordshire,98230099,4874.50,Training Awards - Postgraduates
,BEIS,UKRI - AHRC,24/07/18,Training Awards - Postgraduates,Collabrative Doctoral Grants - Block Payment,University of Birmingham GRANT,98229986,4879.50,Training Awards - Postgraduates
,BEIS,UKRI - AHRC,24/07/18,Training Awards - Postgraduates,Collabrative Doctoral Grants - Block Payment,University of Birmingham GRANT,98229986,4879.50,Training Awards - Postgraduates
,BEIS,UKRI - AHRC,24/07/18,Training Awards - Postgraduates,Collabrative Doctoral Grants - Block Payment,University of Birmingham GRANT,98230148,4874.50,Training Awards - Postgraduates
,BEIS,UKRI - AHRC,24/07/18,Training Awards - Postgraduates,Collabrative Doctoral Grants - Block Payment,University of Birmingham GRANT,98230148,4874.50,Training Awards - Postgraduates
,BEIS,UKRI - AHRC,24/07/18,Training Awards - Postgraduates,Collabrative Doctoral Grants - Block Payment,University of Bradford,98230113,4874.50,Training Awards - Postgraduates
,BEIS,UKRI - AHRC,24/07/18,Training Awards - Postgraduates,Collabrative Doctoral Grants - Block Payment,University of Bradford,98230113,4874.50,Training Awards - Postgraduates
,BEIS,UKRI - AHRC,24/07/18,Training Awards - Postgraduates,Collabrative Doctoral Grants - Block Payment,University of Brighton,98229984,4879.50,Training Awards - Postgraduates
,BEIS,UKRI - AHRC,24/07/18,Training Awards - Postgraduates,Collabrative Doctoral Grants - Block Payment,University of Brighton,98230008,4879.50,Training Awards - Postgraduates
,BEIS,UKRI - AHRC,24/07/18,Training Awards - Postgraduates,Collabrative Doctoral Grants - Block Payment,University of Brighton,98230085,4874.50,Training Awards - Postgraduates
,BEIS,UKRI - AHRC,24/07/18,Training Awards - Postgraduates,Collabrative Doctoral Grants - Block Payment,University of Brighton,98230089,4874.50,Training Awards - Postgraduates
,BEIS,UKRI - AHRC,24/07/18,Training Awards - Postgraduates,BGP Award,University of Bristol GRANT,98229973,700670.25,Training Awards - Postgraduates
,BEIS,UKRI - AHRC,24/07/18,Training Awards - Postgraduates,Collabrative Doctoral Grants - Block Payment,University of Bristol GRANT,98229411,777.62,Training Awards - Postgraduates
,BEIS,UKRI - AHRC,24/07/18,Training Awards - Postgraduates,Collabrative Doctoral Grants - Block Payment,University of Bristol GRANT,98229414,-26829.41,Training Awards - Postgraduates
,BEIS,UKRI - AHRC,24/07/18,Training Awards - Postgraduates,Collabrative Doctoral Grants - Block Payment,University of Bristol GRANT,98230022,4879.50,Training Awards - Postgraduates
,BEIS,UKRI - AHRC,24/07/18,Training Awards - Postgraduates,Collabrative Doctoral Grants - Block Payment,University of Bristol GRANT,98230096,4874.50,Training Awards - Postgraduates
,BEIS,UKRI - AHRC,24/07/18,Training Awards - Postgraduates,Collabrative Doctoral Grants - Block Payment,University of Bristol GRANT,98230115,4874.50,Training Awards - Postgraduates
,BEIS,UKRI - AHRC,24/07/18,Training Awards - Postgraduates,Collabrative Doctoral Grants - Block Payment,University of Bristol GRANT,98230132,4874.50,Training Awards - Postgraduates
,BEIS,UKRI - AHRC,30/07/18,Legal & Professional Services,"AHRC - Strategic Planning, Evidence & Impact",University of Cambridge,98248447,8100.00,Legal & Professional Services
,BEIS,UKRI - AHRC,24/07/18,Training Awards - Postgraduates,BGP Award,University of Cambridge,98229977,700670.25,Training Awards - Postgraduates
,BEIS,UKRI - AHRC,24/07/18,Training Awards - Postgraduates,Collabrative Doctoral Grants - Block Payment,University of Cambridge,98229964,4594.08,Training Awards - Postgraduates
,BEIS,UKRI - AHRC,24/07/18,Training Awards - Postgraduates,Collabrative Doctoral Grants - Block Payment,University of Cambridge,98230028,4879.50,Training Awards - Postgraduates
,BEIS,UKRI - AHRC,24/07/18,Training Awards - Postgraduates,Collabrative Doctoral Grants - Block Payment,University of Cambridge,98230081,4874.50,Training Awards - Postgraduates
,BEIS,UKRI - AHRC,24/07/18,Training Awards - Postgraduates,Collabrative Doctoral Grants - Block Payment,University of Cambridge,98230107,4874.50,Training Awards - Postgraduates
,BEIS,UKRI - AHRC,24/07/18,Training Awards - Postgraduates,Collabrative Doctoral Grants - Block Payment,University of Central Lancashire,98230055,9749.00,Training Awards - Postgraduates
,BEIS,UKRI - AHRC,24/07/18,Training Awards - Postgraduates,Collabrative Doctoral Grants - Block Payment,University of Central Lancashire,98230141,4874.50,Training Awards - Postgraduates
,BEIS,UKRI - AHRC,24/07/18,Training Awards - Postgraduates,BGP Award: Capacity Building,University of Dundee,98229394,1466.38,Training Awards - Postgraduates
,BEIS,UKRI - AHRC,24/07/18,Training Awards - Postgraduates,Collabrative Doctoral Grants - Block Payment,University of Durham,98229415,-7995.18,Training Awards - Postgraduates
,BEIS,UKRI - AHRC,24/07/18,Training Awards - Postgraduates,Collabrative Doctoral Grants - Block Payment,University of Durham,98229416,-50.00,Training Awards - Postgraduates
,BEIS,UKRI - AHRC,24/07/18,Training Awards - Postgraduates,Collabrative Doctoral Grants - Block Payment,University of Durham,98230027,4879.50,Training Awards - Postgraduates
,BEIS,UKRI - AHRC,24/07/18,Training Awards - Postgraduates,Collabrative Doctoral Grants - Block Payment,University of Durham,98230069,4874.50,Training Awards - Postgraduates
,BEIS,UKRI - AHRC,24/07/18,Training Awards - Postgraduates,Collabrative Doctoral Grants - Block Payment,University of Durham,98230091,4874.50,Training Awards - Postgraduates
,BEIS,UKRI - AHRC,24/07/18,Training Awards - Postgraduates,Collabrative Doctoral Grants - Block Payment,University of Durham,98230093,4874.50,Training Awards - Postgraduates
,BEIS,UKRI - AHRC,24/07/18,Training Awards - Postgraduates,Collabrative Doctoral Grants - Block Payment,University of Durham,98230134,4874.50,Training Awards - Postgraduates
,BEIS,UKRI - AHRC,24/07/18,Training Awards - Postgraduates,Collabrative Doctoral Grants - Block Payment,University of East Anglia,98230036,4879.50,Training Awards - Postgraduates
,BEIS,UKRI - AHRC,24/07/18,Training Awards - Postgraduates,Collabrative Doctoral Grants - Block Payment,University of East Anglia,98230036,4879.50,Training Awards - Postgraduates
,BEIS,UKRI - AHRC,24/07/18,Training Awards - Postgraduates,Collabrative Doctoral Grants - Block Payment,University of Edinburgh,98229410,808.00,Training Awards - Postgraduates
,BEIS,UKRI - AHRC,24/07/18,Training Awards - Postgraduates,Collabrative Doctoral Grants - Block Payment,University of Edinburgh,98230003,4879.50,Training Awards - Postgraduates
,BEIS,UKRI - AHRC,24/07/18,Training Awards - Postgraduates,Collabrative Doctoral Grants - Block Payment,University of Edinburgh,98230003,4879.50,Training Awards - Postgraduates
,BEIS,UKRI - AHRC,24/07/18,Training Awards - Postgraduates,Collabrative Doctoral Grants - Block Payment,University of Edinburgh,98230031,4879.50,Training Awards - Postgraduates
,BEIS,UKRI - AHRC,24/07/18,Training Awards - Postgraduates,Collabrative Doctoral Grants - Block Payment,University of Edinburgh,98230031,4879.50,Training Awards - Postgraduates
,BEIS,UKRI - AHRC,24/07/18,Training Awards - Postgraduates,Collabrative Doctoral Grants - Block Payment,University of Edinburgh,98230043,4879.50,Training Awards - Postgraduates
,BEIS,UKRI - AHRC,24/07/18,Training Awards - Postgraduates,Collabrative Doctoral Grants - Block Payment,University of Edinburgh,98230043,4879.50,Training Awards - Postgraduates
,BEIS,UKRI - AHRC,24/07/18,Training Awards - Postgraduates,Collabrative Doctoral Grants - Block Payment,University of Edinburgh,98230117,4874.50,Training Awards - Postgraduates
,BEIS,UKRI - AHRC,24/07/18,Training Awards - Postgraduates,Collabrative Doctoral Grants - Block Payment,University of Edinburgh,98230117,4874.50,Training Awards - Postgraduates
,BEIS,UKRI - AHRC,24/07/18,Training Awards - Postgraduates,Collabrative Doctoral Grants - Block Payment,University of Edinburgh,98230122,4868.25,Training Awards - Postgraduates
,BEIS,UKRI - AHRC,24/07/18,Training Awards - Postgraduates,Collabrative Doctoral Grants - Block Payment,University of Edinburgh,98230122,4868.25,Training Awards - Postgraduates
,BEIS,UKRI - AHRC,24/07/18,Training Awards - Postgraduates,Collabrative Doctoral Grants - Block Payment,University of Edinburgh,98230131,4874.50,Training Awards - Postgraduates
,BEIS,UKRI - AHRC,24/07/18,Training Awards - Postgraduates,Collabrative Doctoral Grants - Block Payment,University of Edinburgh,98230131,4874.50,Training Awards - Postgraduates
,BEIS,UKRI - AHRC,24/07/18,Training Awards - Postgraduates,Collabrative Doctoral Grants - Block Payment,University of Edinburgh,98230133,4874.50,Training Awards - Postgraduates
,BEIS,UKRI - AHRC,24/07/18,Training Awards - Postgraduates,Collabrative Doctoral Grants - Block Payment,University of Edinburgh,98230133,4874.50,Training Awards - Postgraduates
,BEIS,UKRI - AHRC,24/07/18,Training Awards - Postgraduates,Collabrative Doctoral Grants - Block Payment,University of Edinburgh,98230144,4874.50,Training Awards - Postgraduates
,BEIS,UKRI - AHRC,24/07/18,Training Awards - Postgraduates,Collabrative Doctoral Grants - Block Payment,University of Edinburgh,98230144,4874.50,Training Awards - Postgraduates
,BEIS,UKRI - AHRC,23/07/18,Secondments,Finance,University of Exeter,98244890,475.20,Secondments
,BEIS,UKRI - AHRC,09/07/18,Secondments,SMT,University of Exeter,98188914,43342.80,Secondments
,BEIS,UKRI - AHRC,09/07/18,Secondments,SMT,University of Exeter,98230586,-43342.80,Secondments
,BEIS,UKRI - AHRC,23/07/18,Secondments,SMT,University of Exeter,98244890,23604.00,Secondments
,BEIS,UKRI - AHRC,24/07/18,Training Awards - Postgraduates,Collabrative Doctoral Grants - Block Payment,University of Exeter,98230052,4879.50,Training Awards - Postgraduates
,BEIS,UKRI - AHRC,24/07/18,Training Awards - Postgraduates,Collabrative Doctoral Grants - Block Payment,University of Exeter,98230052,4879.50,Training Awards - Postgraduates
,BEIS,UKRI - AHRC,24/07/18,Training Awards - Postgraduates,Collabrative Doctoral Grants - Block Payment,University of Exeter,98230143,4874.50,Training Awards - Postgraduates
,BEIS,UKRI - AHRC,24/07/18,Training Awards - Postgraduates,Collabrative Doctoral Grants - Block Payment,University of Exeter,98230143,4874.50,Training Awards - Postgraduates
,BEIS,UKRI - AHRC,24/07/18,Training Awards - Postgraduates,BGP Award,University of Glasgow,98229971,700670.25,Training Awards - Postgraduates
,BEIS,UKRI - AHRC,24/07/18,Training Awards - Postgraduates,BGP Award,University of Glasgow,98229974,90106.80,Training Awards - Postgraduates
,BEIS,UKRI - AHRC,24/07/18,Training Awards - Postgraduates,BGP Award,University of Glasgow,98230175,66865.80,Training Awards - Postgraduates
,BEIS,UKRI - AHRC,24/07/18,Training Awards - Postgraduates,Collabrative Doctoral Grants - Block Payment,University of Glasgow,98229982,4879.50,Training Awards - Postgraduates
,BEIS,UKRI - AHRC,24/07/18,Training Awards - Postgraduates,Collabrative Doctoral Grants - Block Payment,University of Glasgow,98229983,4879.50,Training Awards - Postgraduates
,BEIS,UKRI - AHRC,24/07/18,Training Awards - Postgraduates,Collabrative Doctoral Grants - Block Payment,University of Glasgow,98230005,4879.50,Training Awards - Postgraduates
,BEIS,UKRI - AHRC,24/07/18,Training Awards - Postgraduates,Collabrative Doctoral Grants - Block Payment,University of Glasgow,98230014,4879.50,Training Awards - Postgraduates
,BEIS,UKRI - AHRC,24/07/18,Training Awards - Postgraduates,Collabrative Doctoral Grants - Block Payment,University of Glasgow,98230017,4879.50,Training Awards - Postgraduates
,BEIS,UKRI - AHRC,24/07/18,Training Awards - Postgraduates,Collabrative Doctoral Grants - Block Payment,University of Glasgow,98230050,4879.50,Training Awards - Postgraduates
,BEIS,UKRI - AHRC,24/07/18,Training Awards - Postgraduates,Collabrative Doctoral Grants - Block Payment,University of Glasgow,98230057,4874.50,Training Awards - Postgraduates
,BEIS,UKRI - AHRC,24/07/18,Training Awards - Postgraduates,Collabrative Doctoral Grants - Block Payment,University of Glasgow,98230058,4874.50,Training Awards - Postgraduates
,BEIS,UKRI - AHRC,24/07/18,Training Awards - Postgraduates,Collabrative Doctoral Grants - Block Payment,University of Glasgow,98230102,4874.50,Training Awards - Postgraduates
,BEIS,UKRI - AHRC,24/07/18,Training Awards - Postgraduates,Collabrative Doctoral Grants - Block Payment,University of Glasgow,98230146,4874.50,Training Awards - Postgraduates
,BEIS,UKRI - AHRC,24/07/18,Training Awards - Postgraduates,Collabrative Doctoral Grants - Block Payment,University of Huddersfield,98229409,741.45,Training Awards - Postgraduates
,BEIS,UKRI - AHRC,24/07/18,Training Awards - Postgraduates,Collabrative Doctoral Grants - Block Payment,University of Huddersfield,98230061,4874.50,Training Awards - Postgraduates
,BEIS,UKRI - AHRC,24/07/18,Training Awards - Postgraduates,Collabrative Doctoral Grants - Block Payment,University of Huddersfield,98230061,4874.50,Training Awards - Postgraduates
,BEIS,UKRI - AHRC,24/07/18,Training Awards - Postgraduates,BGP Award,University of Hull,98229967,90106.80,Training Awards - Postgraduates
,BEIS,UKRI - AHRC,24/07/18,Training Awards - Postgraduates,Collabrative Doctoral Grants - Block Payment,University of Kent,98229988,4879.50,Training Awards - Postgraduates
,BEIS,UKRI - AHRC,24/07/18,Training Awards - Postgraduates,Collabrative Doctoral Grants - Block Payment,University of Kent,98230002,4879.47,Training Awards - Postgraduates
,BEIS,UKRI - AHRC,24/07/18,Training Awards - Postgraduates,Collabrative Doctoral Grants - Block Payment,University of Kent,98230083,4874.50,Training Awards - Postgraduates
,BEIS,UKRI - AHRC,24/07/18,Training Awards - Postgraduates,Collabrative Doctoral Grants - Block Payment,University of Kent,98230128,4874.50,Training Awards - Postgraduates
,BEIS,UKRI - AHRC,24/07/18,Training Awards - Postgraduates,Collabrative Doctoral Grants - Block Payment,University of Leeds,98230034,4879.50,Training Awards - Postgraduates
,BEIS,UKRI - AHRC,24/07/18,Training Awards - Postgraduates,Collabrative Doctoral Grants - Block Payment,University of Leeds,98230088,4874.50,Training Awards - Postgraduates
,BEIS,UKRI - AHRC,24/07/18,Training Awards - Postgraduates,Collabrative Doctoral Grants - Block Payment,University of Leeds,98230090,4874.50,Training Awards - Postgraduates
,BEIS,UKRI - AHRC,24/07/18,Training Awards - Postgraduates,Collabrative Doctoral Grants - Block Payment,University of Leeds,98230111,4874.50,Training Awards - Postgraduates
,BEIS,UKRI - AHRC,24/07/18,Training Awards - Postgraduates,Collabrative Doctoral Grants - Block Payment,University of Leeds,98230135,4874.50,Training Awards - Postgraduates
,BEIS,UKRI - AHRC,24/07/18,Training Awards - Postgraduates,Collabrative Doctoral Grants - Block Payment,University of Leeds,98230138,4874.50,Training Awards - Postgraduates
,BEIS,UKRI - AHRC,24/07/18,Training Awards - Postgraduates,Collabrative Doctoral Grants - Block Payment,University of Leeds,98230154,4874.50,Training Awards - Postgraduates
,BEIS,UKRI - AHRC,24/07/18,Training Awards - Postgraduates,Collabrative Doctoral Grants - Block Payment,University of Leicester,98229412,829.42,Training Awards - Postgraduates
,BEIS,UKRI - AHRC,24/07/18,Training Awards - Postgraduates,Collabrative Doctoral Grants - Block Payment,University of Leicester,98230004,4879.50,Training Awards - Postgraduates
,BEIS,UKRI - AHRC,24/07/18,Training Awards - Postgraduates,Collabrative Doctoral Grants - Block Payment,University of Leicester,98230016,4879.50,Training Awards - Postgraduates
,BEIS,UKRI - AHRC,24/07/18,Training Awards - Postgraduates,Collabrative Doctoral Grants - Block Payment,University of Leicester,98230044,4879.50,Training Awards - Postgraduates
,BEIS,UKRI - AHRC,24/07/18,Training Awards - Postgraduates,Collabrative Doctoral Grants - Block Payment,University of Leicester,98230047,4879.50,Training Awards - Postgraduates
,BEIS,UKRI - AHRC,24/07/18,Training Awards - Postgraduates,Collabrative Doctoral Grants - Block Payment,University of Leicester,98230104,4874.50,Training Awards - Postgraduates
,BEIS,UKRI - AHRC,24/07/18,Training Awards - Postgraduates,Collabrative Doctoral Grants - Block Payment,University of Leicester,98230136,4874.50,Training Awards - Postgraduates
,BEIS,UKRI - AHRC,24/07/18,Training Awards - Postgraduates,Collabrative Doctoral Grants - Block Payment,University of Leicester,98230140,4874.50,Training Awards - Postgraduates
,BEIS,UKRI - AHRC,24/07/18,Training Awards - Postgraduates,Collabrative Doctoral Grants - Block Payment,University of Leicester,98230152,4874.50,Training Awards - Postgraduates
,BEIS,UKRI - AHRC,24/07/18,Training Awards - Postgraduates,Collabrative Doctoral Grants - Block Payment,University of Leicester,98230156,4874.50,Training Awards - Postgraduates
,BEIS,UKRI - AHRC,24/07/18,Training Awards - Postgraduates,Collabrative Doctoral Grants - Block Payment,University of Lincoln,98230084,4874.50,Training Awards - Postgraduates
,BEIS,UKRI - AHRC,24/07/18,Training Awards - Postgraduates,Collabrative Doctoral Grants - Block Payment,University of Liverpool,98230000,14638.50,Training Awards - Postgraduates
,BEIS,UKRI - AHRC,24/07/18,Training Awards - Postgraduates,Collabrative Doctoral Grants - Block Payment,University of Liverpool,98230059,9749.00,Training Awards - Postgraduates
,BEIS,UKRI - AHRC,24/07/18,Training Awards - Postgraduates,Collabrative Doctoral Grants - Block Payment,University of Liverpool,98230065,9749.00,Training Awards - Postgraduates
,BEIS,UKRI - AHRC,24/07/18,Training Awards - Postgraduates,Collabrative Doctoral Grants - Block Payment,University of Liverpool,98230070,9749.00,Training Awards - Postgraduates
,BEIS,UKRI - AHRC,24/07/18,Training Awards - Postgraduates,Collabrative Doctoral Grants - Block Payment,University of London,98230151,5374.50,Training Awards - Postgraduates
,BEIS,UKRI - AHRC,24/07/18,Training Awards - Postgraduates,Collabrative Doctoral Grants - Block Payment,University of London,98230182,4342.97,Training Awards - Postgraduates
,BEIS,UKRI - AHRC,24/07/18,Training Awards - Postgraduates,Collabrative Doctoral Grants - Block Payment,University of London,98230182,4342.97,Training Awards - Postgraduates
,BEIS,UKRI - AHRC,24/07/18,Training Awards - Postgraduates,Collabrative Doctoral Grants - Block Payment,University of London,98230182,4342.97,Training Awards - Postgraduates
,BEIS,UKRI - AHRC,24/07/18,Training Awards - Postgraduates,BGP Award,University of Newcastle Upon Tyne,98229972,550516.31,Training Awards - Postgraduates
,BEIS,UKRI - AHRC,24/07/18,Training Awards - Postgraduates,BGP Award,University of Newcastle Upon Tyne,98230176,66866.00,Training Awards - Postgraduates
,BEIS,UKRI - AHRC,24/07/18,Training Awards - Postgraduates,Collabrative Doctoral Grants - Block Payment,University of Newcastle Upon Tyne,98229401,-73669.93,Training Awards - Postgraduates
,BEIS,UKRI - AHRC,24/07/18,Training Awards - Postgraduates,Collabrative Doctoral Grants - Block Payment,University of Newcastle Upon Tyne,98229992,14638.50,Training Awards - Postgraduates
,BEIS,UKRI - AHRC,24/07/18,Training Awards - Postgraduates,Collabrative Doctoral Grants - Block Payment,University of Newcastle Upon Tyne,98230021,4879.50,Training Awards - Postgraduates
,BEIS,UKRI - AHRC,24/07/18,Training Awards - Postgraduates,Collabrative Doctoral Grants - Block Payment,University of Newcastle Upon Tyne,98230098,4874.50,Training Awards - Postgraduates
,BEIS,UKRI - AHRC,24/07/18,Training Awards - Postgraduates,International Placement Scheme,University of Newcastle Upon Tyne,98230174,4470.00,Training Awards - Postgraduates
,BEIS,UKRI - AHRC,24/07/18,Training Awards - Postgraduates,Collabrative Doctoral Grants - Block Payment,University of Northampton,98230108,4874.50,Training Awards - Postgraduates
,BEIS,UKRI - AHRC,24/07/18,Training Awards - Postgraduates,BGP Award,University of Nottingham,98229979,718187.01,Training Awards - Postgraduates
,BEIS,UKRI - AHRC,24/07/18,Training Awards - Postgraduates,BGP Award,University of Nottingham,98230179,51114.50,Training Awards - Postgraduates
,BEIS,UKRI - AHRC,24/07/18,Training Awards - Postgraduates,Collabrative Doctoral Grants - Block Payment,University of Nottingham,98230013,4879.50,Training Awards - Postgraduates
,BEIS,UKRI - AHRC,24/07/18,Training Awards - Postgraduates,Collabrative Doctoral Grants - Block Payment,University of Nottingham,98230039,4879.50,Training Awards - Postgraduates
,BEIS,UKRI - AHRC,24/07/18,Training Awards - Postgraduates,Collabrative Doctoral Grants - Block Payment,University of Nottingham,98230066,4874.50,Training Awards - Postgraduates
,BEIS,UKRI - AHRC,24/07/18,Training Awards - Postgraduates,Collabrative Doctoral Grants - Block Payment,University of Nottingham,98230072,4874.50,Training Awards - Postgraduates
,BEIS,UKRI - AHRC,24/07/18,Training Awards - Postgraduates,Collabrative Doctoral Grants - Block Payment,University of Nottingham,98230145,4874.50,Training Awards - Postgraduates
,BEIS,UKRI - AHRC,24/07/18,Training Awards - Postgraduates,BGP Award,University of Oxford,98229970,700670.25,Training Awards - Postgraduates
,BEIS,UKRI - AHRC,24/07/18,Training Awards - Postgraduates,Collabrative Doctoral Grants - Block Payment,University of Oxford,98229398,-43428.00,Training Awards - Postgraduates
,BEIS,UKRI - AHRC,24/07/18,Training Awards - Postgraduates,Collabrative Doctoral Grants - Block Payment,University of Oxford,98230020,4879.50,Training Awards - Postgraduates
,BEIS,UKRI - AHRC,24/07/18,Training Awards - Postgraduates,Collabrative Doctoral Grants - Block Payment,University of Oxford,98230038,4879.50,Training Awards - Postgraduates
,BEIS,UKRI - AHRC,24/07/18,Training Awards - Postgraduates,Collabrative Doctoral Grants - Block Payment,University of Oxford,98230123,4874.50,Training Awards - Postgraduates
,BEIS,UKRI - AHRC,24/07/18,Training Awards - Postgraduates,Collabrative Doctoral Grants - Block Payment,University of Oxford,98230150,4874.50,Training Awards - Postgraduates
,BEIS,UKRI - AHRC,24/07/18,Training Awards - Postgraduates,International Placement Scheme,University of Oxford,98229418,3270.00,Training Awards - Postgraduates
,BEIS,UKRI - AHRC,24/07/18,Training Awards - Postgraduates,International Placement Scheme,University of Oxford,98229421,6870.00,Training Awards - Postgraduates
,BEIS,UKRI - AHRC,24/07/18,Training Awards - Postgraduates,Collabrative Doctoral Grants - Block Payment,University of Sheffield,98229403,334.00,Training Awards - Postgraduates
,BEIS,UKRI - AHRC,24/07/18,Training Awards - Postgraduates,Collabrative Doctoral Grants - Block Payment,University of Sheffield,98229996,14638.50,Training Awards - Postgraduates
,BEIS,UKRI - AHRC,24/07/18,Training Awards - Postgraduates,Collabrative Doctoral Grants - Block Payment,University of Sheffield,98230023,4879.50,Training Awards - Postgraduates
,BEIS,UKRI - AHRC,24/07/18,Training Awards - Postgraduates,Collabrative Doctoral Grants - Block Payment,University of Sheffield,98230048,4879.50,Training Awards - Postgraduates
,BEIS,UKRI - AHRC,24/07/18,Training Awards - Postgraduates,Collabrative Doctoral Grants - Block Payment,University of Sheffield,98230060,4874.50,Training Awards - Postgraduates
,BEIS,UKRI - AHRC,24/07/18,Training Awards - Postgraduates,Collabrative Doctoral Grants - Block Payment,University of Sheffield,98230127,4874.50,Training Awards - Postgraduates
,BEIS,UKRI - AHRC,24/07/18,Training Awards - Postgraduates,International Placement Scheme,University of Sheffield,98230173,5670.00,Training Awards - Postgraduates
,BEIS,UKRI - AHRC,24/07/18,Training Awards - Postgraduates,Collabrative Doctoral Grants - Block Payment,University of St Andrews,98230056,4874.50,Training Awards - Postgraduates
,BEIS,UKRI - AHRC,24/07/18,Training Awards - Postgraduates,Collabrative Doctoral Grants - Block Payment,University of St Andrews,98230139,4874.50,Training Awards - Postgraduates
,BEIS,UKRI - AHRC,24/07/18,Training Awards - Postgraduates,Collabrative Doctoral Grants - Block Payment,University of Stirling,98230137,4874.50,Training Awards - Postgraduates
,BEIS,UKRI - AHRC,24/07/18,Training Awards - Postgraduates,Collabrative Doctoral Grants - Block Payment,University of Stirling,98230137,4874.50,Training Awards - Postgraduates
,BEIS,UKRI - AHRC,24/07/18,Training Awards - Postgraduates,Collabrative Doctoral Grants - Block Payment,University of Strathclyde,98230041,4879.50,Training Awards - Postgraduates
,BEIS,UKRI - AHRC,24/07/18,Training Awards - Postgraduates,Collabrative Doctoral Grants - Block Payment,University of Strathclyde,98230051,4879.50,Training Awards - Postgraduates
,BEIS,UKRI - AHRC,24/07/18,Training Awards - Postgraduates,Collabrative Doctoral Grants - Block Payment,University of Strathclyde,98230082,4874.53,Training Awards - Postgraduates
,BEIS,UKRI - AHRC,24/07/18,Training Awards - Postgraduates,Collabrative Doctoral Grants - Block Payment,University of Strathclyde,98230121,4911.00,Training Awards - Postgraduates
,BEIS,UKRI - AHRC,24/07/18,Training Awards - Postgraduates,Collabrative Doctoral Grants - Block Payment,University of Strathclyde,98230181,4792.13,Training Awards - Postgraduates
,BEIS,UKRI - AHRC,24/07/18,Training Awards - Postgraduates,Collabrative Doctoral Grants - Block Payment,University of Strathclyde,98230181,4792.13,Training Awards - Postgraduates
,BEIS,UKRI - AHRC,24/07/18,Training Awards - Postgraduates,Collabrative Doctoral Grants - Block Payment,University of Strathclyde,98230181,4792.13,Training Awards - Postgraduates
,BEIS,UKRI - AHRC,24/07/18,Training Awards - Postgraduates,Collabrative Doctoral Grants - Block Payment,University of Sunderland,98229985,4879.50,Training Awards - Postgraduates
,BEIS,UKRI - AHRC,24/07/18,Training Awards - Postgraduates,BGP Award,University of Sussex,98229397,-180573.21,Training Awards - Postgraduates
,BEIS,UKRI - AHRC,24/07/18,Training Awards - Postgraduates,BGP Award,University of Sussex,98229978,837614.54,Training Awards - Postgraduates
,BEIS,UKRI - AHRC,24/07/18,Training Awards - Postgraduates,Collabrative Doctoral Grants - Block Payment,University of Sussex,98230142,4874.50,Training Awards - Postgraduates
,BEIS,UKRI - AHRC,24/07/18,Training Awards - Postgraduates,Collabrative Doctoral Grants - Block Payment,University of the Highlands and Islands,98230030,4879.50,Training Awards - Postgraduates
,BEIS,UKRI - AHRC,24/07/18,Training Awards - Postgraduates,Collabrative Doctoral Grants - Block Payment,University of the Highlands and Islands,98230067,4874.50,Training Awards - Postgraduates
,BEIS,UKRI - AHRC,24/07/18,Training Awards - Postgraduates,BGP Award,University of the West of England,98229966,112597.41,Training Awards - Postgraduates
,BEIS,UKRI - AHRC,24/07/18,Training Awards - Postgraduates,BGP Award,University of the West of England,98230178,62536.20,Training Awards - Postgraduates
,BEIS,UKRI - AHRC,24/07/18,Training Awards - Postgraduates,Collabrative Doctoral Grants - Block Payment,University of Warwick,98230032,4879.50,Training Awards - Postgraduates
,BEIS,UKRI - AHRC,24/07/18,Training Awards - Postgraduates,Collabrative Doctoral Grants - Block Payment,University of Warwick,98230032,4879.50,Training Awards - Postgraduates
,BEIS,UKRI - AHRC,24/07/18,Training Awards - Postgraduates,Collabrative Doctoral Grants - Block Payment,University of Warwick,98230035,4879.50,Training Awards - Postgraduates
,BEIS,UKRI - AHRC,24/07/18,Training Awards - Postgraduates,Collabrative Doctoral Grants - Block Payment,University of Warwick,98230035,4879.50,Training Awards - Postgraduates
,BEIS,UKRI - AHRC,24/07/18,Training Awards - Postgraduates,Collabrative Doctoral Grants - Block Payment,University of Warwick,98230079,4874.50,Training Awards - Postgraduates
,BEIS,UKRI - AHRC,24/07/18,Training Awards - Postgraduates,Collabrative Doctoral Grants - Block Payment,University of Warwick,98230079,4874.50,Training Awards - Postgraduates
,BEIS,UKRI - AHRC,24/07/18,Training Awards - Postgraduates,Collabrative Doctoral Grants - Block Payment,University of Westminster,98230164,5473.00,Training Awards - Postgraduates
,BEIS,UKRI - AHRC,24/07/18,Training Awards - Postgraduates,Collabrative Doctoral Grants - Block Payment,University of Wolverhampton,98230130,4874.50,Training Awards - Postgraduates
,BEIS,UKRI - AHRC,24/07/18,Training Awards - Postgraduates,BGP Award,University of York,98229980,947362.84,Training Awards - Postgraduates
,BEIS,UKRI - AHRC,24/07/18,Training Awards - Postgraduates,Collabrative Doctoral Grants - Block Payment,University of York,98229993,9759.00,Training Awards - Postgraduates
,BEIS,UKRI - AHRC,24/07/18,Training Awards - Postgraduates,Collabrative Doctoral Grants - Block Payment,University of York,98229997,4879.50,Training Awards - Postgraduates
,BEIS,UKRI - AHRC,24/07/18,Training Awards - Postgraduates,Collabrative Doctoral Grants - Block Payment,University of York,98230045,4879.50,Training Awards - Postgraduates
,BEIS,UKRI - AHRC,24/07/18,Training Awards - Postgraduates,Collabrative Doctoral Grants - Block Payment,University of York,98230046,4879.50,Training Awards - Postgraduates
,BEIS,UKRI - AHRC,24/07/18,Training Awards - Postgraduates,Collabrative Doctoral Grants - Block Payment,University of York,98230053,4879.50,Training Awards - Postgraduates
,BEIS,UKRI - AHRC,24/07/18,Training Awards - Postgraduates,Collabrative Doctoral Grants - Block Payment,University of York,98230063,9749.00,Training Awards - Postgraduates
,BEIS,UKRI - AHRC,24/07/18,Training Awards - Postgraduates,Collabrative Doctoral Grants - Block Payment,University of York,98230078,4874.50,Training Awards - Postgraduates
,BEIS,UKRI - AHRC,24/07/18,Training Awards - Postgraduates,Collabrative Doctoral Grants - Block Payment,University of York,98230110,4874.50,Training Awards - Postgraduates
,BEIS,UKRI - AHRC,24/07/18,Training Awards - Postgraduates,Collabrative Doctoral Grants - Block Payment,University of York,98230158,4874.50,Training Awards - Postgraduates
,BEIS,UKRI - AHRC,24/07/18,Training Awards - Postgraduates,Collabrative Doctoral Grants - Block Payment,University of York,98230160,4874.50,Training Awards - Postgraduates
,BEIS,UKRI - AHRC,24/07/18,Training Awards - Postgraduates,International Placement Scheme,University of York,98230171,5670.00,Training Awards - Postgraduates
,BEIS,UKRI - AHRC,24/07/18,Training Awards - Postgraduates,International Placement Scheme,University of York,98230172,5670.00,Training Awards - Postgraduates
,BEIS,UKRI - AHRC,25/07/18,Council & Committee Honoraria,Secretariat,Unspecified,98240100,500.00,Council & Committee Honoraria
,BEIS,UKRI - AHRC,25/07/18,Council & Committee Honoraria,Secretariat,Unspecified,98240098,500.00,Council & Committee Honoraria
,BEIS,UKRI - AHRC,25/07/18,Council & Committee Honoraria,Secretariat,Unspecified,98240099,500.00,Council & Committee Honoraria
,BEIS,UKRI - AHRC,25/07/18,Council & Committee Honoraria,Secretariat,Unspecified,98240101,500.00,Council & Committee Honoraria
,BEIS,UKRI - AHRC,25/07/18,Council & Committee Honoraria,Secretariat,Unspecified,98240102,500.00,Council & Committee Honoraria
,BEIS,UKRI - AHRC,25/07/18,Council & Committee Honoraria,Secretariat,Unspecified,98240103,500.00,Council & Committee Honoraria
,BEIS,UKRI - AHRC,25/07/18,Council & Committee Honoraria,Secretariat,Unspecified,98240104,500.00,Council & Committee Honoraria
,BEIS,UKRI - AHRC,25/07/18,Council & Committee Honoraria,Secretariat,Unspecified,98240105,500.00,Council & Committee Honoraria
,BEIS,UKRI - AHRC,25/07/18,Council & Committee Honoraria,Secretariat,Unspecified,98240107,500.00,Council & Committee Honoraria
,BEIS,UKRI - AHRC,25/07/18,Council & Committee Honoraria,Secretariat,Unspecified,98240108,500.00,Council & Committee Honoraria
,BEIS,UKRI - AHRC,25/07/18,Council & Committee Honoraria,Secretariat,Unspecified,98240109,500.00,Council & Committee Honoraria
,BEIS,UKRI - AHRC,23/07/18,Health & Safety (inc. Medicals & Opticians),"AHRC - Strategic Planning, Evidence & Impact",Unspecified,98244938,25.00,Health & Safety (inc. Medicals & Opticians)
,BEIS,UKRI - AHRC,17/07/18,Health & Safety (inc. Medicals & Opticians),HR,Unspecified,98237071,100.00,Health & Safety (inc. Medicals & Opticians)
,BEIS,UKRI - AHRC,17/07/18,Marketing & PR,Communications,Unspecified,98235703,3000.00,Marketing & PR
,BEIS,UKRI - AHRC,12/07/18,T&S Overseas - Accommodation,SMT,Unspecified,98235280,381.07,T&S Overseas - Accommodation
,BEIS,UKRI - AHRC,24/07/18,T&S Overseas - Mileage,Newton Programme Delivery,Unspecified,98244550,86.50,T&S Overseas - Mileage
,BEIS,UKRI - AHRC,12/07/18,T&S Overseas - Other Charges,SMT,Unspecified,98235280,56.00,T&S Overseas - Other Charges
,BEIS,UKRI - AHRC,24/07/18,T&S Overseas - Parking Tolls Congestion Charges,Newton Programme Delivery,Unspecified,98244550,4.00,T&S Overseas - Parking Tolls Congestion Charges
,BEIS,UKRI - AHRC,30/07/18,T&S Overseas - Public Transport,GCRF - Programme Delivery,Unspecified,98248542,114.93,T&S Overseas - Public Transport
,BEIS,UKRI - AHRC,24/07/18,T&S Overseas - Public Transport,Newton Programme Delivery,Unspecified,98244550,49.05,T&S Overseas - Public Transport
,BEIS,UKRI - AHRC,30/07/18,T&S Overseas - Subsistence,GCRF - Programme Delivery,Unspecified,98248542,15.00,T&S Overseas - Subsistence
,BEIS,UKRI - AHRC,30/07/18,T&S Overseas - Subsistence,GCRF - Programme Delivery,Unspecified,98248542,31.79,T&S Overseas - Subsistence
,BEIS,UKRI - AHRC,30/07/18,T&S Overseas - Subsistence,GCRF - Programme Delivery,Unspecified,98248542,37.97,T&S Overseas - Subsistence
,BEIS,UKRI - AHRC,30/07/18,T&S Overseas - Subsistence,GCRF - Programme Delivery,Unspecified,98248542,7.80,T&S Overseas - Subsistence
,BEIS,UKRI - AHRC,24/07/18,T&S Overseas - Subsistence,Newton Programme Delivery,Unspecified,98244550,20.00,T&S Overseas - Subsistence
,BEIS,UKRI - AHRC,12/07/18,T&S Overseas - Subsistence,SMT,Unspecified,98235280,10.00,T&S Overseas - Subsistence
,BEIS,UKRI - AHRC,12/07/18,T&S Overseas - Subsistence,SMT,Unspecified,98235280,39.33,T&S Overseas - Subsistence
,BEIS,UKRI - AHRC,31/07/18,T&S UK - Accommodation,PSU Project Office,Unspecified,98205478,65.00,T&S UK - Accommodation
,BEIS,UKRI - AHRC,17/07/18,T&S UK - Mileage,IS,Unspecified,98238673,24.75,T&S UK - Mileage
,BEIS,UKRI - AHRC,12/07/18,T&S UK - Mileage,SMT,Unspecified,98235279,36.00,T&S UK - Mileage
,BEIS,UKRI - AHRC,30/07/18,T&S UK - Mileage,SMT,Unspecified,98248541,54.00,T&S UK - Mileage
,BEIS,UKRI - AHRC,09/07/18,T&S UK - Other Charges,Creative Arts & Digital Humanities,Unspecified,98233813,5.00,T&S UK - Other Charges
,BEIS,UKRI - AHRC,09/07/18,T&S UK - Other Charges,Creative Arts & Digital Humanities,Unspecified,98233813,6.50,T&S UK - Other Charges
,BEIS,UKRI - AHRC,19/07/18,T&S UK - Other Charges,Creative Arts & Digital Humanities,Unspecified,98241987,7.50,T&S UK - Other Charges
,BEIS,UKRI - AHRC,19/07/18,T&S UK - Other Charges,Newton Programme,Unspecified,98241988,55.47,T&S UK - Other Charges
,BEIS,UKRI - AHRC,19/07/18,T&S UK - Other Charges,Newton Programme Delivery,Unspecified,98241988,44.83,T&S UK - Other Charges
,BEIS,UKRI - AHRC,24/07/18,T&S UK - Other Charges,Newton Programme Delivery,Unspecified,98244550,42.66,T&S UK - Other Charges
,BEIS,UKRI - AHRC,09/07/18,T&S UK - Other Charges,PSU Project Office,Unspecified,98233815,8.68,T&S UK - Other Charges
,BEIS,UKRI - AHRC,31/07/18,T&S UK - Other Charges,Secretariat,Unspecified,98249931,6.50,T&S UK - Other Charges
,BEIS,UKRI - AHRC,12/07/18,T&S UK - Parking Tolls Congestion Charges,Creative Arts & Digital Humanities,Unspecified,98235278,16.80,T&S UK - Parking Tolls Congestion Charges
,BEIS,UKRI - AHRC,12/07/18,T&S UK - Parking Tolls Congestion Charges,SMT,Unspecified,98235279,62.90,T&S UK - Parking Tolls Congestion Charges
,BEIS,UKRI - AHRC,30/07/18,T&S UK - Parking Tolls Congestion Charges,SMT,Unspecified,98248541,56.00,T&S UK - Parking Tolls Congestion Charges
,BEIS,UKRI - AHRC,27/07/18,T&S UK - Public Transport,Communications,Unspecified,98248069,6.50,T&S UK - Public Transport
,BEIS,UKRI - AHRC,09/07/18,T&S UK - Public Transport,Creative Arts & Digital Humanities,Unspecified,98233813,24.34,T&S UK - Public Transport
,BEIS,UKRI - AHRC,12/07/18,T&S UK - Public Transport,Creative Arts & Digital Humanities,Unspecified,98235278,140.00,T&S UK - Public Transport
,BEIS,UKRI - AHRC,20/07/18,T&S UK - Public Transport,"Histories,Culture & Heritage",Unspecified,98243221,11.55,T&S UK - Public Transport
,BEIS,UKRI - AHRC,12/07/18,T&S UK - Public Transport,International,Unspecified,98235281,6.00,T&S UK - Public Transport
,BEIS,UKRI - AHRC,12/07/18,T&S UK - Public Transport,International,Unspecified,98235281,26.23,T&S UK - Public Transport
,BEIS,UKRI - AHRC,12/07/18,T&S UK - Public Transport,"Languages,Literature & International Engagement",Unspecified,98235281,13.40,T&S UK - Public Transport
,BEIS,UKRI - AHRC,12/07/18,T&S UK - Public Transport,"Languages,Literature & International Engagement",Unspecified,98235281,67.90,T&S UK - Public Transport
,BEIS,UKRI - AHRC,11/07/18,T&S UK - Public Transport,Newton Programme Delivery,Unspecified,98234858,53.10,T&S UK - Public Transport
,BEIS,UKRI - AHRC,19/07/18,T&S UK - Public Transport,Newton Programme Delivery,Unspecified,98241988,15.60,T&S UK - Public Transport
,BEIS,UKRI - AHRC,19/07/18,T&S UK - Public Transport,Newton Programme Delivery,Unspecified,98241988,32.49,T&S UK - Public Transport
,BEIS,UKRI - AHRC,09/07/18,T&S UK - Public Transport,PSU Project Office,Unspecified,98233815,26.20,T&S UK - Public Transport
,BEIS,UKRI - AHRC,31/07/18,T&S UK - Public Transport,PSU Project Office,Unspecified,98205478,6.60,T&S UK - Public Transport
,BEIS,UKRI - AHRC,31/07/18,T&S UK - Public Transport,PSU Project Office,Unspecified,98205478,25.70,T&S UK - Public Transport
,BEIS,UKRI - AHRC,26/07/18,T&S UK - Public Transport,SMT,Unspecified,98246518,133.00,T&S UK - Public Transport
,BEIS,UKRI - AHRC,27/07/18,T&S UK - Public Transport,SMT,Unspecified,98248068,44.00,T&S UK - Public Transport
,BEIS,UKRI - AHRC,30/07/18,T&S UK - Public Transport,SMT,Unspecified,98248541,7.00,T&S UK - Public Transport
,BEIS,UKRI - AHRC,27/07/18,T&S UK - Subsistence,Communications,Unspecified,98248069,28.90,T&S UK - Subsistence
,BEIS,UKRI - AHRC,27/07/18,T&S UK - Subsistence,Communications,Unspecified,98248069,22.19,T&S UK - Subsistence
,BEIS,UKRI - AHRC,27/07/18,T&S UK - Subsistence,Communications,Unspecified,98248069,68.96,T&S UK - Subsistence
,BEIS,UKRI - AHRC,27/07/18,T&S UK - Subsistence,Communications,Unspecified,98248069,20.00,T&S UK - Subsistence
,BEIS,UKRI - AHRC,09/07/18,T&S UK - Subsistence,Creative Arts & Digital Humanities,Unspecified,98233813,21.88,T&S UK - Subsistence
,BEIS,UKRI - AHRC,09/07/18,T&S UK - Subsistence,Creative Arts & Digital Humanities,Unspecified,98233813,4.74,T&S UK - Subsistence
,BEIS,UKRI - AHRC,09/07/18,T&S UK - Subsistence,Creative Arts & Digital Humanities,Unspecified,98233813,25.29,T&S UK - Subsistence
,BEIS,UKRI - AHRC,09/07/18,T&S UK - Subsistence,Creative Arts & Digital Humanities,Unspecified,98233813,25.00,T&S UK - Subsistence
,BEIS,UKRI - AHRC,19/07/18,T&S UK - Subsistence,Creative Arts & Digital Humanities,Unspecified,98241987,28.04,T&S UK - Subsistence
,BEIS,UKRI - AHRC,19/07/18,T&S UK - Subsistence,Creative Arts & Digital Humanities,Unspecified,98241987,5.13,T&S UK - Subsistence
,BEIS,UKRI - AHRC,20/07/18,T&S UK - Subsistence,"Histories,Culture & Heritage",Unspecified,98243221,5.75,T&S UK - Subsistence
,BEIS,UKRI - AHRC,26/07/18,T&S UK - Subsistence,"Histories,Culture & Heritage",Unspecified,98246516,52.80,T&S UK - Subsistence
,BEIS,UKRI - AHRC,26/07/18,T&S UK - Subsistence,"Histories,Culture & Heritage",Unspecified,98246516,10.00,T&S UK - Subsistence
,BEIS,UKRI - AHRC,26/07/18,T&S UK - Subsistence,"Histories,Culture & Heritage",Unspecified,98246517,9.20,T&S UK - Subsistence
,BEIS,UKRI - AHRC,12/07/18,T&S UK - Subsistence,International,Unspecified,98235281,7.04,T&S UK - Subsistence
,BEIS,UKRI - AHRC,12/07/18,T&S UK - Subsistence,International,Unspecified,98235281,10.00,T&S UK - Subsistence
,BEIS,UKRI - AHRC,19/07/18,T&S UK - Subsistence,"Languages,Literature & International Engagement",Unspecified,98241986,12.57,T&S UK - Subsistence
,BEIS,UKRI - AHRC,11/07/18,T&S UK - Subsistence,Newton Programme Delivery,Unspecified,98234858,9.00,T&S UK - Subsistence
,BEIS,UKRI - AHRC,19/07/18,T&S UK - Subsistence,Newton Programme Delivery,Unspecified,98241988,15.90,T&S UK - Subsistence
,BEIS,UKRI - AHRC,19/07/18,T&S UK - Subsistence,Newton Programme Delivery,Unspecified,98241988,15.00,T&S UK - Subsistence
,BEIS,UKRI - AHRC,09/07/18,T&S UK - Subsistence,PSU Project Office,Unspecified,98233815,34.89,T&S UK - Subsistence
,BEIS,UKRI - AHRC,09/07/18,T&S UK - Subsistence,PSU Project Office,Unspecified,98233815,14.50,T&S UK - Subsistence
,BEIS,UKRI - AHRC,31/07/18,T&S UK - Subsistence,PSU Project Office,Unspecified,98205478,8.95,T&S UK - Subsistence
,BEIS,UKRI - AHRC,12/07/18,T&S UK - Subsistence,SMT,Unspecified,98235279,16.65,T&S UK - Subsistence
,BEIS,UKRI - AHRC,12/07/18,T&S UK - Subsistence,SMT,Unspecified,98235279,34.80,T&S UK - Subsistence
,BEIS,UKRI - AHRC,12/07/18,T&S UK - Subsistence,SMT,Unspecified,98235279,10.25,T&S UK - Subsistence
,BEIS,UKRI - AHRC,12/07/18,T&S UK - Subsistence,SMT,Unspecified,98235279,15.00,T&S UK - Subsistence
,BEIS,UKRI - AHRC,26/07/18,T&S UK - Subsistence,SMT,Unspecified,98246518,7.50,T&S UK - Subsistence
,BEIS,UKRI - AHRC,26/07/18,T&S UK - Subsistence,SMT,Unspecified,98246518,25.00,T&S UK - Subsistence
,BEIS,UKRI - AHRC,26/07/18,T&S UK - Subsistence,SMT,Unspecified,98246518,10.00,T&S UK - Subsistence
,BEIS,UKRI - AHRC,27/07/18,T&S UK - Subsistence,SMT,Unspecified,98248067,10.50,T&S UK - Subsistence
,BEIS,UKRI - AHRC,27/07/18,T&S UK - Subsistence,SMT,Unspecified,98248067,25.45,T&S UK - Subsistence
,BEIS,UKRI - AHRC,27/07/18,T&S UK - Subsistence,SMT,Unspecified,98248067,33.09,T&S UK - Subsistence
,BEIS,UKRI - AHRC,27/07/18,T&S UK - Subsistence,SMT,Unspecified,98248067,10.00,T&S UK - Subsistence
,BEIS,UKRI - AHRC,27/07/18,T&S UK - Subsistence,SMT,Unspecified,98248067,13.19,T&S UK - Subsistence
,BEIS,UKRI - AHRC,27/07/18,T&S UK - Subsistence,SMT,Unspecified,98248068,50.00,T&S UK - Subsistence
,BEIS,UKRI - AHRC,27/07/18,T&S UK - Subsistence,SMT,Unspecified,98248068,5.00,T&S UK - Subsistence
,BEIS,UKRI - AHRC,30/07/18,T&S UK - Subsistence,SMT,Unspecified,98248541,5.00,T&S UK - Subsistence
,BEIS,UKRI - AHRC,30/07/18,T&S UK - Subsistence,SMT,Unspecified,98248541,33.80,T&S UK - Subsistence
,BEIS,UKRI - AHRC,30/07/18,T&S UK - Subsistence,SMT,Unspecified,98248541,16.25,T&S UK - Subsistence
,BEIS,UKRI - AHRC,30/07/18,T&S UK - Subsistence,SMT,Unspecified,98248541,5.00,T&S UK - Subsistence
,BEIS,UKRI - AHRC,27/07/18,UK - Professional Memberships & Subscriptions,Communications,Unspecified,98248069,35.00,UK - Professional Memberships & Subscriptions
,BEIS,UKRI - AHRC,09/07/18,UK - Professional Memberships & Subscriptions,HR,Unspecified,98233814,159.00,UK - Professional Memberships & Subscriptions
,BEIS,UKRI - AHRC,17/07/18,UK - Professional Memberships & Subscriptions,HR,Unspecified,98237072,159.00,UK - Professional Memberships & Subscriptions
,BEIS,UKRI - AHRC,06/07/18,Conferences & Seminars,"AHRC - Strategic Planning, Evidence & Impact",Via-Vox Ltd T/A Powwownow,98231206,46.49,Conferences & Seminars
,BEIS,UKRI - AHRC,24/07/18,Training Awards - Postgraduates,Collabrative Doctoral Grants - Block Payment,Victoria and Albert Museum,98230054,21079.75,Training Awards - Postgraduates
,BEIS,UKRI - AHRC,12/07/18,Printing & Stationery,PSU Project Office,VWR International Ltd,98236263,19.13,Printing & Stationery
,BEIS,UKRI - AHRC,19/07/18,Recruitment Costs,Corporate Services,Warwick University Services Ltd,98240596,239.00,Recruitment Costs
,BEIS,UKRI - AHRC,25/07/18,Recruitment Costs,Industrial Strategy Challenge Fund (ISCF) - Creative Clusters,Warwick University Services Ltd,98246904,239.00,Recruitment Costs
,BEIS,UKRI - AHRC,12/07/18,Mobile Phone Costs,Corporate Services,West UC Ltd,98235157,543.56,Mobile Phone Costs
,BEIS,UKRI - AHRC,12/07/18,Mobile Phone Costs,Corporate Services,West UC Ltd,98235157,108.71,Mobile Phone Costs
,BEIS,UKRI - BBSRC,05/07/18,FG - Accounts & Business Planning,Legal & Professional Services,Taylor Vinters Solicitors,98230395,4932.00,FG - Accounts & Business Planning
,BEIS,UKRI - BBSRC,23/07/18,JBOS - Maintenance,Non-Capital Building Construction,Abbey Business Equipment Ltd,98244025,146.70,JBOS - Maintenance
,BEIS,UKRI - BBSRC,10/07/18,FG - Accounts & Business Planning,Training Awards - Postgraduates,Aberystwyth University,98228051,"3,719.55",FG - Accounts & Business Planning
,BEIS,UKRI - BBSRC,10/07/18,FG - Accounts & Business Planning,Training Awards - Postgraduates,Aberystwyth University,98228124,"5,940.12",FG - Accounts & Business Planning
,BEIS,UKRI - BBSRC,10/07/18,FG - Accounts & Business Planning,Training Awards - Postgraduates,Aberystwyth University,98228126,"5,940.12",FG - Accounts & Business Planning
,BEIS,UKRI - BBSRC,10/07/18,FG - Accounts & Business Planning,Training Awards - Postgraduates,Aberystwyth University,98228176,"5,940.12",FG - Accounts & Business Planning
,BEIS,UKRI - BBSRC,10/07/18,FG - Accounts & Business Planning,Training Awards - Postgraduates,Aberystwyth University,98228184,"5,940.12",FG - Accounts & Business Planning
,BEIS,UKRI - BBSRC,10/07/18,FG - Accounts & Business Planning,Training Awards - Postgraduates,Aberystwyth University,98228186,"5,940.12",FG - Accounts & Business Planning
,BEIS,UKRI - BBSRC,03/07/18,CIMG - Council Secretariat,Recruitment Costs,Agenda Resource Management Ltd,98226962,33.40,CIMG - Council Secretariat
,BEIS,UKRI - BBSRC,06/07/18,PDG - Director,Recruitment Costs,Agenda Resource Management Ltd,98231333,155.91,PDG - Director
,BEIS,UKRI - BBSRC,18/07/18,CE - CPS,Research Consumables,Agresearch Ltd,98237052,"13,264.24",CE - CPS
,BEIS,UKRI - BBSRC,19/07/18,CIMG - External Relations,Agency Staff,Alexander Mann Solutions Ltd,98241379,"1,176.98",CIMG - External Relations
,BEIS,UKRI - BBSRC,26/07/18,PDG - Director,Health & Safety (inc. Medicals & Opticians),AM Health & Safety Ltd,98244054,144.00,PDG - Director
,BEIS,UKRI - BBSRC,04/07/18,Science Group,Other Programme Costs,Unspecified,98222735,"6,154.98",Science Group
,BEIS,UKRI - BBSRC,04/07/18,JBOS - Maintenance,Mechanical & Electrical Maintenance,AR Electrical (Swindon) Ltd,98229742,"4,104.00",JBOS - Maintenance
,BEIS,UKRI - BBSRC,04/07/18,JBOS - Maintenance,Mechanical & Electrical Maintenance,AR Electrical (Swindon) Ltd,98229743,"1,860.00",JBOS - Maintenance
,BEIS,UKRI - BBSRC,04/07/18,JBOS - Maintenance,Mechanical & Electrical Maintenance,AR Electrical (Swindon) Ltd,98229744,"2,802.00",JBOS - Maintenance
,BEIS,UKRI - BBSRC,10/07/18,FG - Accounts & Business Planning,Training Awards - Postgraduates,Aston University,98228138,"5,940.12",FG - Accounts & Business Planning
,BEIS,UKRI - BBSRC,10/07/18,FG - Accounts & Business Planning,Training Awards - Postgraduates,Aston University,98228202,"5,940.12",FG - Accounts & Business Planning
,BEIS,UKRI - BBSRC,02/07/18,CIMG - Director,Computing Consumables,Banner Group Ltd,98227717,78.13,CIMG - Director
,BEIS,UKRI - BBSRC,03/07/18,PDG - Director,Health & Safety (inc. Medicals & Opticians),Banner Group Ltd,98225597,18.96,PDG - Director
,BEIS,UKRI - BBSRC,24/07/18,JBOS Health and Safety,Health & Safety (inc. Medicals & Opticians),Banner Group Ltd,98197853,15.41,JBOS Health and Safety
,BEIS,UKRI - BBSRC,24/07/18,PDG - Director,Health & Safety (inc. Medicals & Opticians),Banner Group Ltd,98230247,56.88,PDG - Director
,BEIS,UKRI - BBSRC,02/07/18,CIMG - Director,Mechanical & Electrical Maintenance,Banner Group Ltd,98227720,1.67,CIMG - Director
,BEIS,UKRI - BBSRC,02/07/18,CIMG - Director,Printing & Stationery,Banner Group Ltd,98226007,3.60,CIMG - Director
,BEIS,UKRI - BBSRC,02/07/18,CIMG - Director,Printing & Stationery,Banner Group Ltd,98226007,2.16,CIMG - Director
,BEIS,UKRI - BBSRC,02/07/18,CIMG - Director,Printing & Stationery,Banner Group Ltd,98226007,2.30,CIMG - Director
,BEIS,UKRI - BBSRC,02/07/18,CIMG - Director,Printing & Stationery,Banner Group Ltd,98226007,13.06,CIMG - Director
,BEIS,UKRI - BBSRC,02/07/18,JBOS - Administration,Printing & Stationery,Banner Group Ltd,98227710,60.89,JBOS - Administration
,BEIS,UKRI - BBSRC,02/07/18,JBOS - Administration,Printing & Stationery,Banner Group Ltd,98227711,27.36,JBOS - Administration
,BEIS,UKRI - BBSRC,02/07/18,JBOS - Administration,Printing & Stationery,Banner Group Ltd,98227711,21.17,JBOS - Administration
,BEIS,UKRI - BBSRC,02/07/18,JBOS - Administration,Printing & Stationery,Banner Group Ltd,98227711,15.12,JBOS - Administration
,BEIS,UKRI - BBSRC,02/07/18,JBOS - Administration,Printing & Stationery,Banner Group Ltd,98227711,26.88,JBOS - Administration
,BEIS,UKRI - BBSRC,02/07/18,JBOS - Administration,Printing & Stationery,Banner Group Ltd,98227711,95.52,JBOS - Administration
,BEIS,UKRI - BBSRC,02/07/18,JBOS - Administration,Printing & Stationery,Banner Group Ltd,98227711,6.24,JBOS - Administration
,BEIS,UKRI - BBSRC,02/07/18,JBOS - Administration,Printing & Stationery,Banner Group Ltd,98227711,4.80,JBOS - Administration
,BEIS,UKRI - BBSRC,02/07/18,JBOS - Administration,Printing & Stationery,Banner Group Ltd,98227711,13.68,JBOS - Administration
,BEIS,UKRI - BBSRC,02/07/18,JBOS - Administration,Printing & Stationery,Banner Group Ltd,98227711,1.44,JBOS - Administration
,BEIS,UKRI - BBSRC,02/07/18,JBOS - Administration,Printing & Stationery,Banner Group Ltd,98227711,9.48,JBOS - Administration
,BEIS,UKRI - BBSRC,02/07/18,JBOS - Administration,Printing & Stationery,Banner Group Ltd,98227711,11.16,JBOS - Administration
,BEIS,UKRI - BBSRC,02/07/18,JBOS - Administration,Printing & Stationery,Banner Group Ltd,98227711,12.48,JBOS - Administration
,BEIS,UKRI - BBSRC,02/07/18,JBOS - Administration,Printing & Stationery,Banner Group Ltd,98227712,36.41,JBOS - Administration
,BEIS,UKRI - BBSRC,02/07/18,JBOS - Administration,Printing & Stationery,Banner Group Ltd,98227713,10.20,JBOS - Administration
,BEIS,UKRI - BBSRC,02/07/18,JBOS - Administration,Printing & Stationery,Banner Group Ltd,98227713,12.10,JBOS - Administration
,BEIS,UKRI - BBSRC,02/07/18,JBOS - Administration,Printing & Stationery,Banner Group Ltd,98227713,9.07,JBOS - Administration
,BEIS,UKRI - BBSRC,02/07/18,JBOS - Administration,Printing & Stationery,Banner Group Ltd,98227713,13.44,JBOS - Administration
,BEIS,UKRI - BBSRC,02/07/18,JBOS - Administration,Printing & Stationery,Banner Group Ltd,98227713,0.48,JBOS - Administration
,BEIS,UKRI - BBSRC,02/07/18,JBOS - Administration,Printing & Stationery,Banner Group Ltd,98227713,19.68,JBOS - Administration
,BEIS,UKRI - BBSRC,02/07/18,JBOS - Administration,Printing & Stationery,Banner Group Ltd,98227713,12.48,JBOS - Administration
,BEIS,UKRI - BBSRC,02/07/18,JBOS - Administration,Printing & Stationery,Banner Group Ltd,98227713,27.35,JBOS - Administration
,BEIS,UKRI - BBSRC,02/07/18,JBOS - Administration,Printing & Stationery,Banner Group Ltd,98227713,9.24,JBOS - Administration
,BEIS,UKRI - BBSRC,02/07/18,JBOS - Administration,Printing & Stationery,Banner Group Ltd,98227713,9.24,JBOS - Administration
,BEIS,UKRI - BBSRC,02/07/18,JBOS - Administration,Printing & Stationery,Banner Group Ltd,98227713,9.24,JBOS - Administration
,BEIS,UKRI - BBSRC,02/07/18,JBOS - Administration,Printing & Stationery,Banner Group Ltd,98227713,15.22,JBOS - Administration
,BEIS,UKRI - BBSRC,02/07/18,PDG - Director,Printing & Stationery,Banner Group Ltd,98227714,8.69,PDG - Director
,BEIS,UKRI - BBSRC,02/07/18,PDG - Director,Printing & Stationery,Banner Group Ltd,98227714,21.81,PDG - Director
,BEIS,UKRI - BBSRC,02/07/18,CIMG - Director,Printing & Stationery,Banner Group Ltd,98227715,5.40,CIMG - Director
,BEIS,UKRI - BBSRC,02/07/18,CIMG - Director,Printing & Stationery,Banner Group Ltd,98227715,3.60,CIMG - Director
,BEIS,UKRI - BBSRC,02/07/18,CIMG - Director,Printing & Stationery,Banner Group Ltd,98227715,73.35,CIMG - Director
,BEIS,UKRI - BBSRC,02/07/18,CIMG - Director,Printing & Stationery,Banner Group Ltd,98227715,25.21,CIMG - Director
,BEIS,UKRI - BBSRC,02/07/18,JBOS - Administration,Printing & Stationery,Banner Group Ltd,98227716,7.56,JBOS - Administration
,BEIS,UKRI - BBSRC,02/07/18,JBOS - Administration,Printing & Stationery,Banner Group Ltd,98227716,6.72,JBOS - Administration
,BEIS,UKRI - BBSRC,02/07/18,JBOS - Administration,Printing & Stationery,Banner Group Ltd,98227716,6.60,JBOS - Administration
,BEIS,UKRI - BBSRC,02/07/18,JBOS - Administration,Printing & Stationery,Banner Group Ltd,98227716,9.24,JBOS - Administration
,BEIS,UKRI - BBSRC,02/07/18,JBOS - Administration,Printing & Stationery,Banner Group Ltd,98227716,9.24,JBOS - Administration
,BEIS,UKRI - BBSRC,02/07/18,JBOS - Administration,Printing & Stationery,Banner Group Ltd,98227716,9.24,JBOS - Administration
,BEIS,UKRI - BBSRC,02/07/18,JBOS - Administration,Printing & Stationery,Banner Group Ltd,98227716,9.24,JBOS - Administration
,BEIS,UKRI - BBSRC,02/07/18,JBOS - Administration,Printing & Stationery,Banner Group Ltd,98227716,12.48,JBOS - Administration
,BEIS,UKRI - BBSRC,02/07/18,CIMG - Director,Printing & Stationery,Banner Group Ltd,98227717,19.01,CIMG - Director
,BEIS,UKRI - BBSRC,02/07/18,CIMG - Director,Printing & Stationery,Banner Group Ltd,98227719,2.16,CIMG - Director
,BEIS,UKRI - BBSRC,02/07/18,CIMG - Director,Printing & Stationery,Banner Group Ltd,98227720,1.76,CIMG - Director
,BEIS,UKRI - BBSRC,02/07/18,CIMG - Director,Printing & Stationery,Banner Group Ltd,98227720,0.52,CIMG - Director
,BEIS,UKRI - BBSRC,02/07/18,JBOS - Administration,Printing & Stationery,Banner Group Ltd,98227721,1.02,JBOS - Administration
,BEIS,UKRI - BBSRC,02/07/18,JBOS - Administration,Printing & Stationery,Banner Group Ltd,98227721,10.58,JBOS - Administration
,BEIS,UKRI - BBSRC,02/07/18,JBOS - Administration,Printing & Stationery,Banner Group Ltd,98227721,19.68,JBOS - Administration
,BEIS,UKRI - BBSRC,02/07/18,JBOS - Administration,Printing & Stationery,Banner Group Ltd,98227721,77.52,JBOS - Administration
,BEIS,UKRI - BBSRC,02/07/18,JBOS - Administration,Printing & Stationery,Banner Group Ltd,98227721,1.50,JBOS - Administration
,BEIS,UKRI - BBSRC,02/07/18,JBOS - Administration,Printing & Stationery,Banner Group Ltd,98227721,53.58,JBOS - Administration
,BEIS,UKRI - BBSRC,02/07/18,JBOS - Administration,Printing & Stationery,Banner Group Ltd,98227721,56.94,JBOS - Administration
,BEIS,UKRI - BBSRC,02/07/18,JBOS - Administration,Printing & Stationery,Banner Group Ltd,98227721,14.40,JBOS - Administration
,BEIS,UKRI - BBSRC,02/07/18,JBOS - Administration,Printing & Stationery,Banner Group Ltd,98227721,9.48,JBOS - Administration
,BEIS,UKRI - BBSRC,02/07/18,JBOS - Administration,Printing & Stationery,Banner Group Ltd,98227722,4.02,JBOS - Administration
,BEIS,UKRI - BBSRC,02/07/18,JBOS - Administration,Printing & Stationery,Banner Group Ltd,98227722,33.91,JBOS - Administration
,BEIS,UKRI - BBSRC,02/07/18,JBOS - Administration,Printing & Stationery,Banner Group Ltd,98227724,8.02,JBOS - Administration
,BEIS,UKRI - BBSRC,02/07/18,JBOS - Administration,Printing & Stationery,Banner Group Ltd,98227724,2.88,JBOS - Administration
,BEIS,UKRI - BBSRC,02/07/18,JBOS - Administration,Printing & Stationery,Banner Group Ltd,98227724,26.88,JBOS - Administration
,BEIS,UKRI - BBSRC,02/07/18,JBOS - Administration,Printing & Stationery,Banner Group Ltd,98227724,21.96,JBOS - Administration
,BEIS,UKRI - BBSRC,02/07/18,JBOS - Administration,Printing & Stationery,Banner Group Ltd,98227724,50.40,JBOS - Administration
,BEIS,UKRI - BBSRC,02/07/18,JBOS - Administration,Printing & Stationery,Banner Group Ltd,98227724,9.36,JBOS - Administration
,BEIS,UKRI - BBSRC,02/07/18,JBOS - Administration,Printing & Stationery,Banner Group Ltd,98227724,2.40,JBOS - Administration
,BEIS,UKRI - BBSRC,02/07/18,JBOS - Administration,Printing & Stationery,Banner Group Ltd,98227724,34.20,JBOS - Administration
,BEIS,UKRI - BBSRC,02/07/18,JBOS - Administration,Printing & Stationery,Banner Group Ltd,98227724,6.00,JBOS - Administration
,BEIS,UKRI - BBSRC,02/07/18,JBOS - Administration,Printing & Stationery,Banner Group Ltd,98227724,14.40,JBOS - Administration
,BEIS,UKRI - BBSRC,02/07/18,JBOS - Administration,Printing & Stationery,Banner Group Ltd,98227724,9.48,JBOS - Administration
,BEIS,UKRI - BBSRC,02/07/18,JBOS - Administration,Printing & Stationery,Banner Group Ltd,98227727,43.92,JBOS - Administration
,BEIS,UKRI - BBSRC,02/07/18,JBOS - Administration,Printing & Stationery,Banner Group Ltd,98227728,10.72,JBOS - Administration
,BEIS,UKRI - BBSRC,12/07/18,JBOS - Administration,Printing & Stationery,Banner Group Ltd,98236152,10.20,JBOS - Administration
,BEIS,UKRI - BBSRC,12/07/18,JBOS - Administration,Printing & Stationery,Banner Group Ltd,98236152,12.10,JBOS - Administration
,BEIS,UKRI - BBSRC,12/07/18,JBOS - Administration,Printing & Stationery,Banner Group Ltd,98236152,10.58,JBOS - Administration
,BEIS,UKRI - BBSRC,12/07/18,JBOS - Administration,Printing & Stationery,Banner Group Ltd,98236152,7.61,JBOS - Administration
,BEIS,UKRI - BBSRC,12/07/18,JBOS - Administration,Printing & Stationery,Banner Group Ltd,98236152,2.64,JBOS - Administration
,BEIS,UKRI - BBSRC,12/07/18,JBOS - Administration,Printing & Stationery,Banner Group Ltd,98236152,19.68,JBOS - Administration
,BEIS,UKRI - BBSRC,12/07/18,JBOS - Administration,Printing & Stationery,Banner Group Ltd,98236152,77.52,JBOS - Administration
,BEIS,UKRI - BBSRC,12/07/18,JBOS - Administration,Printing & Stationery,Banner Group Ltd,98236152,42.84,JBOS - Administration
,BEIS,UKRI - BBSRC,12/07/18,JBOS - Administration,Printing & Stationery,Banner Group Ltd,98236152,12.48,JBOS - Administration
,BEIS,UKRI - BBSRC,12/07/18,JBOS - Administration,Printing & Stationery,Banner Group Ltd,98236152,5.76,JBOS - Administration
,BEIS,UKRI - BBSRC,12/07/18,JBOS - Administration,Printing & Stationery,Banner Group Ltd,98236152,58.14,JBOS - Administration
,BEIS,UKRI - BBSRC,12/07/18,JBOS - Administration,Printing & Stationery,Banner Group Ltd,98236152,21.96,JBOS - Administration
,BEIS,UKRI - BBSRC,12/07/18,JBOS - Administration,Printing & Stationery,Banner Group Ltd,98236152,9.00,JBOS - Administration
,BEIS,UKRI - BBSRC,12/07/18,JBOS - Administration,Printing & Stationery,Banner Group Ltd,98236152,2.52,JBOS - Administration
,BEIS,UKRI - BBSRC,12/07/18,JBOS - Administration,Printing & Stationery,Banner Group Ltd,98236152,17.28,JBOS - Administration
,BEIS,UKRI - BBSRC,12/07/18,JBOS - Administration,Printing & Stationery,Banner Group Ltd,98236152,13.27,JBOS - Administration
,BEIS,UKRI - BBSRC,12/07/18,JBOS - Staff,Printing & Stationery,Banner Group Ltd,98236152,12.84,JBOS - Staff
,BEIS,UKRI - BBSRC,19/07/18,CIMG - Director,Printing & Stationery,Banner Group Ltd,98239843,57.73,CIMG - Director
,BEIS,UKRI - BBSRC,24/07/18,JBOS - Staff,Printing & Stationery,Banner Group Ltd,98230248,51.48,JBOS - Staff
,BEIS,UKRI - BBSRC,26/07/18,JBOS - Administration,Printing & Stationery,Banner Group Ltd,98245046,10.02,JBOS - Administration
,BEIS,UKRI - BBSRC,26/07/18,JBOS - Administration,Printing & Stationery,Banner Group Ltd,98245046,5.76,JBOS - Administration
,BEIS,UKRI - BBSRC,26/07/18,JBOS - Administration,Printing & Stationery,Banner Group Ltd,98245046,8.64,JBOS - Administration
,BEIS,UKRI - BBSRC,26/07/18,JBOS - Administration,Printing & Stationery,Banner Group Ltd,98245046,13.44,JBOS - Administration
,BEIS,UKRI - BBSRC,26/07/18,JBOS - Administration,Printing & Stationery,Banner Group Ltd,98245046,7.61,JBOS - Administration
,BEIS,UKRI - BBSRC,26/07/18,JBOS - Administration,Printing & Stationery,Banner Group Ltd,98245046,50.40,JBOS - Administration
,BEIS,UKRI - BBSRC,26/07/18,JBOS - Administration,Printing & Stationery,Banner Group Ltd,98245046,1.08,JBOS - Administration
,BEIS,UKRI - BBSRC,26/07/18,JBOS - Administration,Printing & Stationery,Banner Group Ltd,98245046,6.24,JBOS - Administration
,BEIS,UKRI - BBSRC,26/07/18,JBOS - Administration,Printing & Stationery,Banner Group Ltd,98245046,14.40,JBOS - Administration
,BEIS,UKRI - BBSRC,26/07/18,JBOS - Administration,Printing & Stationery,Banner Group Ltd,98245046,9.48,JBOS - Administration
,BEIS,UKRI - BBSRC,02/07/18,CIMG - Director,Purchase of non capital equipment,Banner Group Ltd,98227720,1.90,CIMG - Director
,BEIS,UKRI - BBSRC,02/07/18,CIMG - Director,Purchase of non capital equipment,Banner Group Ltd,98227720,3.79,CIMG - Director
,BEIS,UKRI - BBSRC,02/07/18,CIMG - Director,Purchase of non capital equipment,Banner Group Ltd,98227720,4.79,CIMG - Director
,BEIS,UKRI - BBSRC,02/07/18,CIMG - Director,Purchase of non capital equipment,Banner Group Ltd,98227720,4.10,CIMG - Director
,BEIS,UKRI - BBSRC,02/07/18,CIMG - Director,Purchase of non capital equipment,Banner Group Ltd,98227720,4.10,CIMG - Director
,BEIS,UKRI - BBSRC,02/07/18,JBOS - Administration,Research & Scientific Equipment,Banner Group Ltd,98227721,3.12,JBOS - Administration
,BEIS,UKRI - BBSRC,02/07/18,JBOS - Maintenance,Security Services,Banner Group Ltd,98227723,31.15,JBOS - Maintenance
,BEIS,UKRI - BBSRC,05/07/18,CE - Chief Executive,Meetings & Catering,Baxter Storey Ltd,98230496,32.20,CE - Chief Executive
,BEIS,UKRI - BBSRC,05/07/18,CE - Chief Executive,Meetings & Catering,Baxter Storey Ltd,98230496,161.00,CE - Chief Executive
,BEIS,UKRI - BBSRC,05/07/18,FG - Director,Meetings & Catering,Baxter Storey Ltd,98230496,60.74,FG - Director
,BEIS,UKRI - BBSRC,05/07/18,FG - Director,Meetings & Catering,Baxter Storey Ltd,98230496,303.70,FG - Director
,BEIS,UKRI - BBSRC,05/07/18,Science Group,Meetings & Catering,Baxter Storey Ltd,98230496,98.17,Science Group
,BEIS,UKRI - BBSRC,05/07/18,Science Group,Meetings & Catering,Baxter Storey Ltd,98230496,490.85,Science Group
,BEIS,UKRI - BBSRC,05/07/18,PDG - Director,Other Staff Benefits,Benenden Healthcare Society,98229533,"9,235.25",PDG - Director
,BEIS,UKRI - BBSRC,24/07/18,PDG - Director,Other Staff Benefits,Benenden Healthcare Society,98244452,"9,592.75",PDG - Director
,BEIS,UKRI - BBSRC,20/07/18,PDG - Director,Health & Safety (inc. Medicals & Opticians),BMI Healthcare Limited,98240255,"1,374.20",PDG - Director
,BEIS,UKRI - BBSRC,27/07/18,PDG - Director,Staff Training,Bray Leino Ltd,98247966,"1,080.00",PDG - Director
,BEIS,UKRI - BBSRC,27/07/18,PDG - Director,Staff Training,Bray Leino Ltd,98247968,"1,080.00",PDG - Director
,BEIS,UKRI - BBSRC,20/07/18,Science Group,Other Programme Costs,British Society For Research On Ageing,98243663,"6,000.00",Science Group
,BEIS,UKRI - BBSRC,05/07/18,CIMG - External Relations,Agency Staff,Brook Street (UK) Ltd,98230495,549.97,CIMG - External Relations
,BEIS,UKRI - BBSRC,10/07/18,FG - Accounts & Business Planning,Training Awards - Postgraduates,Brunel University London,98228360,"6,543.50",FG - Accounts & Business Planning
,BEIS,UKRI - BBSRC,17/07/18,CE - CPS,Telecoms - Tele/ Video conferencing,BT Conferencing,98237559,65.09,CE - CPS
,BEIS,UKRI - BBSRC,17/07/18,CE - CPS,Telecoms - Tele/ Video conferencing,BT Conferencing,98237559,206.30,CE - CPS
,BEIS,UKRI - BBSRC,17/07/18,FG - Director,Telecoms - Tele/ Video conferencing,BT Conferencing,98237559,191.48,FG - Director
,BEIS,UKRI - BBSRC,17/07/18,Innovation and Skills Group,Telecoms - Tele/ Video conferencing,BT Conferencing,98237559,615.77,Innovation and Skills Group
,BEIS,UKRI - BBSRC,17/07/18,PDG - Director,Telecoms - Tele/ Video conferencing,BT Conferencing,98237559,57.26,PDG - Director
,BEIS,UKRI - BBSRC,05/07/18,Science Group - Delivery Function,Conferences & Seminars,Calder Conference Ltd,98210478,"32,857.30",Science Group - Delivery Function
,BEIS,UKRI - BBSRC,13/07/18,CIMG - Council Secretariat,Corporate Events,Calder Conference Ltd,98235602,"1,795.01",CIMG - Council Secretariat
,BEIS,UKRI - BBSRC,17/07/18,CIMG - Council Secretariat,Corporate Events,Calder Conference Ltd,98234779,"3,041.00",CIMG - Council Secretariat
,BEIS,UKRI - BBSRC,31/07/18,CIMG - Council Secretariat,Corporate Events,Calder Conference Ltd,98246392,534.00,CIMG - Council Secretariat
,BEIS,UKRI - BBSRC,20/07/18,PDG - Director,Meetings & Catering,Calder Conference Ltd,98242260,171.00,PDG - Director
,BEIS,UKRI - BBSRC,10/07/18,Science Group,Other Programme Costs,Calder Conference Ltd,98234479,850.00,Science Group
,BEIS,UKRI - BBSRC,11/07/18,Innovation and Skills Group CDSU,Other Programme Costs,Calder Conference Ltd,98233558,45.00,Innovation and Skills Group CDSU
,BEIS,UKRI - BBSRC,12/07/18,Science Group,Other Programme Costs,Calder Conference Ltd,98228720,"6,747.00",Science Group
,BEIS,UKRI - BBSRC,13/07/18,Innovation and Skills Group,Other Programme Costs,Calder Conference Ltd,98228719,660.00,Innovation and Skills Group
,BEIS,UKRI - BBSRC,13/07/18,CE - CPS,Other Programme Costs,Calder Conference Ltd,98235601,818.40,CE - CPS
,BEIS,UKRI - BBSRC,18/07/18,Innovation and Skills Group CDSU,Other Programme Costs,Calder Conference Ltd,98240165,983.00,Innovation and Skills Group CDSU
,BEIS,UKRI - BBSRC,10/07/18,FG - Accounts & Business Planning,Training Awards - Postgraduates,Cambridge Crystallographic Data Centre,98228317,"6,043.50",FG - Accounts & Business Planning
,BEIS,UKRI - BBSRC,06/07/18,PDG - Director,Staff Training,Cambridge Marketing College Ltd,98232511,"2,811.00",PDG - Director
,BEIS,UKRI - BBSRC,11/07/18,CIMG - Information Systems,Hardware/Software Maintenance,Capita Secure Information Solutions Ltd T/A Capita Workforce Management,98232831,"52,348.00",CIMG - Information Systems
,BEIS,UKRI - BBSRC,10/07/18,FG - Accounts & Business Planning,Training Awards - Postgraduates,Cardiff University,98228078,"5,882.87",FG - Accounts & Business Planning
,BEIS,UKRI - BBSRC,10/07/18,FG - Accounts & Business Planning,Training Awards - Postgraduates,Cardiff University,98228114,"5,940.12",FG - Accounts & Business Planning
,BEIS,UKRI - BBSRC,10/07/18,FG - Accounts & Business Planning,Training Awards - Postgraduates,Cardiff University,98228233,"5,940.12",FG - Accounts & Business Planning
,BEIS,UKRI - BBSRC,10/07/18,FG - Accounts & Business Planning,Training Awards - Postgraduates,Cardiff University,98228343,"6,043.50",FG - Accounts & Business Planning
,BEIS,UKRI - BBSRC,10/07/18,FG - Accounts & Business Planning,Training Awards - Postgraduates,Cardiff University,98228375,"6,138.25",FG - Accounts & Business Planning
,BEIS,UKRI - BBSRC,24/07/18,Innovation and Skills Group,Conferences & Seminars,Careers Research and Advisory Centre (CRAC Ltd),98245274,859.68,Innovation and Skills Group
,BEIS,UKRI - BBSRC,24/07/18,Innovation and Skills Group,Conferences & Seminars,Careers Research and Advisory Centre (CRAC Ltd),98245274,-119.40,Innovation and Skills Group
,BEIS,UKRI - BBSRC,24/07/18,Innovation and Skills Group,Conferences & Seminars,Careers Research and Advisory Centre (CRAC Ltd),98245274,-23.88,Innovation and Skills Group
,BEIS,UKRI - BBSRC,04/07/18,JBOS - Maintenance,Water,Castle Water Ltd,98228991,"1,801.16",JBOS - Maintenance
,BEIS,UKRI - BBSRC,26/07/18,PDG - Director,Staff Training,Change Quest,98244424,648.00,PDG - Director
,BEIS,UKRI - BBSRC,12/07/18,JBOS - Post Room,Postage & Courier Services,City Sprint,98236466,"2,559.88",JBOS - Post Room
,BEIS,UKRI - BBSRC,13/07/18,Balance Sheet,Voluntary Deductions,Civil Service Benevolent Fund,98234414,2.00,Balance Sheet
,BEIS,UKRI - BBSRC,17/07/18,JBOS - Maintenance,Gas,Corona Energy,98237497,"1,370.86",JBOS - Maintenance
,BEIS,UKRI - BBSRC,18/07/18,JBOS - Maintenance,Gas,Corona Energy,98240232,"1,370.86",JBOS - Maintenance
,BEIS,UKRI - BBSRC,27/07/18,CIMG - External Relations,T&S UK - Other Charges,Corporate Airport Transfers,98244459,187.20,CIMG - External Relations
,BEIS,UKRI - BBSRC,17/07/18,CE - IRU,T&S UK - Public Transport,Corporate Airport Transfers,98236978,324.00,CE - IRU
,BEIS,UKRI - BBSRC,17/07/18,CE - IRU,T&S UK - Public Transport,Corporate Airport Transfers,98236994,198.00,CE - IRU
,BEIS,UKRI - BBSRC,04/07/18,CE - IRU,T&S UK - Vehicle Hire,Corporate Airport Transfers,98210775,192.00,CE - IRU
,BEIS,UKRI - BBSRC,04/07/18,CE - IRU,T&S UK - Vehicle Hire,Corporate Airport Transfers,98222445,282.00,CE - IRU
,BEIS,UKRI - BBSRC,09/07/18,CE - Chief Executive,T&S UK - Vehicle Hire,Corporate Airport Transfers,98222440,177.60,CE - Chief Executive
,BEIS,UKRI - BBSRC,13/07/18,CE - IRU,T&S UK - Vehicle Hire,Corporate Airport Transfers,98231110,398.40,CE - IRU
,BEIS,UKRI - BBSRC,30/07/18,CE - Chief Executive,T&S UK - Vehicle Hire,Corporate Airport Transfers,98244441,384.00,CE - Chief Executive
,BEIS,UKRI - BBSRC,31/07/18,CE - IRU,T&S UK - Vehicle Hire,Corporate Airport Transfers,98244453,199.20,CE - IRU
,BEIS,UKRI - BBSRC,17/07/18,Science Group - Delivery Function,Non-staff travel and subsistance,Corporate Travel Management (North) Ltd,98239653,1.00,Science Group - Delivery Function
,BEIS,UKRI - BBSRC,17/07/18,Science Group - Delivery Function,Non-staff travel and subsistance,Corporate Travel Management (North) Ltd,98239653,52.50,Science Group - Delivery Function
,BEIS,UKRI - BBSRC,17/07/18,Science Group - Delivery Function,Non-staff travel and subsistance,Corporate Travel Management (North) Ltd,98239653,122.26,Science Group - Delivery Function
,BEIS,UKRI - BBSRC,17/07/18,CE - IRU,T&S Overseas - Accommodation,Corporate Travel Management (North) Ltd,98239653,0.50,CE - IRU
,BEIS,UKRI - BBSRC,17/07/18,CE - IRU,T&S Overseas - Accommodation,Corporate Travel Management (North) Ltd,98239653,182.47,CE - IRU
,BEIS,UKRI - BBSRC,17/07/18,CE - IRU,T&S Overseas - Accommodation,Corporate Travel Management (North) Ltd,98239653,72.31,CE - IRU
,BEIS,UKRI - BBSRC,17/07/18,CE - IRU,T&S Overseas - Accommodation,Corporate Travel Management (North) Ltd,98239653,292.99,CE - IRU
,BEIS,UKRI - BBSRC,17/07/18,CE - IRU,T&S Overseas - Accommodation,Corporate Travel Management (North) Ltd,98239653,102.20,CE - IRU
,BEIS,UKRI - BBSRC,17/07/18,CE - IRU,T&S Overseas - Accommodation,Corporate Travel Management (North) Ltd,98239653,0.50,CE - IRU
,BEIS,UKRI - BBSRC,17/07/18,CE - IRU,T&S Overseas - Accommodation,Corporate Travel Management (North) Ltd,98239653,1.44,CE - IRU
,BEIS,UKRI - BBSRC,17/07/18,CE - IRU,T&S Overseas - Accommodation,Corporate Travel Management (North) Ltd,98239653,164.26,CE - IRU
,BEIS,UKRI - BBSRC,17/07/18,CE - IRU,T&S Overseas - Accommodation,Corporate Travel Management (North) Ltd,98239653,223.95,CE - IRU
,BEIS,UKRI - BBSRC,17/07/18,CE - IRU,T&S Overseas - Accommodation,Corporate Travel Management (North) Ltd,98239653,0.50,CE - IRU
,BEIS,UKRI - BBSRC,17/07/18,CE - IRU,T&S Overseas - Accommodation,Corporate Travel Management (North) Ltd,98239653,0.50,CE - IRU
,BEIS,UKRI - BBSRC,17/07/18,CE - IRU,T&S Overseas - Accommodation,Corporate Travel Management (North) Ltd,98239653,157.47,CE - IRU
,BEIS,UKRI - BBSRC,17/07/18,CE - IRU,T&S Overseas - Accommodation,Corporate Travel Management (North) Ltd,98239653,0.39,CE - IRU
,BEIS,UKRI - BBSRC,17/07/18,CE - IRU,T&S Overseas - Accommodation,Corporate Travel Management (North) Ltd,98239653,0.10,CE - IRU
,BEIS,UKRI - BBSRC,17/07/18,CE - IRU,T&S Overseas - Accommodation,Corporate Travel Management (North) Ltd,98239653,0.20,CE - IRU
,BEIS,UKRI - BBSRC,17/07/18,European Initiatives,T&S Overseas - Accommodation,Corporate Travel Management (North) Ltd,98239653,0.50,European Initiatives
,BEIS,UKRI - BBSRC,17/07/18,European Initiatives,T&S Overseas - Accommodation,Corporate Travel Management (North) Ltd,98239653,1.44,European Initiatives
,BEIS,UKRI - BBSRC,17/07/18,European Initiatives,T&S Overseas - Accommodation,Corporate Travel Management (North) Ltd,98239653,0.39,European Initiatives
,BEIS,UKRI - BBSRC,17/07/18,Science Group,T&S Overseas - Accommodation,Corporate Travel Management (North) Ltd,98239653,353.02,Science Group
,BEIS,UKRI - BBSRC,17/07/18,Science Group,T&S Overseas - Accommodation,Corporate Travel Management (North) Ltd,98239653,353.02,Science Group
,BEIS,UKRI - BBSRC,17/07/18,Science Group,T&S Overseas - Accommodation,Corporate Travel Management (North) Ltd,98239653,0.50,Science Group
,BEIS,UKRI - BBSRC,17/07/18,Science Group,T&S Overseas - Accommodation,Corporate Travel Management (North) Ltd,98239653,0.10,Science Group
,BEIS,UKRI - BBSRC,17/07/18,CE - Chief Executive,T&S Overseas - Flights,Corporate Travel Management (North) Ltd,98239653,2.16,CE - Chief Executive
,BEIS,UKRI - BBSRC,17/07/18,CE - Chief Executive,T&S Overseas - Flights,Corporate Travel Management (North) Ltd,98239653,"1,919.51",CE - Chief Executive
,BEIS,UKRI - BBSRC,17/07/18,CE - IRU,T&S Overseas - Flights,Corporate Travel Management (North) Ltd,98239653,404.50,CE - IRU
,BEIS,UKRI - BBSRC,17/07/18,CE - IRU,T&S Overseas - Flights,Corporate Travel Management (North) Ltd,98239653,93.00,CE - IRU
,BEIS,UKRI - BBSRC,17/07/18,CE - IRU,T&S Overseas - Flights,Corporate Travel Management (North) Ltd,98239653,108.00,CE - IRU
,BEIS,UKRI - BBSRC,17/07/18,CE - IRU,T&S Overseas - Flights,Corporate Travel Management (North) Ltd,98239653,462.70,CE - IRU
,BEIS,UKRI - BBSRC,17/07/18,CE - IRU,T&S Overseas - Flights,Corporate Travel Management (North) Ltd,98239653,"2,030.91",CE - IRU
,BEIS,UKRI - BBSRC,17/07/18,CE - IRU,T&S Overseas - Flights,Corporate Travel Management (North) Ltd,98239653,"2,215.30",CE - IRU
,BEIS,UKRI - BBSRC,17/07/18,CE - IRU,T&S Overseas - Flights,Corporate Travel Management (North) Ltd,98239653,2.16,CE - IRU
,BEIS,UKRI - BBSRC,17/07/18,CE - IRU,T&S Overseas - Flights,Corporate Travel Management (North) Ltd,98239653,"2,296.41",CE - IRU
,BEIS,UKRI - BBSRC,17/07/18,CE - IRU,T&S Overseas - Flights,Corporate Travel Management (North) Ltd,98239653,6.75,CE - IRU
,BEIS,UKRI - BBSRC,17/07/18,CE - IRU,T&S Overseas - Flights,Corporate Travel Management (North) Ltd,98239653,240.00,CE - IRU
,BEIS,UKRI - BBSRC,17/07/18,CE - IRU,T&S Overseas - Flights,Corporate Travel Management (North) Ltd,98239653,100.00,CE - IRU
,BEIS,UKRI - BBSRC,17/07/18,CE - IRU,T&S Overseas - Flights,Corporate Travel Management (North) Ltd,98239653,204.70,CE - IRU
,BEIS,UKRI - BBSRC,17/07/18,CE - IRU,T&S Overseas - Flights,Corporate Travel Management (North) Ltd,98239653,204.70,CE - IRU
,BEIS,UKRI - BBSRC,17/07/18,CE - IRU,T&S Overseas - Flights,Corporate Travel Management (North) Ltd,98239653,49.70,CE - IRU
,BEIS,UKRI - BBSRC,17/07/18,CE - IRU,T&S Overseas - Flights,Corporate Travel Management (North) Ltd,98239653,49.70,CE - IRU
,BEIS,UKRI - BBSRC,17/07/18,CE - IRU,T&S Overseas - Flights,Corporate Travel Management (North) Ltd,98239653,49.35,CE - IRU
,BEIS,UKRI - BBSRC,17/07/18,RISD - UKRO,T&S Overseas - Flights,Corporate Travel Management (North) Ltd,98239653,26.92,RISD - UKRO
,BEIS,UKRI - BBSRC,17/07/18,RISD - UKRO,T&S Overseas - Flights,Corporate Travel Management (North) Ltd,98239653,89.75,RISD - UKRO
,BEIS,UKRI - BBSRC,17/07/18,RISD - UKRO,T&S Overseas - Flights,Corporate Travel Management (North) Ltd,98239653,76.57,RISD - UKRO
,BEIS,UKRI - BBSRC,17/07/18,Science Group,T&S Overseas - Flights,Corporate Travel Management (North) Ltd,98239653,"1,065.61",Science Group
,BEIS,UKRI - BBSRC,17/07/18,Science Group,T&S Overseas - Flights,Corporate Travel Management (North) Ltd,98239653,185.20,Science Group
,BEIS,UKRI - BBSRC,17/07/18,Science Group,T&S Overseas - Flights,Corporate Travel Management (North) Ltd,98239653,178.00,Science Group
,BEIS,UKRI - BBSRC,17/07/18,RISD - UKRO,T&S Overseas - Public Transport,Corporate Travel Management (North) Ltd,98239653,182.00,RISD - UKRO
,BEIS,UKRI - BBSRC,17/07/18,RISD - UKRO,T&S Overseas - Public Transport,Corporate Travel Management (North) Ltd,98239653,2.16,RISD - UKRO
,BEIS,UKRI - BBSRC,17/07/18,RISD - UKRO,T&S Overseas - Public Transport,Corporate Travel Management (North) Ltd,98239653,88.20,RISD - UKRO
,BEIS,UKRI - BBSRC,17/07/18,RISD - UKRO,T&S Overseas - Public Transport,Corporate Travel Management (North) Ltd,98239653,97.00,RISD - UKRO
,BEIS,UKRI - BBSRC,17/07/18,RISD - UKRO,T&S Overseas - Public Transport,Corporate Travel Management (North) Ltd,98239653,161.00,RISD - UKRO
,BEIS,UKRI - BBSRC,17/07/18,RISD - UKRO,T&S Overseas - Public Transport,Corporate Travel Management (North) Ltd,98239653,117.00,RISD - UKRO
,BEIS,UKRI - BBSRC,17/07/18,RISD - UKRO,T&S Overseas - Public Transport,Corporate Travel Management (North) Ltd,98239653,2.16,RISD - UKRO
,BEIS,UKRI - BBSRC,17/07/18,RISD - UKRO,T&S Overseas - Public Transport,Corporate Travel Management (North) Ltd,98239653,98.00,RISD - UKRO
,BEIS,UKRI - BBSRC,17/07/18,RISD - UKRO,T&S Overseas - Public Transport,Corporate Travel Management (North) Ltd,98239653,134.30,RISD - UKRO
,BEIS,UKRI - BBSRC,17/07/18,RISD - UKRO,T&S Overseas - Public Transport,Corporate Travel Management (North) Ltd,98239653,183.00,RISD - UKRO
,BEIS,UKRI - BBSRC,17/07/18,CE - CPS,T&S UK - Accommodation,Corporate Travel Management (North) Ltd,98239653,0.50,CE - CPS
,BEIS,UKRI - BBSRC,17/07/18,CE - CPS,T&S UK - Accommodation,Corporate Travel Management (North) Ltd,98239653,99.00,CE - CPS
,BEIS,UKRI - BBSRC,17/07/18,CE - CPS,T&S UK - Accommodation,Corporate Travel Management (North) Ltd,98239653,0.50,CE - CPS
,BEIS,UKRI - BBSRC,17/07/18,CE - CPS,T&S UK - Accommodation,Corporate Travel Management (North) Ltd,98239653,295.00,CE - CPS
,BEIS,UKRI - BBSRC,17/07/18,CE - CPS,T&S UK - Accommodation,Corporate Travel Management (North) Ltd,98239653,0.20,CE - CPS
,BEIS,UKRI - BBSRC,17/07/18,CE - IRU,T&S UK - Accommodation,Corporate Travel Management (North) Ltd,98239653,0.50,CE - IRU
,BEIS,UKRI - BBSRC,17/07/18,CE - IRU,T&S UK - Accommodation,Corporate Travel Management (North) Ltd,98239653,76.50,CE - IRU
,BEIS,UKRI - BBSRC,17/07/18,CE - IRU,T&S UK - Accommodation,Corporate Travel Management (North) Ltd,98239653,0.50,CE - IRU
,BEIS,UKRI - BBSRC,17/07/18,CE - IRU,T&S UK - Accommodation,Corporate Travel Management (North) Ltd,98239653,201.98,CE - IRU
,BEIS,UKRI - BBSRC,17/07/18,CE - IRU,T&S UK - Accommodation,Corporate Travel Management (North) Ltd,98239653,0.50,CE - IRU
,BEIS,UKRI - BBSRC,17/07/18,CE - IRU,T&S UK - Accommodation,Corporate Travel Management (North) Ltd,98239653,146.00,CE - IRU
,BEIS,UKRI - BBSRC,17/07/18,CE - IRU,T&S UK - Accommodation,Corporate Travel Management (North) Ltd,98239653,0.50,CE - IRU
,BEIS,UKRI - BBSRC,17/07/18,CE - IRU,T&S UK - Accommodation,Corporate Travel Management (North) Ltd,98239653,170.00,CE - IRU
,BEIS,UKRI - BBSRC,17/07/18,CE - IRU,T&S UK - Accommodation,Corporate Travel Management (North) Ltd,98239653,0.10,CE - IRU
,BEIS,UKRI - BBSRC,17/07/18,CE - IRU,T&S UK - Accommodation,Corporate Travel Management (North) Ltd,98239653,0.20,CE - IRU
,BEIS,UKRI - BBSRC,17/07/18,CE - IRU,T&S UK - Accommodation,Corporate Travel Management (North) Ltd,98239653,0.10,CE - IRU
,BEIS,UKRI - BBSRC,17/07/18,CIMG - Programme Office,T&S UK - Accommodation,Corporate Travel Management (North) Ltd,98239653,0.50,CIMG - Programme Office
,BEIS,UKRI - BBSRC,17/07/18,CIMG - Programme Office,T&S UK - Accommodation,Corporate Travel Management (North) Ltd,98239653,70.00,CIMG - Programme Office
,BEIS,UKRI - BBSRC,17/07/18,CIMG - Programme Office,T&S UK - Accommodation,Corporate Travel Management (North) Ltd,98239653,0.50,CIMG - Programme Office
,BEIS,UKRI - BBSRC,17/07/18,CIMG - Programme Office,T&S UK - Accommodation,Corporate Travel Management (North) Ltd,98239653,1.44,CIMG - Programme Office
,BEIS,UKRI - BBSRC,17/07/18,CIMG - Programme Office,T&S UK - Accommodation,Corporate Travel Management (North) Ltd,98239653,70.00,CIMG - Programme Office
,BEIS,UKRI - BBSRC,17/07/18,CIMG - Programme Office,T&S UK - Accommodation,Corporate Travel Management (North) Ltd,98239653,0.49,CIMG - Programme Office
,BEIS,UKRI - BBSRC,17/07/18,FG - Director,T&S UK - Accommodation,Corporate Travel Management (North) Ltd,98239653,0.50,FG - Director
,BEIS,UKRI - BBSRC,17/07/18,FG - Director,T&S UK - Accommodation,Corporate Travel Management (North) Ltd,98239653,321.00,FG - Director
,BEIS,UKRI - BBSRC,17/07/18,FG - Director,T&S UK - Accommodation,Corporate Travel Management (North) Ltd,98239653,0.50,FG - Director
,BEIS,UKRI - BBSRC,17/07/18,FG - Director,T&S UK - Accommodation,Corporate Travel Management (North) Ltd,98239653,438.00,FG - Director
,BEIS,UKRI - BBSRC,17/07/18,FG - Director,T&S UK - Accommodation,Corporate Travel Management (North) Ltd,98239653,0.50,FG - Director
,BEIS,UKRI - BBSRC,17/07/18,FG - Director,T&S UK - Accommodation,Corporate Travel Management (North) Ltd,98239653,291.00,FG - Director
,BEIS,UKRI - BBSRC,17/07/18,FG - Director,T&S UK - Accommodation,Corporate Travel Management (North) Ltd,98239653,0.50,FG - Director
,BEIS,UKRI - BBSRC,17/07/18,FG - Director,T&S UK - Accommodation,Corporate Travel Management (North) Ltd,98239653,291.00,FG - Director
,BEIS,UKRI - BBSRC,17/07/18,FG - Director,T&S UK - Accommodation,Corporate Travel Management (North) Ltd,98239653,0.50,FG - Director
,BEIS,UKRI - BBSRC,17/07/18,FG - Director,T&S UK - Accommodation,Corporate Travel Management (North) Ltd,98239653,119.00,FG - Director
,BEIS,UKRI - BBSRC,17/07/18,FG - Director,T&S UK - Accommodation,Corporate Travel Management (North) Ltd,98239653,0.50,FG - Director
,BEIS,UKRI - BBSRC,17/07/18,FG - Director,T&S UK - Accommodation,Corporate Travel Management (North) Ltd,98239653,89.00,FG - Director
,BEIS,UKRI - BBSRC,17/07/18,FG - Director,T&S UK - Accommodation,Corporate Travel Management (North) Ltd,98239653,0.50,FG - Director
,BEIS,UKRI - BBSRC,17/07/18,FG - Director,T&S UK - Accommodation,Corporate Travel Management (North) Ltd,98239653,121.00,FG - Director
,BEIS,UKRI - BBSRC,17/07/18,FG - Director,T&S UK - Accommodation,Corporate Travel Management (North) Ltd,98239653,0.50,FG - Director
,BEIS,UKRI - BBSRC,17/07/18,FG - Director,T&S UK - Accommodation,Corporate Travel Management (North) Ltd,98239653,115.00,FG - Director
,BEIS,UKRI - BBSRC,17/07/18,FG - Director,T&S UK - Accommodation,Corporate Travel Management (North) Ltd,98239653,0.50,FG - Director
,BEIS,UKRI - BBSRC,17/07/18,FG - Director,T&S UK - Accommodation,Corporate Travel Management (North) Ltd,98239653,114.00,FG - Director
,BEIS,UKRI - BBSRC,17/07/18,FG - Director,T&S UK - Accommodation,Corporate Travel Management (North) Ltd,98239653,0.50,FG - Director
,BEIS,UKRI - BBSRC,17/07/18,FG - Director,T&S UK - Accommodation,Corporate Travel Management (North) Ltd,98239653,126.65,FG - Director
,BEIS,UKRI - BBSRC,17/07/18,FG - Director,T&S UK - Accommodation,Corporate Travel Management (North) Ltd,98239653,0.50,FG - Director
,BEIS,UKRI - BBSRC,17/07/18,FG - Director,T&S UK - Accommodation,Corporate Travel Management (North) Ltd,98239653,76.50,FG - Director
,BEIS,UKRI - BBSRC,17/07/18,FG - Director,T&S UK - Accommodation,Corporate Travel Management (North) Ltd,98239653,0.50,FG - Director
,BEIS,UKRI - BBSRC,17/07/18,FG - Director,T&S UK - Accommodation,Corporate Travel Management (North) Ltd,98239653,119.00,FG - Director
,BEIS,UKRI - BBSRC,17/07/18,FG - Director,T&S UK - Accommodation,Corporate Travel Management (North) Ltd,98239653,1.20,FG - Director
,BEIS,UKRI - BBSRC,17/07/18,FG - Estates,T&S UK - Accommodation,Corporate Travel Management (North) Ltd,98239653,0.50,FG - Estates
,BEIS,UKRI - BBSRC,17/07/18,FG - Estates,T&S UK - Accommodation,Corporate Travel Management (North) Ltd,98239653,170.00,FG - Estates
,BEIS,UKRI - BBSRC,17/07/18,FG - Estates,T&S UK - Accommodation,Corporate Travel Management (North) Ltd,98239653,0.50,FG - Estates
,BEIS,UKRI - BBSRC,17/07/18,FG - Estates,T&S UK - Accommodation,Corporate Travel Management (North) Ltd,98239653,89.00,FG - Estates
,BEIS,UKRI - BBSRC,17/07/18,FG - Estates,T&S UK - Accommodation,Corporate Travel Management (North) Ltd,98239653,0.50,FG - Estates
,BEIS,UKRI - BBSRC,17/07/18,FG - Estates,T&S UK - Accommodation,Corporate Travel Management (North) Ltd,98239653,0.50,FG - Estates
,BEIS,UKRI - BBSRC,17/07/18,FG - Estates,T&S UK - Accommodation,Corporate Travel Management (North) Ltd,98239653,106.50,FG - Estates
,BEIS,UKRI - BBSRC,17/07/18,FG - Estates,T&S UK - Accommodation,Corporate Travel Management (North) Ltd,98239653,0.50,FG - Estates
,BEIS,UKRI - BBSRC,17/07/18,FG - Estates,T&S UK - Accommodation,Corporate Travel Management (North) Ltd,98239653,0.50,FG - Estates
,BEIS,UKRI - BBSRC,17/07/18,FG - Estates,T&S UK - Accommodation,Corporate Travel Management (North) Ltd,98239653,144.00,FG - Estates
,BEIS,UKRI - BBSRC,17/07/18,FG - Estates,T&S UK - Accommodation,Corporate Travel Management (North) Ltd,98239653,0.50,FG - Estates
,BEIS,UKRI - BBSRC,17/07/18,FG - Estates,T&S UK - Accommodation,Corporate Travel Management (North) Ltd,98239653,1.44,FG - Estates
,BEIS,UKRI - BBSRC,17/07/18,FG - Estates,T&S UK - Accommodation,Corporate Travel Management (North) Ltd,98239653,169.00,FG - Estates
,BEIS,UKRI - BBSRC,17/07/18,FG - Estates,T&S UK - Accommodation,Corporate Travel Management (North) Ltd,98239653,0.50,FG - Estates
,BEIS,UKRI - BBSRC,17/07/18,FG - Estates,T&S UK - Accommodation,Corporate Travel Management (North) Ltd,98239653,204.00,FG - Estates
,BEIS,UKRI - BBSRC,17/07/18,FG - Estates,T&S UK - Accommodation,Corporate Travel Management (North) Ltd,98239653,0.50,FG - Estates
,BEIS,UKRI - BBSRC,17/07/18,FG - Estates,T&S UK - Accommodation,Corporate Travel Management (North) Ltd,98239653,85.00,FG - Estates
,BEIS,UKRI - BBSRC,17/07/18,FG - Estates,T&S UK - Accommodation,Corporate Travel Management (North) Ltd,98239653,0.50,FG - Estates
,BEIS,UKRI - BBSRC,17/07/18,FG - Estates,T&S UK - Accommodation,Corporate Travel Management (North) Ltd,98239653,209.10,FG - Estates
,BEIS,UKRI - BBSRC,17/07/18,FG - Estates,T&S UK - Accommodation,Corporate Travel Management (North) Ltd,98239653,0.50,FG - Estates
,BEIS,UKRI - BBSRC,17/07/18,FG - Estates,T&S UK - Accommodation,Corporate Travel Management (North) Ltd,98239653,144.00,FG - Estates
,BEIS,UKRI - BBSRC,17/07/18,FG - Estates,T&S UK - Accommodation,Corporate Travel Management (North) Ltd,98239653,0.50,FG - Estates
,BEIS,UKRI - BBSRC,17/07/18,FG - Estates,T&S UK - Accommodation,Corporate Travel Management (North) Ltd,98239653,114.00,FG - Estates
,BEIS,UKRI - BBSRC,17/07/18,FG - Estates,T&S UK - Accommodation,Corporate Travel Management (North) Ltd,98239653,0.50,FG - Estates
,BEIS,UKRI - BBSRC,17/07/18,FG - Estates,T&S UK - Accommodation,Corporate Travel Management (North) Ltd,98239653,62.00,FG - Estates
,BEIS,UKRI - BBSRC,17/07/18,FG - Estates,T&S UK - Accommodation,Corporate Travel Management (North) Ltd,98239653,0.50,FG - Estates
,BEIS,UKRI - BBSRC,17/07/18,FG - Estates,T&S UK - Accommodation,Corporate Travel Management (North) Ltd,98239653,173.00,FG - Estates
,BEIS,UKRI - BBSRC,17/07/18,FG - Estates,T&S UK - Accommodation,Corporate Travel Management (North) Ltd,98239653,0.50,FG - Estates
,BEIS,UKRI - BBSRC,17/07/18,FG - Estates,T&S UK - Accommodation,Corporate Travel Management (North) Ltd,98239653,72.00,FG - Estates
,BEIS,UKRI - BBSRC,17/07/18,FG - Estates,T&S UK - Accommodation,Corporate Travel Management (North) Ltd,98239653,0.50,FG - Estates
,BEIS,UKRI - BBSRC,17/07/18,FG - Estates,T&S UK - Accommodation,Corporate Travel Management (North) Ltd,98239653,120.00,FG - Estates
,BEIS,UKRI - BBSRC,17/07/18,FG - Estates,T&S UK - Accommodation,Corporate Travel Management (North) Ltd,98239653,1.89,FG - Estates
,BEIS,UKRI - BBSRC,17/07/18,FG - RCUK Assurance,T&S UK - Accommodation,Corporate Travel Management (North) Ltd,98239653,0.50,FG - RCUK Assurance
,BEIS,UKRI - BBSRC,17/07/18,FG - RCUK Assurance,T&S UK - Accommodation,Corporate Travel Management (North) Ltd,98239653,89.00,FG - RCUK Assurance
,BEIS,UKRI - BBSRC,17/07/18,FG - RCUK Assurance,T&S UK - Accommodation,Corporate Travel Management (North) Ltd,98239653,0.50,FG - RCUK Assurance
,BEIS,UKRI - BBSRC,17/07/18,FG - RCUK Assurance,T&S UK - Accommodation,Corporate Travel Management (North) Ltd,98239653,214.00,FG - RCUK Assurance
,BEIS,UKRI - BBSRC,17/07/18,FG - RCUK Assurance,T&S UK - Accommodation,Corporate Travel Management (North) Ltd,98239653,0.50,FG - RCUK Assurance
,BEIS,UKRI - BBSRC,17/07/18,FG - RCUK Assurance,T&S UK - Accommodation,Corporate Travel Management (North) Ltd,98239653,0.50,FG - RCUK Assurance
,BEIS,UKRI - BBSRC,17/07/18,FG - RCUK Assurance,T&S UK - Accommodation,Corporate Travel Management (North) Ltd,98239653,194.00,FG - RCUK Assurance
,BEIS,UKRI - BBSRC,17/07/18,FG - RCUK Assurance,T&S UK - Accommodation,Corporate Travel Management (North) Ltd,98239653,0.50,FG - RCUK Assurance
,BEIS,UKRI - BBSRC,17/07/18,FG - RCUK Assurance,T&S UK - Accommodation,Corporate Travel Management (North) Ltd,98239653,89.00,FG - RCUK Assurance
,BEIS,UKRI - BBSRC,17/07/18,FG - RCUK Assurance,T&S UK - Accommodation,Corporate Travel Management (North) Ltd,98239653,0.50,FG - RCUK Assurance
,BEIS,UKRI - BBSRC,17/07/18,FG - RCUK Assurance,T&S UK - Accommodation,Corporate Travel Management (North) Ltd,98239653,140.00,FG - RCUK Assurance
,BEIS,UKRI - BBSRC,17/07/18,FG - RCUK Assurance,T&S UK - Accommodation,Corporate Travel Management (North) Ltd,98239653,0.50,FG - RCUK Assurance
,BEIS,UKRI - BBSRC,17/07/18,FG - RCUK Assurance,T&S UK - Accommodation,Corporate Travel Management (North) Ltd,98239653,140.00,FG - RCUK Assurance
,BEIS,UKRI - BBSRC,17/07/18,FG - RCUK Assurance,T&S UK - Accommodation,Corporate Travel Management (North) Ltd,98239653,0.70,FG - RCUK Assurance
,BEIS,UKRI - BBSRC,17/07/18,Innovation and Skills Group,T&S UK - Accommodation,Corporate Travel Management (North) Ltd,98239653,0.50,Innovation and Skills Group
,BEIS,UKRI - BBSRC,17/07/18,Innovation and Skills Group,T&S UK - Accommodation,Corporate Travel Management (North) Ltd,98239653,281.98,Innovation and Skills Group
,BEIS,UKRI - BBSRC,17/07/18,Innovation and Skills Group,T&S UK - Accommodation,Corporate Travel Management (North) Ltd,98239653,0.50,Innovation and Skills Group
,BEIS,UKRI - BBSRC,17/07/18,Innovation and Skills Group,T&S UK - Accommodation,Corporate Travel Management (North) Ltd,98239653,84.50,Innovation and Skills Group
,BEIS,UKRI - BBSRC,17/07/18,Innovation and Skills Group,T&S UK - Accommodation,Corporate Travel Management (North) Ltd,98239653,0.50,Innovation and Skills Group
,BEIS,UKRI - BBSRC,17/07/18,Innovation and Skills Group,T&S UK - Accommodation,Corporate Travel Management (North) Ltd,98239653,87.00,Innovation and Skills Group
,BEIS,UKRI - BBSRC,17/07/18,Innovation and Skills Group,T&S UK - Accommodation,Corporate Travel Management (North) Ltd,98239653,226.48,Innovation and Skills Group
,BEIS,UKRI - BBSRC,17/07/18,Innovation and Skills Group,T&S UK - Accommodation,Corporate Travel Management (North) Ltd,98239653,0.50,Innovation and Skills Group
,BEIS,UKRI - BBSRC,17/07/18,Innovation and Skills Group,T&S UK - Accommodation,Corporate Travel Management (North) Ltd,98239653,182.50,Innovation and Skills Group
,BEIS,UKRI - BBSRC,17/07/18,Innovation and Skills Group,T&S UK - Accommodation,Corporate Travel Management (North) Ltd,98239653,0.50,Innovation and Skills Group
,BEIS,UKRI - BBSRC,17/07/18,Innovation and Skills Group,T&S UK - Accommodation,Corporate Travel Management (North) Ltd,98239653,79.00,Innovation and Skills Group
,BEIS,UKRI - BBSRC,17/07/18,Innovation and Skills Group,T&S UK - Accommodation,Corporate Travel Management (North) Ltd,98239653,0.50,Innovation and Skills Group
,BEIS,UKRI - BBSRC,17/07/18,Innovation and Skills Group,T&S UK - Accommodation,Corporate Travel Management (North) Ltd,98239653,1.44,Innovation and Skills Group
,BEIS,UKRI - BBSRC,17/07/18,Innovation and Skills Group,T&S UK - Accommodation,Corporate Travel Management (North) Ltd,98239653,270.00,Innovation and Skills Group
,BEIS,UKRI - BBSRC,17/07/18,Innovation and Skills Group,T&S UK - Accommodation,Corporate Travel Management (North) Ltd,98239653,0.50,Innovation and Skills Group
,BEIS,UKRI - BBSRC,17/07/18,Innovation and Skills Group,T&S UK - Accommodation,Corporate Travel Management (North) Ltd,98239653,0.99,Innovation and Skills Group
,BEIS,UKRI - BBSRC,17/07/18,Innovation and Skills Group CDSU,T&S UK - Accommodation,Corporate Travel Management (North) Ltd,98239653,0.50,Innovation and Skills Group CDSU
,BEIS,UKRI - BBSRC,17/07/18,Innovation and Skills Group CDSU,T&S UK - Accommodation,Corporate Travel Management (North) Ltd,98239653,407.70,Innovation and Skills Group CDSU
,BEIS,UKRI - BBSRC,17/07/18,Innovation and Skills Group CDSU,T&S UK - Accommodation,Corporate Travel Management (North) Ltd,98239653,0.50,Innovation and Skills Group CDSU
,BEIS,UKRI - BBSRC,17/07/18,Innovation and Skills Group CDSU,T&S UK - Accommodation,Corporate Travel Management (North) Ltd,98239653,87.00,Innovation and Skills Group CDSU
,BEIS,UKRI - BBSRC,17/07/18,Innovation and Skills Group CDSU,T&S UK - Accommodation,Corporate Travel Management (North) Ltd,98239653,407.27,Innovation and Skills Group CDSU
,BEIS,UKRI - BBSRC,17/07/18,Innovation and Skills Group CDSU,T&S UK - Accommodation,Corporate Travel Management (North) Ltd,98239653,0.20,Innovation and Skills Group CDSU
,BEIS,UKRI - BBSRC,17/07/18,PDG - Director,T&S UK - Accommodation,Corporate Travel Management (North) Ltd,98239653,0.50,PDG - Director
,BEIS,UKRI - BBSRC,17/07/18,PDG - Director,T&S UK - Accommodation,Corporate Travel Management (North) Ltd,98239653,1.44,PDG - Director
,BEIS,UKRI - BBSRC,17/07/18,PDG - Director,T&S UK - Accommodation,Corporate Travel Management (North) Ltd,98239653,146.00,PDG - Director
,BEIS,UKRI - BBSRC,17/07/18,PDG - Director,T&S UK - Accommodation,Corporate Travel Management (North) Ltd,98239653,0.50,PDG - Director
,BEIS,UKRI - BBSRC,17/07/18,PDG - Director,T&S UK - Accommodation,Corporate Travel Management (North) Ltd,98239653,148.80,PDG - Director
,BEIS,UKRI - BBSRC,17/07/18,PDG - Director,T&S UK - Accommodation,Corporate Travel Management (North) Ltd,98239653,0.49,PDG - Director
,BEIS,UKRI - BBSRC,17/07/18,RISD - UKRO,T&S UK - Accommodation,Corporate Travel Management (North) Ltd,98239653,0.50,RISD - UKRO
,BEIS,UKRI - BBSRC,17/07/18,RISD - UKRO,T&S UK - Accommodation,Corporate Travel Management (North) Ltd,98239653,58.00,RISD - UKRO
,BEIS,UKRI - BBSRC,17/07/18,RISD - UKRO,T&S UK - Accommodation,Corporate Travel Management (North) Ltd,98239653,0.50,RISD - UKRO
,BEIS,UKRI - BBSRC,17/07/18,RISD - UKRO,T&S UK - Accommodation,Corporate Travel Management (North) Ltd,98239653,130.00,RISD - UKRO
,BEIS,UKRI - BBSRC,17/07/18,RISD - UKRO,T&S UK - Accommodation,Corporate Travel Management (North) Ltd,98239653,0.50,RISD - UKRO
,BEIS,UKRI - BBSRC,17/07/18,RISD - UKRO,T&S UK - Accommodation,Corporate Travel Management (North) Ltd,98239653,85.00,RISD - UKRO
,BEIS,UKRI - BBSRC,17/07/18,RISD - UKRO,T&S UK - Accommodation,Corporate Travel Management (North) Ltd,98239653,0.50,RISD - UKRO
,BEIS,UKRI - BBSRC,17/07/18,RISD - UKRO,T&S UK - Accommodation,Corporate Travel Management (North) Ltd,98239653,169.00,RISD - UKRO
,BEIS,UKRI - BBSRC,17/07/18,RISD - UKRO,T&S UK - Accommodation,Corporate Travel Management (North) Ltd,98239653,0.50,RISD - UKRO
,BEIS,UKRI - BBSRC,17/07/18,RISD - UKRO,T&S UK - Accommodation,Corporate Travel Management (North) Ltd,98239653,89.00,RISD - UKRO
,BEIS,UKRI - BBSRC,17/07/18,RISD - UKRO,T&S UK - Accommodation,Corporate Travel Management (North) Ltd,98239653,0.50,RISD - UKRO
